﻿Body Name,Body,Service Division Label,Service Division Code,Organisational Unit,Expenditure Category,Expenditure Code,CIPFA detailed expediture type,CIPFA detailed expediture code,Narrative,Date,Transaction number,Net Amount,Capital and Revenue,Supplier Name,Supplier ID,,
Chorley Borough Council,http://statistics.data.gov.uk/id/local-authority/30UE,Central Support Services,1009,CUST - Customer & Digital,Telephones - Other,40085,Communication and Computing,5028,Adept Telecom - December 22,08/02/2023,0176580,"£1,810.43",Revenue,Adept Telecom PLC,77452,,
Chorley Borough Council,http://statistics.data.gov.uk/id/local-authority/30UE,Development Control,1091,GOVN - Policy & Governance,Legal Fees,40171,Miscellaneous Expenses,5034,DXC Technology ADDRESS REDACTED 20/12/2022 * Advising in Conference - 7hrs prep and duration -,08/02/2023,0176697,"£3,300.00",Revenue,Name Redacted,16692,,
Chorley Borough Council,http://statistics.data.gov.uk/id/local-authority/30UE,Central Support Services,1009,GOVN - Policy & Governance,Refreshments,40036,Catering,5024,red coffee BCFT0024 4x box of 500 £51.69 each,01/02/2023,0175543,£191.96,Revenue,Alliance Disposables Limited,59490,,
Chorley Borough Council,http://statistics.data.gov.uk/id/local-authority/30UE,Central Support Services,1009,GOVN - Policy & Governance,Refreshments,40036,Catering,5024,hot chocolate BCFT0029 4x boxs of 100 £32.61 each,01/02/2023,0175543,£119.96,Revenue,Alliance Disposables Limited,59490,,
Chorley Borough Council,http://statistics.data.gov.uk/id/local-authority/30UE,Central Support Services,1009,GOVN - Policy & Governance,Refreshments,40036,Catering,5024,sugar VIS00003 1x box of 1000 £9.88 each,01/02/2023,0175543,£8.89,Revenue,Alliance Disposables Limited,59490,,
Chorley Borough Council,http://statistics.data.gov.uk/id/local-authority/30UE,Central Support Services,1009,GOVN - Policy & Governance,Refreshments,40036,Catering,5024,tea bags BCFT0027 4x boxs of 300 £26.76 each,01/02/2023,0175543,£55.20,Revenue,Alliance Disposables Limited,59490,,
Chorley Borough Council,http://statistics.data.gov.uk/id/local-authority/30UE,Central Support Services,1009,GOVN - Policy & Governance,Tools & Equipment - Purchase,40003,"Equipment, Furniture & Materia",5023,stainless steel milk jug 600ml LSSCJ020 X6 £9.37 EACH,01/02/2023,0175543,£50.34,Revenue,Alliance Disposables Limited,59490,,
Chorley Borough Council,http://statistics.data.gov.uk/id/local-authority/30UE,Central Support Services,1009,GOVN - Policy & Governance,Refreshments,40036,Catering,5024,tork linstyle napkin TNAD1500 1x box of 12x50 £75.12 each,01/02/2023,0175543,£70.50,Revenue,Alliance Disposables Limited,59490,,
Chorley Borough Council,http://statistics.data.gov.uk/id/local-authority/30UE,Central Support Services,1009,CUST - Customer & Digital,Bank Charges,40151,Miscellaneous Expenses,5034,,15/02/2023,0175341,£781.63,Revenue,Allpay Net Ltd,17242,,
Chorley Borough Council,http://statistics.data.gov.uk/id/local-authority/30UE,Central Support Services,1009,CUST - Customer & Digital,Bank Charges,40151,Miscellaneous Expenses,5034,add ac fee,15/02/2023,0176906,£10.00,Revenue,Allpay Net Ltd,17242,,
Chorley Borough Council,http://statistics.data.gov.uk/id/local-authority/30UE,Central Support Services,1009,CUST - Customer & Digital,Bank Charges,40151,Miscellaneous Expenses,5034,post office,15/02/2023,0176906,£412.23,Revenue,Allpay Net Ltd,17242,,
Chorley Borough Council,http://statistics.data.gov.uk/id/local-authority/30UE,Central Support Services,1009,CUST - Customer & Digital,Bank Charges,40151,Miscellaneous Expenses,5034,paypoint,15/02/2023,0176906,£145.96,Revenue,Allpay Net Ltd,17242,,
Chorley Borough Council,http://statistics.data.gov.uk/id/local-authority/30UE,Central Support Services,1009,CUST - Customer & Digital,Bank Charges,40151,Miscellaneous Expenses,5034,webconn,15/02/2023,0176906,£46.00,Revenue,Allpay Net Ltd,17242,,
Chorley Borough Council,http://statistics.data.gov.uk/id/local-authority/30UE,Business Support,1095,GROW - Commercial & Property,General Repairs - Reactive,20004,Repairs Maintenance & Alts,5005,MW Market Walk - Security Systems Reactive Repairs,22/02/2023,0176521,"£1,148.82",Revenue,Amalgamated Ltd,78289,,
Chorley Borough Council,http://statistics.data.gov.uk/id/local-authority/30UE,Business Support,1095,GROW - Commercial & Property,Planned Maintenance,20006,Repairs Maintenance & Alts,5005,Strawberry fields - Security systems Planned Maintenance and remedials,01/02/2023,0176537,£304.05,Revenue,Amalgamated Ltd,78289,,
Chorley Borough Council,http://statistics.data.gov.uk/id/local-authority/30UE,Central Support Services,1009,GROW - Commercial & Property,Planned Maintenance,20006,Repairs Maintenance & Alts,5005,Primrose - Security systems Planned Maintenance and remedials,01/02/2023,0176538,£329.14,Revenue,Amalgamated Ltd,78289,,
Chorley Borough Council,http://statistics.data.gov.uk/id/local-authority/30UE,Central Support Services,1009,GROW - Commercial & Property,General Repairs - Reactive,20004,Repairs Maintenance & Alts,5005,Cotswold - Security Systems Reactive Repairs,01/02/2023,0176559,£460.10,Revenue,Amalgamated Ltd,78289,,
Chorley Borough Council,http://statistics.data.gov.uk/id/local-authority/30UE,Central Support Services,1009,GROW - Commercial & Property,General Repairs - Reactive,20004,Repairs Maintenance & Alts,5005,Primrose - Security Systems Reactive Repairs,01/02/2023,0176568,£578.67,Revenue,Amalgamated Ltd,78289,,
Chorley Borough Council,http://statistics.data.gov.uk/id/local-authority/30UE,Central Support Services,1009,CUST - Customer & Digital,Computer Equipment-Purchase,40098,Communication and Computing,5028,wireless access points,01/02/2023,0176415,£770.00,Revenue,Ampec,76813,,
Chorley Borough Council,http://statistics.data.gov.uk/id/local-authority/30UE,Capital,Capital,GOVN - Policy & Governance,Main Contractor,03007,Capital Expenditure,Capital,Union Street.Installation of 11x Excel Cat5e network points at high level for door access.Supply and installation of 1x 24way pat,08/02/2023,0176605,"£2,430.00",Capital,Ampec,76813,,
Chorley Borough Council,http://statistics.data.gov.uk/id/local-authority/30UE,Central Support Services,1009,CUST - Customer & Digital,Computer Equipment-Purchase,40098,Communication and Computing,5028,leisure centre wifi,15/02/2023,0177038,£740.00,Revenue,Ampec,76813,,
Chorley Borough Council,http://statistics.data.gov.uk/id/local-authority/30UE,Central Support Services,1009,CUST - Customer & Digital,Computer Equipment-Purchase,40098,Communication and Computing,5028,wireless access points for tennis center and leisure centers,22/02/2023,0177039,"£1,140.00",Revenue,Ampec,76813,,
Chorley Borough Council,http://statistics.data.gov.uk/id/local-authority/30UE,Central Support Services,1009,GOVN - Policy & Governance,Misc Expenses,40200,Miscellaneous Expenses,5034,January`s hosting of WordPress websites/UK Fast,15/02/2023,0176926,£297.55,Revenue,ANS Group Limited,74638,,
Chorley Borough Council,http://statistics.data.gov.uk/id/local-authority/30UE,Planning Policy,1092,PLAN - Planning & Development,Consultants` Fees,40077,Services,5027,Additional work on the Central Lancashire Local Plan (Summary Document of the HND Statements),15/02/2023,0176918,"£2,550.00",Revenue,Arc4,60831,,
Chorley Borough Council,http://statistics.data.gov.uk/id/local-authority/30UE,Control Accounts,Control,GOVN - Policy & Governance,Manual Control Account,00001,Balance Sheet,Balance,- VAT,15/02/2023,0177112,-£7.27,Revenue,Arnold Clark Finance Ltd,20685,,
Chorley Borough Council,http://statistics.data.gov.uk/id/local-authority/30UE,Control Accounts,Control,GOVN - Policy & Governance,Manual Control Account,00001,Balance Sheet,Balance,- VAT,15/02/2023,0177112,-£17.45,Revenue,Arnold Clark Finance Ltd,20685,,
Chorley Borough Council,http://statistics.data.gov.uk/id/local-authority/30UE,Control Accounts,Control,GOVN - Policy & Governance,Manual Control Account,00001,Balance Sheet,Balance,- VAT,15/02/2023,0177112,-£29.99,Revenue,Arnold Clark Finance Ltd,20685,,
Chorley Borough Council,http://statistics.data.gov.uk/id/local-authority/30UE,Control Accounts,Control,GOVN - Policy & Governance,Manual Control Account,00001,Balance Sheet,Balance,- VAT,15/02/2023,0177112,-£25.32,Revenue,Arnold Clark Finance Ltd,20685,,
Chorley Borough Council,http://statistics.data.gov.uk/id/local-authority/30UE,Control Accounts,Control,GOVN - Policy & Governance,Manual Control Account,00001,Balance Sheet,Balance,- VAT,15/02/2023,0177113,-£22.13,Revenue,Arnold Clark Finance Ltd,20685,,
Chorley Borough Council,http://statistics.data.gov.uk/id/local-authority/30UE,Control Accounts,Control,GOVN - Policy & Governance,Manual Control Account,00001,Balance Sheet,Balance,- VAT,15/02/2023,0177113,-£17.45,Revenue,Arnold Clark Finance Ltd,20685,,
Chorley Borough Council,http://statistics.data.gov.uk/id/local-authority/30UE,Control Accounts,Control,GOVN - Policy & Governance,Manual Control Account,00001,Balance Sheet,Balance,- VAT,15/02/2023,0177113,-£27.30,Revenue,Arnold Clark Finance Ltd,20685,,
Chorley Borough Council,http://statistics.data.gov.uk/id/local-authority/30UE,Control Accounts,Control,GOVN - Policy & Governance,Manual Control Account,00001,Balance Sheet,Balance,- VAT,15/02/2023,0177113,-£23.05,Revenue,Arnold Clark Finance Ltd,20685,,
Chorley Borough Council,http://statistics.data.gov.uk/id/local-authority/30UE,Control Accounts,Control,GOVN - Policy & Governance,Manual Control Account,00001,Balance Sheet,Balance,- VAT,15/02/2023,0177114,-£22.13,Revenue,Arnold Clark Finance Ltd,20685,,
Chorley Borough Council,http://statistics.data.gov.uk/id/local-authority/30UE,Control Accounts,Control,GOVN - Policy & Governance,Manual Control Account,00001,Balance Sheet,Balance,- VAT,15/02/2023,0177114,-£17.45,Revenue,Arnold Clark Finance Ltd,20685,,
Chorley Borough Council,http://statistics.data.gov.uk/id/local-authority/30UE,Control Accounts,Control,GOVN - Policy & Governance,Manual Control Account,00001,Balance Sheet,Balance,- VAT,15/02/2023,0177114,-£27.30,Revenue,Arnold Clark Finance Ltd,20685,,
Chorley Borough Council,http://statistics.data.gov.uk/id/local-authority/30UE,Control Accounts,Control,GOVN - Policy & Governance,Manual Control Account,00001,Balance Sheet,Balance,- VAT,15/02/2023,0177114,-£23.05,Revenue,Arnold Clark Finance Ltd,20685,,
Chorley Borough Council,http://statistics.data.gov.uk/id/local-authority/30UE,Control Accounts,Control,GOVN - Policy & Governance,Manual Control Account,00001,Balance Sheet,Balance,- VAT,15/02/2023,0177115,-£22.13,Revenue,Arnold Clark Finance Ltd,20685,,
Chorley Borough Council,http://statistics.data.gov.uk/id/local-authority/30UE,Control Accounts,Control,GOVN - Policy & Governance,Manual Control Account,00001,Balance Sheet,Balance,- VAT,15/02/2023,0177115,-£17.45,Revenue,Arnold Clark Finance Ltd,20685,,
Chorley Borough Council,http://statistics.data.gov.uk/id/local-authority/30UE,Control Accounts,Control,GOVN - Policy & Governance,Manual Control Account,00001,Balance Sheet,Balance,- VAT,15/02/2023,0177115,-£27.30,Revenue,Arnold Clark Finance Ltd,20685,,
Chorley Borough Council,http://statistics.data.gov.uk/id/local-authority/30UE,Control Accounts,Control,GOVN - Policy & Governance,Manual Control Account,00001,Balance Sheet,Balance,- VAT,15/02/2023,0177115,-£23.05,Revenue,Arnold Clark Finance Ltd,20685,,
Chorley Borough Council,http://statistics.data.gov.uk/id/local-authority/30UE,Control Accounts,Control,GOVN - Policy & Governance,Manual Control Account,00001,Balance Sheet,Balance,- VAT,15/02/2023,0177116,-£22.13,Revenue,Arnold Clark Finance Ltd,20685,,
Chorley Borough Council,http://statistics.data.gov.uk/id/local-authority/30UE,Control Accounts,Control,GOVN - Policy & Governance,Manual Control Account,00001,Balance Sheet,Balance,- VAT,15/02/2023,0177116,-£17.45,Revenue,Arnold Clark Finance Ltd,20685,,
Chorley Borough Council,http://statistics.data.gov.uk/id/local-authority/30UE,Control Accounts,Control,GOVN - Policy & Governance,Manual Control Account,00001,Balance Sheet,Balance,- VAT,15/02/2023,0177116,-£27.30,Revenue,Arnold Clark Finance Ltd,20685,,
Chorley Borough Council,http://statistics.data.gov.uk/id/local-authority/30UE,Control Accounts,Control,GOVN - Policy & Governance,Manual Control Account,00001,Balance Sheet,Balance,- VAT,15/02/2023,0177116,-£23.05,Revenue,Arnold Clark Finance Ltd,20685,,
Chorley Borough Council,http://statistics.data.gov.uk/id/local-authority/30UE,Control Accounts,Control,GOVN - Policy & Governance,Manual Control Account,00001,Balance Sheet,Balance,- VAT,15/02/2023,0177117,-£22.13,Revenue,Arnold Clark Finance Ltd,20685,,
Chorley Borough Council,http://statistics.data.gov.uk/id/local-authority/30UE,Control Accounts,Control,GOVN - Policy & Governance,Manual Control Account,00001,Balance Sheet,Balance,- VAT,15/02/2023,0177117,-£17.45,Revenue,Arnold Clark Finance Ltd,20685,,
Chorley Borough Council,http://statistics.data.gov.uk/id/local-authority/30UE,Control Accounts,Control,GOVN - Policy & Governance,Manual Control Account,00001,Balance Sheet,Balance,- VAT,15/02/2023,0177117,-£27.30,Revenue,Arnold Clark Finance Ltd,20685,,
Chorley Borough Council,http://statistics.data.gov.uk/id/local-authority/30UE,Control Accounts,Control,GOVN - Policy & Governance,Manual Control Account,00001,Balance Sheet,Balance,- VAT,15/02/2023,0177117,-£23.05,Revenue,Arnold Clark Finance Ltd,20685,,
Chorley Borough Council,http://statistics.data.gov.uk/id/local-authority/30UE,Control Accounts,Control,GOVN - Policy & Governance,Manual Control Account,00001,Balance Sheet,Balance,- VAT,15/02/2023,0177118,-£22.13,Revenue,Arnold Clark Finance Ltd,20685,,
Chorley Borough Council,http://statistics.data.gov.uk/id/local-authority/30UE,Control Accounts,Control,GOVN - Policy & Governance,Manual Control Account,00001,Balance Sheet,Balance,- VAT,15/02/2023,0177118,-£17.45,Revenue,Arnold Clark Finance Ltd,20685,,
Chorley Borough Council,http://statistics.data.gov.uk/id/local-authority/30UE,Control Accounts,Control,GOVN - Policy & Governance,Manual Control Account,00001,Balance Sheet,Balance,- VAT,15/02/2023,0177118,-£27.30,Revenue,Arnold Clark Finance Ltd,20685,,
Chorley Borough Council,http://statistics.data.gov.uk/id/local-authority/30UE,Control Accounts,Control,GOVN - Policy & Governance,Manual Control Account,00001,Balance Sheet,Balance,- VAT,15/02/2023,0177118,-£23.05,Revenue,Arnold Clark Finance Ltd,20685,,
Chorley Borough Council,http://statistics.data.gov.uk/id/local-authority/30UE,Business Support,1095,GOVN - Policy & Governance,Grants To Other Organisations,40127,Grants and Subscriptions,5031,chorley big grant,08/02/2023,0176882,"£4,000.00",Revenue,Aspect Mortgages Limited,87104,,
Chorley Borough Council,http://statistics.data.gov.uk/id/local-authority/30UE,Service Management & Support,1009,CUST - Customer & Digital,Vehicles and Plant Maintenance,30045,Direct Transport Costs,5016,NUMBER PLATE REDACTED MOTSERVICERepair to door hingeMarker light,08/02/2023,0176791,£245.03,Revenue,Autofit,78140,,
Chorley Borough Council,http://statistics.data.gov.uk/id/local-authority/30UE,Service Management & Support,1009,CUST - Customer & Digital,Vehicles and Plant Maintenance,30045,Direct Transport Costs,5016,mot,08/02/2023,0176791,£49.50,Revenue,Autofit,78140,,
Chorley Borough Council,http://statistics.data.gov.uk/id/local-authority/30UE,Service Management & Support,1009,CUST - Customer & Digital,Hire Of Vehicles and Plant,30028,Contrct Hire & Operating Lease,5018,As per submission to NAME REDACTED invitation to Tender for the contract hire with service and maintenance of Grounds Maintenance Machinery,08/02/2023,0175559,"£1,242.40",Revenue,Balmers Garden Machinery,17075,,
Chorley Borough Council,http://statistics.data.gov.uk/id/local-authority/30UE,Service Management & Support,1009,CUST - Customer & Digital,Hire Of Vehicles and Plant,30028,Contrct Hire & Operating Lease,5018,As per submission to NAME REDACTED invitation to Tender for the contract hire with service and maintenance of Grounds Maintenance Machinery,08/02/2023,0176752,"£1,242.40",Revenue,Balmers Garden Machinery,17075,,
Chorley Borough Council,http://statistics.data.gov.uk/id/local-authority/30UE,Corporate Management,1008,GOVN - Policy & Governance,Bank Charges,40151,Miscellaneous Expenses,5034,,03/02/2023,0175280,"£2,263.92",Revenue,Barclaycard Merchant Services,61601,,
Chorley Borough Council,http://statistics.data.gov.uk/id/local-authority/30UE,Corporate Management,1008,GOVN - Policy & Governance,Bank Charges,40151,Miscellaneous Expenses,5034,,03/02/2023,0175281,"£1,235.21",Revenue,Barclaycard Merchant Services,61601,,
Chorley Borough Council,http://statistics.data.gov.uk/id/local-authority/30UE,Corporate Management,1008,GOVN - Policy & Governance,Bank Charges,40151,Miscellaneous Expenses,5034,,03/02/2023,0175282,£423.19,Revenue,Barclaycard Merchant Services,61601,,
Chorley Borough Council,http://statistics.data.gov.uk/id/local-authority/30UE,Corporate Management,1008,GOVN - Policy & Governance,Bank Charges,40151,Miscellaneous Expenses,5034,,03/02/2023,0175283,£217.00,Revenue,Barclaycard Merchant Services,61601,,
Chorley Borough Council,http://statistics.data.gov.uk/id/local-authority/30UE,Corporate Management,1008,GOVN - Policy & Governance,Bank Charges,40151,Miscellaneous Expenses,5034,,03/02/2023,0175283,£99.41,Revenue,Barclaycard Merchant Services,61601,,
Chorley Borough Council,http://statistics.data.gov.uk/id/local-authority/30UE,Corporate Management,1008,GOVN - Policy & Governance,Bank Charges,40151,Miscellaneous Expenses,5034,,03/02/2023,0175288,£217.00,Revenue,Barclaycard Merchant Services,61601,,
Chorley Borough Council,http://statistics.data.gov.uk/id/local-authority/30UE,Corporate Management,1008,GOVN - Policy & Governance,Bank Charges,40151,Miscellaneous Expenses,5034,,03/02/2023,0175288,£76.02,Revenue,Barclaycard Merchant Services,61601,,
Chorley Borough Council,http://statistics.data.gov.uk/id/local-authority/30UE,Corporate Management,1008,GOVN - Policy & Governance,Bank Charges,40151,Miscellaneous Expenses,5034,,03/02/2023,0175291,"£1,421.35",Revenue,Barclaycard Merchant Services,61601,,
Chorley Borough Council,http://statistics.data.gov.uk/id/local-authority/30UE,Corporate Management,1008,GOVN - Policy & Governance,Bank Charges,40151,Miscellaneous Expenses,5034,,03/02/2023,0175293,"£2,197.17",Revenue,Barclaycard Merchant Services,61601,,
Chorley Borough Council,http://statistics.data.gov.uk/id/local-authority/30UE,Service Management & Support,1009,CUST - Customer & Digital,Grounds Maintenance Contractor,20043,Grounds Maintenance Costs,5013,Fell Sorbus opposite ADDRESS REDACTED,08/02/2023,0175560,£390.00,Revenue,Beardwood Tree Services,77437,,
Chorley Borough Council,http://statistics.data.gov.uk/id/local-authority/30UE,Culture & Heritage,1036,GOVN - Policy & Governance,Arts Development Initiatives,40187,Miscellaneous Expenses,5034,Artists Fees - Full Christmas installation,08/02/2023,0176608,"£1,500.00",Revenue,Beata Podstawa,86982,,
Chorley Borough Council,http://statistics.data.gov.uk/id/local-authority/30UE,Development Control,1091,PLAN - Planning & Development,Professional Fees,40063,Services,5027,Growth LancashireJob: Provision of heritage advice in respect of planning applicationsTime period: 1 April 2022 – 31 March 2023,01/02/2023,0176414,"£5,114.75",Revenue,Blackburn with Darwen Borough Council,21000,,
Chorley Borough Council,http://statistics.data.gov.uk/id/local-authority/30UE,Development Control,1091,PLAN - Planning & Development,Professional Fees,40063,Services,5027,Growth LancashireJob: Provision of heritage advice in respect of planning applicationsTime period: 1 April 2022 – 31 March 2023,01/02/2023,0176423,"£3,058.65",Revenue,Blackburn with Darwen Borough Council,21000,,
Chorley Borough Council,http://statistics.data.gov.uk/id/local-authority/30UE,Central Support Services,1009,GOVN - Policy & Governance,External Contractor,40198,Miscellaneous Expenses,5034,Standing Charge for system access for Chorley,08/02/2023,0176751,"£15,000.00",Revenue,Blackpool Borough Council,16518,,
Chorley Borough Council,http://statistics.data.gov.uk/id/local-authority/30UE,Capital,Capital,PLAN - Planning & Development,Main Contractor,03007,Capital Expenditure,Capital,Tree Mapping NTM - Year 2 annual license for continued use of NTM data already in use at Chorley BoroughCouncil. Year 2 license t,01/02/2023,0175542,£823.00,Capital,Bluesky International Ltd,84482,,
Chorley Borough Council,http://statistics.data.gov.uk/id/local-authority/30UE,Business Support,1095,GROW - Commercial & Property,Refunds,40220,Miscellaneous Expenses,5034,Completion,03/02/2023,0175541,"£21,327.01",Revenue,BOOTS OPTICIANS PROFESSIONAL SRVCS LTD,87085,,
Chorley Borough Council,http://statistics.data.gov.uk/id/local-authority/30UE,Business Support,1095,GROW - Commercial & Property,Legal Fees,40171,Miscellaneous Expenses,5034,Costs for preparing court order,03/02/2023,0175541,£400.00,Revenue,BOOTS OPTICIANS PROFESSIONAL SRVCS LTD,87085,,
Chorley Borough Council,http://statistics.data.gov.uk/id/local-authority/30UE,Business Support,1095,GROW - Commercial & Property,Legal Fees,40171,Miscellaneous Expenses,5034,Fee for filling order,03/02/2023,0175541,£108.00,Revenue,BOOTS OPTICIANS PROFESSIONAL SRVCS LTD,87085,,
Chorley Borough Council,http://statistics.data.gov.uk/id/local-authority/30UE,Business Support,1095,GROW - Commercial & Property,General Repairs - Reactive,20004,Repairs Maintenance & Alts,5005,Service Yard 3Quote ref 4282The existing gate need to be adjusted on the hinges and the bottom rollers replaced.,08/02/2023,0176687,£636.00,Revenue,Boundary Gate and Barrier Contracts Ltd,78225,,
Chorley Borough Council,http://statistics.data.gov.uk/id/local-authority/30UE,Capital,Capital,GROW - Commercial & Property,Other Contractor,03012,Capital Expenditure,Capital,Strawberry Fields BarrierAs per quote 4061 to NAME REDACTED Amendment for additional ducting works (+£3924),08/02/2023,0176689,"£18,027.00",Capital,Boundary Gate and Barrier Contracts Ltd,78225,,
Chorley Borough Council,http://statistics.data.gov.uk/id/local-authority/30UE,Capital,Capital,GROW - Commercial & Property,Other Contractor,03012,Capital Expenditure,Capital,Strawberry Fields4178rev1Supply and fit new 7m manual barrier with end support post.NAME REDACTED will do the concrete base for the barrier,08/02/2023,0176690,"£3,002.00",Capital,Boundary Gate and Barrier Contracts Ltd,78225,,
Chorley Borough Council,http://statistics.data.gov.uk/id/local-authority/30UE,Central Support Services,1009,GROW - Commercial & Property,General Repairs - Reactive,20004,Repairs Maintenance & Alts,5005,NAME REDACTED Asbestos survey,15/02/2023,0176775,£389.00,Revenue,Bradley Environmental Consultants Ltd,77154,,
Chorley Borough Council,http://statistics.data.gov.uk/id/local-authority/30UE,Economic Development,1096,GROW - Commercial & Property,Electricity,20013,Energy Costs,5006,13 December 2021 to 17 August 2022,08/02/2023,0176885,"£37,834.87",Revenue,British Gas Business,22242,,
Chorley Borough Council,http://statistics.data.gov.uk/id/local-authority/30UE,Economic Development,1096,GROW - Commercial & Property,Electricity,20013,Energy Costs,5006,8 December 2022 to 23 December 2022,08/02/2023,0176886,"£7,071.07",Revenue,British Gas Business,22242,,
Chorley Borough Council,http://statistics.data.gov.uk/id/local-authority/30UE,Economic Development,1096,GROW - Commercial & Property,Electricity,20013,Energy Costs,5006,18 August 2022 to 21 September 2022,08/02/2023,0176887,"£5,066.09",Revenue,British Gas Business,22242,,
Chorley Borough Council,http://statistics.data.gov.uk/id/local-authority/30UE,Central Support Services,1009,CUST - Customer & Digital,Telephones - Other,40085,Communication and Computing,5028,ADDRESS REDACTED,08/02/2023,0176883,"£3,837.81",Revenue,British Telecommunications Plc,17131,,
Chorley Borough Council,http://statistics.data.gov.uk/id/local-authority/30UE,Central Support Services,1009,GROW - Commercial & Property,General Repairs - Reactive,20004,Repairs Maintenance & Alts,5005,Cotswold - Reactive repair works,01/02/2023,0175467,£760.32,Revenue,Bryan Lee Building Contractors Ltd,78160,,
Chorley Borough Council,http://statistics.data.gov.uk/id/local-authority/30UE,Central Support Services,1009,GROW - Commercial & Property,General Repairs - Reactive,20004,Repairs Maintenance & Alts,5005,community centres - Reactive repair works,01/02/2023,0175514,£470.93,Revenue,Bryan Lee Building Contractors Ltd,78160,,
Chorley Borough Council,http://statistics.data.gov.uk/id/local-authority/30UE,Central Support Services,1009,GROW - Commercial & Property,General Repairs - Reactive,20004,Repairs Maintenance & Alts,5005,Sports pitch / pavilions- Reactive repair works,01/02/2023,0175515,£340.56,Revenue,Bryan Lee Building Contractors Ltd,78160,,
Chorley Borough Council,http://statistics.data.gov.uk/id/local-authority/30UE,Central Support Services,1009,GROW - Commercial & Property,General Repairs - Reactive,20004,Repairs Maintenance & Alts,5005,Housing - Reactive repair works,01/02/2023,0175517,"£2,193.38",Revenue,Bryan Lee Building Contractors Ltd,78160,,
Chorley Borough Council,http://statistics.data.gov.uk/id/local-authority/30UE,Central Support Services,1009,GROW - Commercial & Property,General Repairs - Reactive,20004,Repairs Maintenance & Alts,5005,Housing - Reactive repair works,01/02/2023,0175525,"£1,993.48",Revenue,Bryan Lee Building Contractors Ltd,78160,,
Chorley Borough Council,http://statistics.data.gov.uk/id/local-authority/30UE,Central Support Services,1009,GROW - Commercial & Property,General Repairs - Reactive,20004,Repairs Maintenance & Alts,5005,community centres - Reactive repair works,01/02/2023,0175561,£405.39,Revenue,Bryan Lee Building Contractors Ltd,78160,,
Chorley Borough Council,http://statistics.data.gov.uk/id/local-authority/30UE,Central Support Services,1009,GROW - Commercial & Property,General Repairs - Reactive,20004,Repairs Maintenance & Alts,5005,Housing - Reactive repair works,01/02/2023,0175562,"£1,137.76",Revenue,Bryan Lee Building Contractors Ltd,78160,,
Chorley Borough Council,http://statistics.data.gov.uk/id/local-authority/30UE,Central Support Services,1009,GROW - Commercial & Property,General Repairs - Reactive,20004,Repairs Maintenance & Alts,5005,Housing - Reactive repair works,01/02/2023,0175563,"£1,150.36",Revenue,Bryan Lee Building Contractors Ltd,78160,,
Chorley Borough Council,http://statistics.data.gov.uk/id/local-authority/30UE,Central Support Services,1009,GROW - Commercial & Property,General Repairs - Reactive,20004,Repairs Maintenance & Alts,5005,Housing - Reactive repair works,01/02/2023,0175565,£646.65,Revenue,Bryan Lee Building Contractors Ltd,78160,,
Chorley Borough Council,http://statistics.data.gov.uk/id/local-authority/30UE,Central Support Services,1009,GROW - Commercial & Property,General Repairs - Reactive,20004,Repairs Maintenance & Alts,5005,Town Hall - Reactive repair works,22/02/2023,0177237,"£1,143.19",Revenue,Bryan Lee Building Contractors Ltd,78160,,
Chorley Borough Council,http://statistics.data.gov.uk/id/local-authority/30UE,Central Support Services,1009,GROW - Commercial & Property,General Repairs - Reactive,20004,Repairs Maintenance & Alts,5005,Union St - Reactive repair works,22/02/2023,0177240,£640.17,Revenue,Bryan Lee Building Contractors Ltd,78160,,
Chorley Borough Council,http://statistics.data.gov.uk/id/local-authority/30UE,Central Support Services,1009,GROW - Commercial & Property,General Repairs - Reactive,20004,Repairs Maintenance & Alts,5005,Primrose Gardens - Reactive repair works,22/02/2023,0177242,£389.75,Revenue,Bryan Lee Building Contractors Ltd,78160,,
Chorley Borough Council,http://statistics.data.gov.uk/id/local-authority/30UE,Central Support Services,1009,GROW - Commercial & Property,General Repairs - Reactive,20004,Repairs Maintenance & Alts,5005,Primrose Gardens - Reactive repair works,22/02/2023,0177243,£712.99,Revenue,Bryan Lee Building Contractors Ltd,78160,,
Chorley Borough Council,http://statistics.data.gov.uk/id/local-authority/30UE,Central Support Services,1009,CUST - Customer & Digital,Telephones - Rentals,40083,Communication and Computing,5028,cctv,01/02/2023,0176474,"£3,302.03",Revenue,BT Redcare,21115,,
Chorley Borough Council,http://statistics.data.gov.uk/id/local-authority/30UE,Central Support Services,1009,CUST - Customer & Digital,Telephones - Rentals,40083,Communication and Computing,5028,cctv,01/02/2023,0176475,"£2,126.88",Revenue,BT Redcare,21115,,
Chorley Borough Council,http://statistics.data.gov.uk/id/local-authority/30UE,Capital,Capital,GROW - Commercial & Property,Main Contractor,03007,Capital Expenditure,Capital,Astley Hall Renovation / Conservation Project,22/02/2023,0177141,"£49,636.21",Capital,Bullen Conservation Ltd,68424,,
Chorley Borough Council,http://statistics.data.gov.uk/id/local-authority/30UE,Service Management & Support,1009,CUST - Customer & Digital,External Contractor,40198,Miscellaneous Expenses,5034,Bengal St Depot – Empty yard catch pits each month – 400.00 x 12 = 4800.00Bengal St Depot – Empty yard interceptor every 3 months,08/02/2023,0175567,£400.00,Revenue,C J Lyon,16579,,
Chorley Borough Council,http://statistics.data.gov.uk/id/local-authority/30UE,Homelessness,1075,EARL - Communities,Professional Fees,40063,Services,5027,Provision of Accommodation Finding Service (24 Hours) and Resettlement Service (6 Hours)01/04/2022 - 30/06/2022,15/02/2023,0176833,"£7,286.50",Revenue,Calico Enterprise,73338,,
Chorley Borough Council,http://statistics.data.gov.uk/id/local-authority/30UE,Homelessness,1075,EARL - Communities,Service Fees,40056,Services,5027,Provision of accommodation finding service and resettlement support for Quarter 2 (2022/23) covering the below period:1st July - ,22/02/2023,0177180,"£7,286.50",Revenue,Calico Enterprise,73338,,
Chorley Borough Council,http://statistics.data.gov.uk/id/local-authority/30UE,Homelessness,1075,EARL - Communities,Service Fees,40056,Services,5027,Provision of accommodation finding service and resettlement support for Quarter 3 (2022/23) covering the below period:1st October,22/02/2023,0177181,"£7,286.50",Revenue,Calico Enterprise,73338,,
Chorley Borough Council,http://statistics.data.gov.uk/id/local-authority/30UE,Homelessness,1075,EARL - Communities,Service Fees,40056,Services,5027,Provision of accommodation finding service and resettlement support for Quarter 4 (2022/23) covering the below period:1st January,22/02/2023,0177182,"£7,286.50",Revenue,Calico Enterprise,73338,,
Chorley Borough Council,http://statistics.data.gov.uk/id/local-authority/30UE,Central Support Services,1009,CUST - Customer & Digital,Emergency Call Out System,40096,Communication and Computing,5028,Out of Hours call charges 22/23,15/02/2023,0175332,£221.76,Revenue,CallCare Ltd,20257,,
Chorley Borough Council,http://statistics.data.gov.uk/id/local-authority/30UE,Central Support Services,1009,CUST - Customer & Digital,Emergency Call Out System,40096,Communication and Computing,5028,Out of Hours standing charge 22/23,15/02/2023,0175332,£120.00,Revenue,CallCare Ltd,20257,,
Chorley Borough Council,http://statistics.data.gov.uk/id/local-authority/30UE,Central Support Services,1009,CUST - Customer & Digital,Misc Expenses,40200,Miscellaneous Expenses,5034,GB-505918-oks,01/02/2023,0175518,"£1,236.87",Revenue,Canon (UK) Ltd,17492,,
Chorley Borough Council,http://statistics.data.gov.uk/id/local-authority/30UE,Central Support Services,1009,CUST - Customer & Digital,Misc Expenses,40200,Miscellaneous Expenses,5034,GB-506449-oks,01/02/2023,0175518,£0.34,Revenue,Canon (UK) Ltd,17492,,
Chorley Borough Council,http://statistics.data.gov.uk/id/local-authority/30UE,Central Support Services,1009,CUST - Customer & Digital,IT Software - Annual Licences,40101,Communication and Computing,5028,2 days remote basic proprint training,01/02/2023,0175306,"£2,600.00",Revenue,Capita Business Services Ltd,17151,,
Chorley Borough Council,http://statistics.data.gov.uk/id/local-authority/30UE,Building Control,1090,PLAN - Planning & Development,Agency Staff,13000,Direct Employee Expenses,5001,Agency fees for NAME REDACTED Building Control Officer ongoing,15/02/2023,0175267,"£1,608.00",Revenue,Carrington West Ltd,83124,,
Chorley Borough Council,http://statistics.data.gov.uk/id/local-authority/30UE,Building Control,1090,PLAN - Planning & Development,Agency Staff,13000,Direct Employee Expenses,5001,Agency fees for NAME REDACTED Building Control Officer ongoing,15/02/2023,0175268,"£1,392.00",Revenue,Carrington West Ltd,83124,,
Chorley Borough Council,http://statistics.data.gov.uk/id/local-authority/30UE,Building Control,1090,PLAN - Planning & Development,Agency Staff,13000,Direct Employee Expenses,5001,Agency fees for NAME REDACTED Building Control Officer ongoing,15/02/2023,0175269,£816.00,Revenue,Carrington West Ltd,83124,,
Chorley Borough Council,http://statistics.data.gov.uk/id/local-authority/30UE,Building Control,1090,PLAN - Planning & Development,Agency Staff,13000,Direct Employee Expenses,5001,Agency fees for NAME REDACTED Building Control Officer ongoing,08/02/2023,0176734,"£1,200.00",Revenue,Carrington West Ltd,83124,,
Chorley Borough Council,http://statistics.data.gov.uk/id/local-authority/30UE,Building Control,1090,PLAN - Planning & Development,Agency Staff,13000,Direct Employee Expenses,5001,Agency fees for NAME REDACTED Building Control Officer ongoing,22/02/2023,0177069,"£1,176.00",Revenue,Carrington West Ltd,83124,,
Chorley Borough Council,http://statistics.data.gov.uk/id/local-authority/30UE,Building Control,1090,PLAN - Planning & Development,Agency Staff,13000,Direct Employee Expenses,5001,Agency fees for NAME REDACTED Building Control Officer ongoing,22/02/2023,0177247,"£1,176.00",Revenue,Carrington West Ltd,83124,,
Chorley Borough Council,http://statistics.data.gov.uk/id/local-authority/30UE,Central Support Services,1009,CUST - Customer & Digital,CCTV Camera Maintenance,40007,"Equipment, Furniture & Materia",5023,Site Visits - CCTVLeisure centre detailed surveysManor RoadCunnery Meadows,15/02/2023,0176928,"£3,000.00",Revenue,CCTV Services Limited,71330,,
Chorley Borough Council,http://statistics.data.gov.uk/id/local-authority/30UE,Central Support Services,1009,CUST - Customer & Digital,Consultants` Fees,40077,Services,5027,Survey of existing South Ribble equipment8 hoursSurvey for expansion of South Ribble system8 hoursSurvey of Chorley system re rel,15/02/2023,0176929,"£4,200.00",Revenue,CCTV Services Limited,71330,,
Chorley Borough Council,http://statistics.data.gov.uk/id/local-authority/30UE,Business Support,1095,GROW - Commercial & Property,Salting & Gritting,20059,Grounds Maintenance Costs,5013,"Seasonal Winter Gritting service for Market Walk Shopping Centre, service yards, public walkways and car park as discussed Quote ",15/02/2023,0176951,"£2,638.36",Revenue,Chameleon Facilities Limited,78464,,
Chorley Borough Council,http://statistics.data.gov.uk/id/local-authority/30UE,Business Support,1095,GROW - Commercial & Property,Salting & Gritting,20059,Grounds Maintenance Costs,5013,"Seasonal Winter Gritting service for Strawberry Fields Digital Office Park, public walkways and car parks as discussed Quote per ",15/02/2023,0176951,"£2,083.13",Revenue,Chameleon Facilities Limited,78464,,
Chorley Borough Council,http://statistics.data.gov.uk/id/local-authority/30UE,Business Support,1095,GROW - Commercial & Property,Salting & Gritting,20059,Grounds Maintenance Costs,5013,"Seasonal Winter Gritting service for Primrose Gardens Retirement Village, public walkways and car park as discussed Quote per vis",15/02/2023,0176951,"£1,740.97",Revenue,Chameleon Facilities Limited,78464,,
Chorley Borough Council,http://statistics.data.gov.uk/id/local-authority/30UE,Homelessness,1075,GROW - Commercial & Property,Salting & Gritting,20059,Grounds Maintenance Costs,5013,"Seasonal Winter Gritting service for Cotswold House supported Living Accommodation, public walkways and car park as discussed Quo",15/02/2023,0176951,"£1,055.66",Revenue,Chameleon Facilities Limited,78464,,
Chorley Borough Council,http://statistics.data.gov.uk/id/local-authority/30UE,Economic Development,1096,GROW - Commercial & Property,Salting & Gritting,20059,Grounds Maintenance Costs,5013,Seasonal Winter Gritting service for Market Place (either side of Chorley Covered Market) as discussed.Quote per visit £35.79 Tot,15/02/2023,0176951,£509.27,Revenue,Chameleon Facilities Limited,78464,,
Chorley Borough Council,http://statistics.data.gov.uk/id/local-authority/30UE,Central Support Services,1009,GOVN - Policy & Governance,HR Recruitment - Advertising,15300,Indirect Employee Expenses,5002,Advertising in NAME REDACTED for Public Protection Team Leader,15/02/2023,0176949,£800.00,Revenue,Chartered Institute of Environmental Health,16224,,
Chorley Borough Council,http://statistics.data.gov.uk/id/local-authority/30UE,Regulatory Services,1048,PLAN - Planning & Development,Taxi Testing & Vehicle Safety Report,40234,Services,5027,mot,15/02/2023,0176615,"£1,151.85",Revenue,Chorley Autocare Ltd,17110,,
Chorley Borough Council,http://statistics.data.gov.uk/id/local-authority/30UE,Regulatory Services,1048,PLAN - Planning & Development,Taxi Testing & Vehicle Safety Report,40234,Services,5027,taxi test,15/02/2023,0176615,£179.55,Revenue,Chorley Autocare Ltd,17110,,
Chorley Borough Council,http://statistics.data.gov.uk/id/local-authority/30UE,Central Support Services,1009,GOVN - Policy & Governance,Tools & Equipment - Purchase,40003,"Equipment, Furniture & Materia",5023,26w 4pin clde265cw x48 £4.31 each = £206.8826w 2 pin cld265scw x24 £3.23 each = £77.528w 12inch t5 x50 £2.11 each = £105.50,15/02/2023,0176616,£379.10,Revenue,Chorley Electrical Traders Ltd,16330,,
Chorley Borough Council,http://statistics.data.gov.uk/id/local-authority/30UE,Central Support Services,1009,GOVN - Policy & Governance,External Contractor,40198,Miscellaneous Expenses,5034,Leading the parade at the Freedom of the Borough event in Chorley town centre on Saturday 28 January 2023.,08/02/2023,0176781,£400.00,Revenue,Chorley Pipe Band,21576,,
Chorley Borough Council,http://statistics.data.gov.uk/id/local-authority/30UE,Central Support Services,1009,GOVN - Policy & Governance,External Contractor,40198,Miscellaneous Expenses,5034,Additional fee for car parking charges for Freedom of the Borough event on 28 January 2023,08/02/2023,0176781,£10.00,Revenue,Chorley Pipe Band,21576,,
Chorley Borough Council,http://statistics.data.gov.uk/id/local-authority/30UE,Corporate Management,1008,EARL - Communities,Grants to Chorley T.C.Initiative,40128,Grants and Subscriptions,5031,United Reformed Church HSF Payment,08/02/2023,0176617,"£3,300.00",Revenue,Chorley United Reformed Church,77003,,
Chorley Borough Council,http://statistics.data.gov.uk/id/local-authority/30UE,Central Support Services,1009,EARL - Communities,Children's Activities,40188,Miscellaneous Expenses,5034,Final Chorley HAF payment for the delivery of 2022 programme in Chorley.Includes additional £18.5k for Christmas 2022,22/02/2023,0177183,"£54,689.61",Revenue,Chorley Youth Zone,77339,,
Chorley Borough Council,http://statistics.data.gov.uk/id/local-authority/30UE,Central Support Services,1009,GOVN - Policy & Governance,Training Course Fees,17010,Indirect Employee Expenses,5002,Attendance for year-end webinar training session on 02-Feb-2023,08/02/2023,0176656,£315.00,Revenue,Civica UK Limited,17463,,
Chorley Borough Council,http://statistics.data.gov.uk/id/local-authority/30UE,Central Support Services,1009,GROW - Commercial & Property,General Repairs - Reactive,20004,Repairs Maintenance & Alts,5005,Union St - Lifts Reactive Repairs,15/02/2023,0176703,£650.91,Revenue,Classic Lifts Limited,20897,,
Chorley Borough Council,http://statistics.data.gov.uk/id/local-authority/30UE,Central Support Services,1009,EARL - Communities,Misc Expenses,40200,Miscellaneous Expenses,5034,Chorley Council Youth Activity Fund 2023Community funding scheme as per grant agreement,08/02/2023,0176774,"£1,000.00",Revenue,Coppull Parish Council,17025,,
Chorley Borough Council,http://statistics.data.gov.uk/id/local-authority/30UE,Community Development,1097,GROW - Commercial & Property,Gas,20014,Energy Costs,5006,nov-dec 22,22/02/2023,0176844,£352.11,Revenue,Corona Energy Retail 2 Ltd,67249,,
Chorley Borough Council,http://statistics.data.gov.uk/id/local-authority/30UE,Homelessness,1075,GROW - Commercial & Property,Gas,20014,Energy Costs,5006,Cotswold house,15/02/2023,0177051,"£3,465.86",Revenue,Corona Energy Retail 2 Ltd,67249,,
Chorley Borough Council,http://statistics.data.gov.uk/id/local-authority/30UE,Central Support Services,1009,GROW - Commercial & Property,Gas,20014,Energy Costs,5006,Civic office,15/02/2023,0177052,"£4,955.32",Revenue,Corona Energy Retail 2 Ltd,67249,,
Chorley Borough Council,http://statistics.data.gov.uk/id/local-authority/30UE,Recreation & Sport,1037,GROW - Commercial & Property,Gas,20014,Energy Costs,5006,Eaves Green,15/02/2023,0177053,£331.52,Revenue,Corona Energy Retail 2 Ltd,67249,,
Chorley Borough Council,http://statistics.data.gov.uk/id/local-authority/30UE,Recreation & Sport,1037,GROW - Commercial & Property,Gas,20014,Energy Costs,5006,Clayton Brook,15/02/2023,0177054,£473.82,Revenue,Corona Energy Retail 2 Ltd,67249,,
Chorley Borough Council,http://statistics.data.gov.uk/id/local-authority/30UE,Recreation & Sport,1037,GROW - Commercial & Property,Gas,20014,Energy Costs,5006,Buttermere,15/02/2023,0177055,£507.41,Revenue,Corona Energy Retail 2 Ltd,67249,,
Chorley Borough Council,http://statistics.data.gov.uk/id/local-authority/30UE,Recreation & Sport,1037,GROW - Commercial & Property,Gas,20014,Energy Costs,5006,Astley Village Comm ctr,15/02/2023,0177056,"£1,267.00",Revenue,Corona Energy Retail 2 Ltd,67249,,
Chorley Borough Council,http://statistics.data.gov.uk/id/local-authority/30UE,Central Support Services,1009,GROW - Commercial & Property,Gas,20014,Energy Costs,5006,Town Hall,15/02/2023,0177062,"£1,831.74",Revenue,Corona Energy Retail 2 Ltd,67249,,
Chorley Borough Council,http://statistics.data.gov.uk/id/local-authority/30UE,Central Support Services,1009,GROW - Commercial & Property,Gas,20014,Energy Costs,5006,Westway,15/02/2023,0177063,"£1,019.53",Revenue,Corona Energy Retail 2 Ltd,67249,,
Chorley Borough Council,http://statistics.data.gov.uk/id/local-authority/30UE,Recreation & Sport,1037,GROW - Commercial & Property,Gas,20014,Energy Costs,5006,Astley village comm ctr,15/02/2023,0177064,£865.20,Revenue,Corona Energy Retail 2 Ltd,67249,,
Chorley Borough Council,http://statistics.data.gov.uk/id/local-authority/30UE,Open Spaces,1038,GROW - Commercial & Property,Gas,20014,Energy Costs,5006,Astley Coach house,15/02/2023,0177065,"£1,425.08",Revenue,Corona Energy Retail 2 Ltd,67249,,
Chorley Borough Council,http://statistics.data.gov.uk/id/local-authority/30UE,Service Management Support,1009,GROW - Commercial & Property,Gas,20014,Energy Costs,5006,Astley Farm,15/02/2023,0177066,£250.30,Revenue,Corona Energy Retail 2 Ltd,67249,,
Chorley Borough Council,http://statistics.data.gov.uk/id/local-authority/30UE,Recreation & Sport,1037,GROW - Commercial & Property,Gas,20014,Energy Costs,5006,oct to nov 22,22/02/2023,0177293,"£2,821.06",Revenue,Corona Energy Retail 2 Ltd,67249,,
Chorley Borough Council,http://statistics.data.gov.uk/id/local-authority/30UE,Central Support Services,1009,EARL - Communities,Misc Expenses,40200,Miscellaneous Expenses,5034,"Client: Chorley Borough Council - Site: All Seasons Leisure centre, Water street, Chorley PR7 1EXService: Serve and Evict.",08/02/2023,0176598,"£1,550.00",Revenue,COURT ENFORCEMENT SPECIALISTS LTD,77924,,
Chorley Borough Council,http://statistics.data.gov.uk/id/local-authority/30UE,Central Support Services,1009,GROW - Commercial & Property,General Repairs - Reactive,20004,Repairs Maintenance & Alts,5005,"Primrose Gardens - Flat 30TVS / T66 3mm Acoustic Underlay underlay cork /To supply and install Regupol to Bed, Lounge, hall .Poly",08/02/2023,0175471,"£1,842.91",Revenue,CRT Flooring Specialists Ltd,78207,,
Chorley Borough Council,http://statistics.data.gov.uk/id/local-authority/30UE,Capital,Capital,EARL - Communities,Grants,03002,Capital Expenditure,Capital,NAME REDACTED,08/02/2023,0176847,"£4,885.00",Capital,NAME REDACTED,78482,,
Chorley Borough Council,http://statistics.data.gov.uk/id/local-authority/30UE,Business Support,1095,GROW - Commercial & Property,Cleaning/Attendants' Services,20041,Cleaning and Domestic Supplies,5012,Per your week 42 invoice 655069. Cleaning cover week ending 15.01.23 for 23 hours @ £13.80,15/02/2023,0176671,£317.40,Revenue,Daniel Adams Recruitment,78104,,
Chorley Borough Council,http://statistics.data.gov.uk/id/local-authority/30UE,Business Support,1095,GROW - Commercial & Property,Cleaning/Attendants' Services,20041,Cleaning and Domestic Supplies,5012,Per your week 44 invoice 655099 - cleaning cover week ending 29/01/23 for 20 hours @ £13.80,08/02/2023,0176723,£276.00,Revenue,Daniel Adams Recruitment,78104,,
Chorley Borough Council,http://statistics.data.gov.uk/id/local-authority/30UE,Business Support,1095,GROW - Commercial & Property,Cleaning/Attendants' Services,20041,Cleaning and Domestic Supplies,5012,"Per your week 43 invoice 655082, cleaning cover for week ending 22.01.23 for 20 hours @ £13.80",15/02/2023,0176748,£276.00,Revenue,Daniel Adams Recruitment,78104,,
Chorley Borough Council,http://statistics.data.gov.uk/id/local-authority/30UE,Central Support Services,1009,CUST - Customer & Digital,Computer Equipment-Purchase,40098,Communication and Computing,5028,"APC Smart-UPS On-Line, 20kVA/20kW, Rack/Tower, 230V/380V...415V, Hard wire 5-wire(3P+N+E)+3-wire(1P+N+E), Network Card, W/O rail ",22/02/2023,0176669,"£5,897.75",Revenue,Data Centre UK,85504,,
Chorley Borough Council,http://statistics.data.gov.uk/id/local-authority/30UE,Central Support Services,1009,CUST - Customer & Digital,Computer Equipment-Purchase,40098,Communication and Computing,5028,1. VxRail P670F/N & V670F - EMEA 2. VMware eOEM Licenses - EMEA SR 2 3. Recoverpoint Services for VxRail - EMEA SR,08/02/2023,0173828,"£52,610.64",Revenue,Dell Corporation Ltd,64387,,
Chorley Borough Council,http://statistics.data.gov.uk/id/local-authority/30UE,Central Support Services,1009,GOVN - Policy & Governance,Misc Expenses,40200,Miscellaneous Expenses,5034,3 x AS12 Aspen Rectangular Desk - 1200x800x730mm Maple top @ £102/68 per unit3 x CB1000 Cable Basket 1000mm @ £19.50 per unitDeli,08/02/2023,0176665,£366.54,Revenue,Diamond Business Interiors Ltd,53722,,
Chorley Borough Council,http://statistics.data.gov.uk/id/local-authority/30UE,Service Management & Support,1009,CUST - Customer & Digital,Supplies - Workshop,40246,"Equipment, Furniture & Materia",5023,As per document 059518Order ref 241446,08/02/2023,0175581,£312.94,Revenue,Dick Leigh,17138,,
Chorley Borough Council,http://statistics.data.gov.uk/id/local-authority/30UE,Planning Policy,1092,PLAN - Planning & Development,Consultants` Fees,40077,Services,5027,Housing Requirement & Development Strategy Works,22/02/2023,0177161,"£9,706.93",Revenue,DLP (Consulting Group) Ltd,84490,,
Chorley Borough Council,http://statistics.data.gov.uk/id/local-authority/30UE,Capital,Capital,PLAN - Planning & Development,Main Contractor,03007,Capital Expenditure,Capital,Pitch Maintenance King George V Playing Fields 2022/2023,01/02/2023,0175169,£884.00,Capital,Duncan Ross Ltd,76803,,
Chorley Borough Council,http://statistics.data.gov.uk/id/local-authority/30UE,Central Support Services,1009,CUST - Customer & Digital,Training Course Fees,17010,Indirect Employee Expenses,5002,IOSH Working Safely 1-day coursex3 candidates @£189 per person,15/02/2023,0176659,£567.00,Revenue,Easybook Training Limited,87099,,
Chorley Borough Council,http://statistics.data.gov.uk/id/local-authority/30UE,Central Support Services,1009,CUST - Customer & Digital,Mobile Voice and Data,40086,Communication and Computing,5028,03 Jan 2023,01/02/2023,0175489,"£9,240.25",Revenue,EE - Orange,16486,,
Chorley Borough Council,http://statistics.data.gov.uk/id/local-authority/30UE,Central Support Services,1009,CUST - Customer & Digital,Mobile Voice and Data,40086,Communication and Computing,5028,03 Dec 2022,01/02/2023,0175490,"£9,247.41",Revenue,EE - Orange,16486,,
Chorley Borough Council,http://statistics.data.gov.uk/id/local-authority/30UE,Central Support Services,1009,CUST - Customer & Digital,Mobile Voice and Data,40086,Communication and Computing,5028,03 Dec 2022 - non VATable (as agreed with NAME REDACTED),01/02/2023,0175490,"£14,299.12",Revenue,EE - Orange,16486,,
Chorley Borough Council,http://statistics.data.gov.uk/id/local-authority/30UE,Central Support Services,1009,CUST - Customer & Digital,Mobile Voice and Data,40086,Communication and Computing,5028,,08/02/2023,0176890,"£21,890.41",Revenue,EE - Orange,16486,,
Chorley Borough Council,http://statistics.data.gov.uk/id/local-authority/30UE,Central Support Services,1009,CUST - Customer & Digital,Mobile Voice and Data,40086,Communication and Computing,5028,Mobile phones,08/02/2023,0176891,"£9,629.92",Revenue,EE - Orange,16486,,
Chorley Borough Council,http://statistics.data.gov.uk/id/local-authority/30UE,Homelessness,1075,GROW - Commercial & Property,Laundry,40042,"Clothing, Uniforms and Laundry",5025,For the laundry services provided to Cotswold House,22/02/2023,0176971,"£1,022.49",Revenue,Elis UK Ltd,20799,,
Chorley Borough Council,http://statistics.data.gov.uk/id/local-authority/30UE,Central Support Services,1009,GOVN - Policy & Governance,Refreshments,40036,Catering,5024,"Welcome drinks, wine for tables and orange juice for tables at the Freedom of the Borough event on 28 January 2023",15/02/2023,0176955,"£2,488.46",Revenue,Elite Event Group Ltd,78533,,
Chorley Borough Council,http://statistics.data.gov.uk/id/local-authority/30UE,Service Management & Support,1009,CUST - Customer & Digital,Training Course Fees,17010,Indirect Employee Expenses,5002,NAME REDACTED registration for WAMITAB HROC4a - Renewing from 18/02/2023,08/02/2023,0176715,£513.75,Revenue,Environmental Leadership Ltd,77245,,
Chorley Borough Council,http://statistics.data.gov.uk/id/local-authority/30UE,Business Support,1095,GROW - Commercial & Property,Internet Charges,40104,Communication and Computing,5028,"``Call Off`` order for:Operate Growth, April 2022 to March 2023 @ £ 249.50 pcm (£2994 p.a.)Connect Growth, April 2022 to March 20",08/02/2023,0176581,"£2,950.00",Revenue,Essensys Ltd,77836,,
Chorley Borough Council,http://statistics.data.gov.uk/id/local-authority/30UE,Business Support,1095,GROW - Commercial & Property,Internet Charges,40104,Communication and Computing,5028,"``Call Off`` order for:Operate Growth, April 2022 to March 2023 @ £ 249.50 pcm (£2994 p.a.)Connect Growth, April 2022 to March 20",15/02/2023,0176970,£348.59,Revenue,Essensys Ltd,77836,,
Chorley Borough Council,http://statistics.data.gov.uk/id/local-authority/30UE,Tourism,1039,GOVN - Policy & Governance,Professional Fees,40063,Services,5027,"Music entertainment in the 1498 in the build up to Christmas. The costs for providing 7 artists, sound engineer, equipment hire a",08/02/2023,0176784,"£1,500.00",Revenue,Event Chorley,85464,,
Chorley Borough Council,http://statistics.data.gov.uk/id/local-authority/30UE,Central Support Services,1009,CUST - Customer & Digital,Unitary Payment(S),50009,Private Contractors,5042,Jubilee bank holiday working costs.,08/02/2023,0175256,"£1,946.00",Revenue,FCC Environment Services (UK) Limited,77903,,
Chorley Borough Council,http://statistics.data.gov.uk/id/local-authority/30UE,Central Support Services,1009,CUST - Customer & Digital,Unitary Payment(S),50009,Private Contractors,5042,Provision of Waste and Recycling Services to Chorley Council 2022/23,08/02/2023,0176584,"£197,043.98",Revenue,FCC Environment Services (UK) Limited,77903,,
Chorley Borough Council,http://statistics.data.gov.uk/id/local-authority/30UE,Central Support Services,1009,CUST - Customer & Digital,Unitary Payment(S),50009,Private Contractors,5042,Provision of Waste and Recycling Services to Chorley Council 2022/23,15/02/2023,0177034,"£194,619.49",Revenue,FCC Environment Services (UK) Limited,77903,,
Chorley Borough Council,http://statistics.data.gov.uk/id/local-authority/30UE,Central Support Services,1009,EARL - Communities,Misc Expenses,40200,Miscellaneous Expenses,5034,Lights ordered for Clayton Brook Christmas Lights switch on 25 sets of MV001,08/02/2023,0173553,£468.50,Revenue,Festive Lights Limited,85182,,
Chorley Borough Council,http://statistics.data.gov.uk/id/local-authority/30UE,Central Support Services,1009,GOVN - Policy & Governance,Legal Fees,40171,Miscellaneous Expenses,5034,Internal lease to service company - TVS Logistics House,01/02/2023,0175531,"£1,353.00",Revenue,Forbes Solicitors Office Account,87054,,
Chorley Borough Council,http://statistics.data.gov.uk/id/local-authority/30UE,Capital,Capital,GROW - Commercial & Property,Other Capital Related Fees,03024,Capital Expenditure,Capital,"As per quote dated 12 September 22 to provide electrical package to 1498 F&B area; works to include the following:Contain £ 2,108",01/02/2023,0175540,"£24,547.95",Capital,Fox Contractors Limited,81125,,
Chorley Borough Council,http://statistics.data.gov.uk/id/local-authority/30UE,Service Management & Support,1009,CUST - Customer & Digital,Vehicles and Plant Maintenance,30045,Direct Transport Costs,5016,As per Invoice Number SI-5645,08/02/2023,0175586,£422.00,Revenue,G & S Auto Electrical Services,16323,,
Chorley Borough Council,http://statistics.data.gov.uk/id/local-authority/30UE,Service Management & Support,1009,CUST - Customer & Digital,Vehicles and Plant Maintenance,30045,Direct Transport Costs,5016,"As per Invoice Number SI-5674Diagnose fault with O/S/R tail lamp, rear marker lamps and sidemarker lamps.Faulty under bonnet fuse",08/02/2023,0176590,£538.18,Revenue,G & S Auto Electrical Services,16323,,
Chorley Borough Council,http://statistics.data.gov.uk/id/local-authority/30UE,Service Management & Support,1009,CUST - Customer & Digital,Vehicles and Plant Maintenance,30045,Direct Transport Costs,5016,As per Invoice Number SI-5713,08/02/2023,0176606,£293.62,Revenue,G & S Auto Electrical Services,16323,,
Chorley Borough Council,http://statistics.data.gov.uk/id/local-authority/30UE,Homelessness,1075,GOVN - Policy & Governance,Agency Staff,13000,Direct Employee Expenses,5001,Temp Agency Staff - NAME REDACTED up to 31 March 2023,01/02/2023,0174066,"£2,332.07",Revenue,G2 Recruitment Solutions,84173,,
Chorley Borough Council,http://statistics.data.gov.uk/id/local-authority/30UE,Homelessness,1075,GOVN - Policy & Governance,Agency Staff,13000,Direct Employee Expenses,5001,Temp Agency Staff - NAME REDACTED up to 31 March 2023,01/02/2023,0174289,"£2,318.69",Revenue,G2 Recruitment Solutions,84173,,
Chorley Borough Council,http://statistics.data.gov.uk/id/local-authority/30UE,Homelessness,1075,GOVN - Policy & Governance,Agency Staff,13000,Direct Employee Expenses,5001,Temp Agency Staff - NAME REDACTED up to 31 March 2023,01/02/2023,0174515,"£2,256.10",Revenue,G2 Recruitment Solutions,84173,,
Chorley Borough Council,http://statistics.data.gov.uk/id/local-authority/30UE,Homelessness,1075,GOVN - Policy & Governance,Agency Staff,13000,Direct Employee Expenses,5001,Temp Agency Staff - NAME REDACTED up to 31 March 2023,01/02/2023,0174683,"£2,318.16",Revenue,G2 Recruitment Solutions,84173,,
Chorley Borough Council,http://statistics.data.gov.uk/id/local-authority/30UE,Homelessness,1075,GOVN - Policy & Governance,Agency Staff,13000,Direct Employee Expenses,5001,Temp Agency Staff - NAME REDACTED up to 31 March 2023,01/02/2023,0174967,"£2,212.23",Revenue,G2 Recruitment Solutions,84173,,
Chorley Borough Council,http://statistics.data.gov.uk/id/local-authority/30UE,Homelessness,1075,GOVN - Policy & Governance,Agency Staff,13000,Direct Employee Expenses,5001,Temp Agency Staff - NAME REDACTED up to 31 March 2023,01/02/2023,0175119,"£2,380.75",Revenue,G2 Recruitment Solutions,84173,,
Chorley Borough Council,http://statistics.data.gov.uk/id/local-authority/30UE,Homelessness,1075,GOVN - Policy & Governance,Agency Staff,13000,Direct Employee Expenses,5001,Temp Agency Staff - NAME REDACTED up to 31 March 2023,01/02/2023,0175264,"£2,247.00",Revenue,G2 Recruitment Solutions,84173,,
Chorley Borough Council,http://statistics.data.gov.uk/id/local-authority/30UE,Homelessness,1075,GOVN - Policy & Governance,Agency Staff,13000,Direct Employee Expenses,5001,Temp Agency Staff - NAME REDACTED up to 31 March 2023,01/02/2023,0175265,"£2,407.50",Revenue,G2 Recruitment Solutions,84173,,
Chorley Borough Council,http://statistics.data.gov.uk/id/local-authority/30UE,Homelessness,1075,GOVN - Policy & Governance,Agency Staff,13000,Direct Employee Expenses,5001,Temp Agency Staff - NAME REDACTED up to 31 March 2023,08/02/2023,0175404,"£1,712.00",Revenue,G2 Recruitment Solutions,84173,,
Chorley Borough Council,http://statistics.data.gov.uk/id/local-authority/30UE,Homelessness,1075,GOVN - Policy & Governance,Agency Staff,13000,Direct Employee Expenses,5001,Temp Agency Staff - NAME REDACTED up to 31 March 2023,15/02/2023,0175548,"£2,269.47",Revenue,G2 Recruitment Solutions,84173,,
Chorley Borough Council,http://statistics.data.gov.uk/id/local-authority/30UE,Homelessness,1075,GOVN - Policy & Governance,Agency Staff,13000,Direct Employee Expenses,5001,Temp Agency Staff - NAME REDACTED up to 31 March 2023,15/02/2023,0176618,"£2,149.10",Revenue,G2 Recruitment Solutions,84173,,
Chorley Borough Council,http://statistics.data.gov.uk/id/local-authority/30UE,Homelessness,1075,GOVN - Policy & Governance,Agency Staff,13000,Direct Employee Expenses,5001,Temp Agency Staff - NAME REDACTED up to 31 March 2023,15/02/2023,0176805,"£2,420.88",Revenue,G2 Recruitment Solutions,84173,,
Chorley Borough Council,http://statistics.data.gov.uk/id/local-authority/30UE,Service Management & Support,1009,CUST - Customer & Digital,Supplies-Grounds Maintenance,40025,"Equipment, Furniture & Materia",5023,10 x Schmidt metal/poly wire brushes - £567.418 x Johnston VT652 Metal channel brush (the larger ones) - £430.74Delivery £45.87,01/02/2023,0175021,"£1,050.90",Revenue,Go Plant Fleet Services Ltd,80857,,
Chorley Borough Council,http://statistics.data.gov.uk/id/local-authority/30UE,Service Management & Support,1009,CUST - Customer & Digital,Vehicles and Plant Maintenance,30045,Direct Transport Costs,5016,Repairs to AJ19 GFXTravel cost: £395Aebi schmidt diagnostic - £276Parts - £193.64Total: 864.64,01/02/2023,0175250,£569.64,Revenue,Go Plant Fleet Services Ltd,80857,,
Chorley Borough Council,http://statistics.data.gov.uk/id/local-authority/30UE,Service Management & Support,1009,CUST - Customer & Digital,Supplies-Grounds Maintenance,40025,"Equipment, Furniture & Materia",5023,12 x schmidt poly wire brushesIncluding delivery,08/02/2023,0176718,£753.30,Revenue,Go Plant Fleet Services Ltd,80857,,
Chorley Borough Council,http://statistics.data.gov.uk/id/local-authority/30UE,Service Management & Support,1009,CUST - Customer & Digital,Hire Of Vehicles and Plant,30028,Contrct Hire & Operating Lease,5018,"Extension of the sweepers12 month Contract - Start date 02/09/22 (VIN REDACTED) – contract hire only - £1,290.17 per mo",08/02/2023,0176728,"£8,332.30",Revenue,Go Plant Fleet Services Ltd,80857,,
Chorley Borough Council,http://statistics.data.gov.uk/id/local-authority/30UE,Central Support Services,1009,CUST - Customer & Digital,Professional Fees,40063,Services,5027,Garden waste subscription payments 2022/23 for Chorley Council,08/02/2023,0176586,£708.33,Revenue,GoCardless,77457,,
Chorley Borough Council,http://statistics.data.gov.uk/id/local-authority/30UE,Central Support Services,1009,CUST - Customer & Digital,Professional Fees,40063,Services,5027,Garden waste subscription payments 2022/23 for Chorley Council,08/02/2023,0176619,£708.33,Revenue,GoCardless,77457,,
Chorley Borough Council,http://statistics.data.gov.uk/id/local-authority/30UE,Central Support Services,1009,CUST - Customer & Digital,Professional Fees,40063,Services,5027,Garden waste subscription payments 2022/23 for Chorley Council,22/02/2023,0177157,£708.63,Revenue,GoCardless,77457,,
Chorley Borough Council,http://statistics.data.gov.uk/id/local-authority/30UE,Central Support Services,1009,GROW - Commercial & Property,General Repairs - Reactive,20004,Repairs Maintenance & Alts,5005,Gillibrand St - Chorley SurgeryWindows replacements as per quote to NAME REDACTED,08/02/2023,0176704,"£3,395.00",Revenue,Goldseal Tradeline Limited,55374,,
Chorley Borough Council,http://statistics.data.gov.uk/id/local-authority/30UE,Central Support Services,1009,GROW - Commercial & Property,Professional Fees,40063,Services,5027,Client Support Services - Tatton Gardens Project as per fee proposal - ref A.2-001.,08/02/2023,0176676,"£1,700.00",Revenue,Gosling Consulting Limited,78380,,
Chorley Borough Council,http://statistics.data.gov.uk/id/local-authority/30UE,Central Support Services,1009,PLAN - Planning & Development,Vandalism Repairs,20005,Repairs Maintenance & Alts,5005,Graffiti removal contract October 2022 ongoing,08/02/2023,0176736,£625.00,Revenue,Graffiti Away Ltd,78340,,
Chorley Borough Council,http://statistics.data.gov.uk/id/local-authority/30UE,Corporate Management,1008,GROW - Commercial & Property,Publicity - Advertising,40157,Miscellaneous Expenses,5034,Social media for Market Walk Shopping Centre Chorley.January - June 2023 @ £500 per monthTotal 6 months £3000.00,15/02/2023,0176904,£500.00,Revenue,Gravity,77837,,
Chorley Borough Council,http://statistics.data.gov.uk/id/local-authority/30UE,Business Support,1095,GROW - Commercial & Property,Misc Expenses,40200,Miscellaneous Expenses,5034,Per your quotation 33673-2Attend site and dismantle/relocate furniture in first and ground floor areas,01/02/2023,0175570,£580.00,Revenue,Gresham Office Furniture Ltd,78114,,
Chorley Borough Council,http://statistics.data.gov.uk/id/local-authority/30UE,Business Support,1095,GROW - Commercial & Property,Computer Equipment-Purchase,40098,Communication and Computing,5028,"6 x PM4, 4 gang power module @ £28.80",01/02/2023,0175570,£172.80,Revenue,Gresham Office Furniture Ltd,78114,,
Chorley Borough Council,http://statistics.data.gov.uk/id/local-authority/30UE,Business Support,1095,GROW - Commercial & Property,Computer Equipment-Purchase,40098,Communication and Computing,5028,"6 x CLWP5, 50000mm starter lead GST18/3 female to 13A plug @ £17.55",01/02/2023,0175570,£105.30,Revenue,Gresham Office Furniture Ltd,78114,,
Chorley Borough Council,http://statistics.data.gov.uk/id/local-authority/30UE,Homelessness,1075,EARL - Communities,Misc Expenses,40200,Miscellaneous Expenses,5034,cash on arrival,08/02/2023,0176845,£600.00,Revenue,Halima Omar,87120,,
Chorley Borough Council,http://statistics.data.gov.uk/id/local-authority/30UE,Tourism,1039,GOVN - Policy & Governance,Tools & Equipment - Hire,40004,"Equipment, Furniture & Materia",5023,"A supply of red diesel for the Ice Rink at Chorley`s Winter Wonderland on Cleveland Street car park, Chorley, PR7 1DN. Fuel to be",01/02/2023,0175062,"£1,806.96",Revenue,Harrison Oils Ltd,76429,,
Chorley Borough Council,http://statistics.data.gov.uk/id/local-authority/30UE,Tourism,1039,GOVN - Policy & Governance,Tools & Equipment - Hire,40004,"Equipment, Furniture & Materia",5023,"A supply of red diesel for the Ice Rink at Chorley`s Winter Wonderland on Cleveland Street car park, Chorley, PR7 1DN. Fuel to be",01/02/2023,0175249,"£1,943.44",Revenue,Harrison Oils Ltd,76429,,
Chorley Borough Council,http://statistics.data.gov.uk/id/local-authority/30UE,Tourism,1039,GOVN - Policy & Governance,Tools & Equipment - Hire,40004,"Equipment, Furniture & Materia",5023,"A supply of red diesel for the Ice Rink at Chorley`s Winter Wonderland on Cleveland Street car park, Chorley, PR7 1DN. Fuel to be",01/02/2023,0175374,"£1,312.34",Revenue,Harrison Oils Ltd,76429,,
Chorley Borough Council,http://statistics.data.gov.uk/id/local-authority/30UE,Tourism,1039,GOVN - Policy & Governance,Tools & Equipment - Hire,40004,"Equipment, Furniture & Materia",5023,"A supply of white diesel fuel to Betty`s Tipis on Cleveland Street car park, Chorley, PR7 1DN. For Chorley Council`s Winter Wonde",22/02/2023,0177021,£251.38,Revenue,Harrison Oils Ltd,76429,,
Chorley Borough Council,http://statistics.data.gov.uk/id/local-authority/30UE,Tourism,1039,GOVN - Policy & Governance,Tools & Equipment - Hire,40004,"Equipment, Furniture & Materia",5023,"A supply of white diesel fuel to Betty`s Tipis on Cleveland Street car park, Chorley, PR7 1DN. For Chorley Council`s Winter Wonde",22/02/2023,0177029,£958.29,Revenue,Harrison Oils Ltd,76429,,
Chorley Borough Council,http://statistics.data.gov.uk/id/local-authority/30UE,Tourism,1039,GOVN - Policy & Governance,Tools & Equipment - Hire,40004,"Equipment, Furniture & Materia",5023,"A supply of white diesel fuel to Betty`s Tipis on Cleveland Street car park, Chorley, PR7 1DN. For Chorley Council`s Winter Wonde",22/02/2023,0177030,£595.26,Revenue,Harrison Oils Ltd,76429,,
Chorley Borough Council,http://statistics.data.gov.uk/id/local-authority/30UE,Tourism,1039,GOVN - Policy & Governance,Tools & Equipment - Hire,40004,"Equipment, Furniture & Materia",5023,"A supply of white diesel fuel to Betty`s Tipis on Cleveland Street car park, Chorley, PR7 1DN. For Chorley Council`s Winter Wonde",22/02/2023,0177031,£373.70,Revenue,Harrison Oils Ltd,76429,,
Chorley Borough Council,http://statistics.data.gov.uk/id/local-authority/30UE,Planning Policy,1092,PLAN - Planning & Development,Professional Fees,14011,Direct Employee Expenses,5001,Planning Resource Subscription,15/02/2023,0176506,"£2,000.00",Revenue,Haymarket Publishing Services Ltd,16347,,
Chorley Borough Council,http://statistics.data.gov.uk/id/local-authority/30UE,Economic Development,1096,GROW - Commercial & Property,Agency Staff,13000,Direct Employee Expenses,5001,"Consultancy Fees - NAME REDACTED, Senior Project Manager",01/02/2023,0174960,"£2,000.00",Revenue,Hays Senior Finance,20078,,
Chorley Borough Council,http://statistics.data.gov.uk/id/local-authority/30UE,Economic Development,1096,GROW - Commercial & Property,Agency Staff,13000,Direct Employee Expenses,5001,"Consultancy Fees - NAME REDACTED, Senior Project Manager",01/02/2023,0174961,"£1,800.00",Revenue,Hays Senior Finance,20078,,
Chorley Borough Council,http://statistics.data.gov.uk/id/local-authority/30UE,Economic Development,1096,GROW - Commercial & Property,Agency Staff,13000,Direct Employee Expenses,5001,"Consultancy Fees - NAME REDACTED, Senior Project Manager",01/02/2023,0174962,"£2,000.00",Revenue,Hays Senior Finance,20078,,
Chorley Borough Council,http://statistics.data.gov.uk/id/local-authority/30UE,Economic Development,1096,GROW - Commercial & Property,Agency Staff,13000,Direct Employee Expenses,5001,"Consultancy Fees - NAME REDACTED, Senior Project Manager",01/02/2023,0174963,"£2,000.00",Revenue,Hays Senior Finance,20078,,
Chorley Borough Council,http://statistics.data.gov.uk/id/local-authority/30UE,Economic Development,1096,GROW - Commercial & Property,Agency Staff,13000,Direct Employee Expenses,5001,"Consultancy Fees - NAME REDACTED, Senior Project Manager",01/02/2023,0174964,"£2,000.00",Revenue,Hays Senior Finance,20078,,
Chorley Borough Council,http://statistics.data.gov.uk/id/local-authority/30UE,Economic Development,1096,GROW - Commercial & Property,Agency Staff,13000,Direct Employee Expenses,5001,"Consultancy Fees - NAME REDACTED, Senior Project Manager",01/02/2023,0175129,"£1,600.00",Revenue,Hays Senior Finance,20078,,
Chorley Borough Council,http://statistics.data.gov.uk/id/local-authority/30UE,Economic Development,1096,GROW - Commercial & Property,Agency Staff,13000,Direct Employee Expenses,5001,"Consultancy Fees - NAME REDACTED, Senior Project Manager",01/02/2023,0175134,"£2,000.00",Revenue,Hays Senior Finance,20078,,
Chorley Borough Council,http://statistics.data.gov.uk/id/local-authority/30UE,Economic Development,1096,GROW - Commercial & Property,Agency Staff,13000,Direct Employee Expenses,5001,"Consultancy Fees - NAME REDACTED, Senior Project Manager",01/02/2023,0175135,"£2,000.00",Revenue,Hays Senior Finance,20078,,
Chorley Borough Council,http://statistics.data.gov.uk/id/local-authority/30UE,Economic Development,1096,GROW - Commercial & Property,Agency Staff,13000,Direct Employee Expenses,5001,NAME REDACTED Service Lead50% Chorley Borough Council,01/02/2023,0176461,"£2,760.00",Revenue,Hays Senior Finance,20078,,
Chorley Borough Council,http://statistics.data.gov.uk/id/local-authority/30UE,Economic Development,1096,GROW - Commercial & Property,Agency Staff,13000,Direct Employee Expenses,5001,NAME REDACTED Service Lead50% Chorley Borough Council,22/02/2023,0176523,"£2,760.00",Revenue,Hays Senior Finance,20078,,
Chorley Borough Council,http://statistics.data.gov.uk/id/local-authority/30UE,Economic Development,1096,GROW - Commercial & Property,Agency Staff,13000,Direct Employee Expenses,5001,NAME REDACTED Service Lead50% Chorley Borough Council,22/02/2023,0176553,"£3,105.00",Revenue,Hays Senior Finance,20078,,
Chorley Borough Council,http://statistics.data.gov.uk/id/local-authority/30UE,Central Support Services,1009,GROW - Commercial & Property,Agency Staff,13000,Direct Employee Expenses,5001,Estate Surveyor Fees - NAME REDACTED,22/02/2023,0176702,"£1,377.00",Revenue,Hays Senior Finance,20078,,
Chorley Borough Council,http://statistics.data.gov.uk/id/local-authority/30UE,Central Support Services,1009,GROW - Commercial & Property,Agency Staff,13000,Direct Employee Expenses,5001,Estate Surveyor Fees - NAME REDACTED,22/02/2023,0176795,"£1,275.00",Revenue,Hays Senior Finance,20078,,
Chorley Borough Council,http://statistics.data.gov.uk/id/local-authority/30UE,Economic Development,1096,GROW - Commercial & Property,Agency Staff,13000,Direct Employee Expenses,5001,"Consultancy Fees - NAME REDACTED , Senior Project Manager",22/02/2023,0176835,"£2,000.00",Revenue,Hays Senior Finance,20078,,
Chorley Borough Council,http://statistics.data.gov.uk/id/local-authority/30UE,Economic Development,1096,GROW - Commercial & Property,Agency Staff,13000,Direct Employee Expenses,5001,"Consultancy Fees - NAME REDACTED , Senior Project Manager",22/02/2023,0176836,"£2,000.00",Revenue,Hays Senior Finance,20078,,
Chorley Borough Council,http://statistics.data.gov.uk/id/local-authority/30UE,Economic Development,1096,GROW - Commercial & Property,Agency Staff,13000,Direct Employee Expenses,5001,"Consultancy Fees - NAME REDACTED , Senior Project Manager",22/02/2023,0177126,"£2,000.00",Revenue,Hays Senior Finance,20078,,
Chorley Borough Council,http://statistics.data.gov.uk/id/local-authority/30UE,Economic Development,1096,GROW - Commercial & Property,Agency Staff,13000,Direct Employee Expenses,5001,"Consultancy Fees - NAME REDACTED , Senior Project Manager",22/02/2023,0177320,"£2,000.00",Revenue,Hays Senior Finance,20078,,
Chorley Borough Council,http://statistics.data.gov.uk/id/local-authority/30UE,Capital,Capital,GOVN - Policy & Governance,Legal Fees - Acquisition,03019,Capital Expenditure,Capital,leasehold,08/02/2023,0176846,"£40,000.00",Capital,HCB Solicitors Ltd (North Offices),87107,,
Chorley Borough Council,http://statistics.data.gov.uk/id/local-authority/30UE,Community Development,1097,EARL - Communities,Core Funding Grants,40133,Grants and Subscriptions,5031,CHTH rent supported via Chorley Council,01/02/2023,0175521,"£16,000.00",Revenue,Help The Homeless (Chorley),16716,,
Chorley Borough Council,http://statistics.data.gov.uk/id/local-authority/30UE,Capital,Capital,GOVN - Policy & Governance,Main Contractor,03007,Capital Expenditure,Capital,"-	HFX Access USB Desktop Card Reader. £54.00-	Mifare Proximity Cards (Pack of 25) - £90.00 * 12 = £1,080.00Total - £1,134Delivery",08/02/2023,0176578,"£1,134.00",Capital,Hfx Ltd,17164,,
Chorley Borough Council,http://statistics.data.gov.uk/id/local-authority/30UE,Central Support Services,1009,EARL - Communities,Misc Expenses,40200,Miscellaneous Expenses,5034,"Delivery of Warm Spaces at Hillside Methodist Church, Brinscall",22/02/2023,0177417,£500.00,Revenue,Hillside Methodist Church,18468,,
Chorley Borough Council,http://statistics.data.gov.uk/id/local-authority/30UE,Central Support Services,1009,CUST - Customer & Digital,Telephones - Other,40085,Communication and Computing,5028,Hybrit SIP charges Oct 22,22/02/2023,0174048,"£1,300.00",Revenue,Hybrit LLP,77925,,
Chorley Borough Council,http://statistics.data.gov.uk/id/local-authority/30UE,Central Support Services,1009,CUST - Customer & Digital,Telephones - Other,40085,Communication and Computing,5028,Hybrit SIP charges Dec 22,22/02/2023,0177338,£747.50,Revenue,Hybrit LLP,77925,,
Chorley Borough Council,http://statistics.data.gov.uk/id/local-authority/30UE,Corporate Management,1008,GOVN - Policy & Governance,Other Fees,40212,Miscellaneous Expenses,5034,Subsidy for the provision of a Meals on Wheels service in Chorley up to 29 January 2023,22/02/2023,0177120,"£3,011.25",Revenue,I Care GB Ltd,77247,,
Chorley Borough Council,http://statistics.data.gov.uk/id/local-authority/30UE,Business Support,1095,GROW - Commercial & Property,Refreshments,40036,Catering,5024,Milk deliveries for Dec invoice- 9069260123,08/02/2023,0176745,£305.04,Revenue,I W Critchley & Son,77615,,
Chorley Borough Council,http://statistics.data.gov.uk/id/local-authority/30UE,Business Support,1095,GROW - Commercial & Property,Computer Equipment-Purchase,40098,Communication and Computing,5028,"Per your quotation ``Videowall and Boardroom`` sent 20/12/22Boardroom -	Supply of a webcam to sit above the screen-	PSU for a Cre",22/02/2023,0176900,£571.00,Revenue,IDN Supplies,78102,,
Chorley Borough Council,http://statistics.data.gov.uk/id/local-authority/30UE,Central Support Services,1009,CUST - Customer & Digital,Training Course Fees,17010,Indirect Employee Expenses,5002,Idox Training Courses,22/02/2023,0176623,"£2,200.00",Revenue,IDOX Software Limited,17542,,
Chorley Borough Council,http://statistics.data.gov.uk/id/local-authority/30UE,Elections,1012,GOVN - Policy & Governance,Training Course Fees,17010,Indirect Employee Expenses,5002,Quotation ref - 23.59119 election admin training 2 February 2023 NAMES REDACTED,15/02/2023,0176655,£450.00,Revenue,IDOX Software Limited,17542,,
Chorley Borough Council,http://statistics.data.gov.uk/id/local-authority/30UE,Elections,1012,GOVN - Policy & Governance,Computer Software-Maintenance,40107,Communication and Computing,5028,quotation ref: 23.58981 modern democracy connector for Modern Polling,08/02/2023,0176761,£385.00,Revenue,IDOX Software Limited,17542,,
Chorley Borough Council,http://statistics.data.gov.uk/id/local-authority/30UE,Capital,Capital,EARL - Communities,Grants,03002,Capital Expenditure,Capital,,01/02/2023,0175522,"£4,131.79",Capital,Independent Adaptations Ltd,77973,,
Chorley Borough Council,http://statistics.data.gov.uk/id/local-authority/30UE,Control Accounts,Control,System,Manual Control Account,00001,Balance Sheet,Balance,,22/02/2023,0176915,"£1,251.47",Revenue,Inland Revenue 065py00102078,17445,,
Chorley Borough Council,http://statistics.data.gov.uk/id/local-authority/30UE,Control Accounts,Control,System,Manual Control Account,00001,Balance Sheet,Balance,,22/02/2023,0177124,"£2,224.00",Revenue,Inland Revenue 065py00102078,17445,,
Chorley Borough Council,http://statistics.data.gov.uk/id/local-authority/30UE,Central Support Services,1009,CUST - Customer & Digital,Computer - Support Services,40111,Communication and Computing,5028,Enghouse - Manages Service scope in schedule V2 Annual charge,22/02/2023,0176779,"£3,306.00",Revenue,Insight Direct (UK) LTD,21768,,
Chorley Borough Council,http://statistics.data.gov.uk/id/local-authority/30UE,Business Support,1095,GROW - Commercial & Property,Tools & Equipment - Purchase,40003,"Equipment, Furniture & Materia",5023,For the maintenance and services provided at Primrose gardens,01/02/2023,0175580,£333.09,Revenue,JLA Total Care LTD,78420,,
Chorley Borough Council,http://statistics.data.gov.uk/id/local-authority/30UE,Service Management & Support,1009,CUST - Customer & Digital,Supplies-Grounds Maintenance,40025,"Equipment, Furniture & Materia",5023,20 @ 1.8m x 150mm x 75mm green timber,15/02/2023,0173846,£182.20,Revenue,John H Mayor & Sons Ltd,16635,,
Chorley Borough Council,http://statistics.data.gov.uk/id/local-authority/30UE,Service Management & Support,1009,CUST - Customer & Digital,Supplies-Grounds Maintenance,40025,"Equipment, Furniture & Materia",5023,20 @ 4.2 x 100mm x 35mm green timber,15/02/2023,0173846,£143.60,Revenue,John H Mayor & Sons Ltd,16635,,
Chorley Borough Council,http://statistics.data.gov.uk/id/local-authority/30UE,Service Management & Support,1009,CUST - Customer & Digital,Supplies-Grounds Maintenance,40025,"Equipment, Furniture & Materia",5023,1 box of 100mm galvanised nails at 4.5mm gauge,15/02/2023,0173846,£60.22,Revenue,John H Mayor & Sons Ltd,16635,,
Chorley Borough Council,http://statistics.data.gov.uk/id/local-authority/30UE,Service Management & Support,1009,CUST - Customer & Digital,Supplies-Grounds Maintenance,40025,"Equipment, Furniture & Materia",5023,4x weathered gate posts at 2.4m x 150mm x 150mm,15/02/2023,0175574,£180.00,Revenue,John H Mayor & Sons Ltd,16635,,
Chorley Borough Council,http://statistics.data.gov.uk/id/local-authority/30UE,Service Management & Support,1009,CUST - Customer & Digital,Supplies-Grounds Maintenance,40025,"Equipment, Furniture & Materia",5023,long handled scythe,15/02/2023,0175574,£25.80,Revenue,John H Mayor & Sons Ltd,16635,,
Chorley Borough Council,http://statistics.data.gov.uk/id/local-authority/30UE,Service Management & Support,1009,CUST - Customer & Digital,Supplies-Grounds Maintenance,40025,"Equipment, Furniture & Materia",5023,1 x bill hook,15/02/2023,0175574,£21.49,Revenue,John H Mayor & Sons Ltd,16635,,
Chorley Borough Council,http://statistics.data.gov.uk/id/local-authority/30UE,Service Management & Support,1009,CUST - Customer & Digital,Supplies-Grounds Maintenance,40025,"Equipment, Furniture & Materia",5023,1 x hand axe,15/02/2023,0175574,£7.43,Revenue,John H Mayor & Sons Ltd,16635,,
Chorley Borough Council,http://statistics.data.gov.uk/id/local-authority/30UE,Service Management & Support,1009,CUST - Customer & Digital,Supplies-Grounds Maintenance,40025,"Equipment, Furniture & Materia",5023,2 pair of hanging post hinges,15/02/2023,0175574,£25.50,Revenue,John H Mayor & Sons Ltd,16635,,
Chorley Borough Council,http://statistics.data.gov.uk/id/local-authority/30UE,Capital,Capital,PLAN - Planning & Development,Main Contractor,03007,Capital Expenditure,Capital,Construction of a Sports Pavilion at Wigan Lane Playing Fields with associated infrastructure and landscaping,08/02/2023,0176667,"£18,352.70",Capital,John Wade Groundworks Ltd,76676,,
Chorley Borough Council,http://statistics.data.gov.uk/id/local-authority/30UE,Central Support Services,1009,EARL - Communities,Misc Expenses,40200,Miscellaneous Expenses,5034,"28ft Christmas Tree, installation, stand, block hire and removal",08/02/2023,0174456,"£2,210.00",Revenue,Joseph Noblett,84139,,
Chorley Borough Council,http://statistics.data.gov.uk/id/local-authority/30UE,Central Support Services,1009,PLAN - Planning & Development,Tools & Equipment - Purchase,40003,"Equipment, Furniture & Materia",5023,"10,000 Dog Poop Bags with agreed artwork plus delivery charge as per provided price",08/02/2023,0176683,£494.26,Revenue,JRB EnterpriseLtd,21819,,
Chorley Borough Council,http://statistics.data.gov.uk/id/local-authority/30UE,Business Support,1095,GOVN - Policy & Governance,Misc Expenses,40200,Miscellaneous Expenses,5034,Choose Chorley Webinar x 1Tiktok,22/02/2023,0177412,£250.00,Revenue,Just Social Ltd,81317,,
Chorley Borough Council,http://statistics.data.gov.uk/id/local-authority/30UE,Capital,Capital,EARL - Communities,Grants,03002,Capital Expenditure,Capital,22/00048/CAG,15/02/2023,0176972,"£7,700.00",Capital,K Berry Ltd,16421,,
Chorley Borough Council,http://statistics.data.gov.uk/id/local-authority/30UE,Capital,Capital,EARL - Communities,Grants,03002,Capital Expenditure,Capital,22/00089/CAG,15/02/2023,0176974,"£7,000.00",Capital,K Berry Ltd,16421,,
Chorley Borough Council,http://statistics.data.gov.uk/id/local-authority/30UE,Capital,Capital,EARL - Communities,Grants,03002,Capital Expenditure,Capital,22/00095/CAG,15/02/2023,0176975,"£5,650.00",Capital,K Berry Ltd,16421,,
Chorley Borough Council,http://statistics.data.gov.uk/id/local-authority/30UE,Service Management & Support,1009,CUST - Customer & Digital,Entry Fees,40237,Miscellaneous Expenses,5034,Green Flag Application fee for Rangletts Recreation Ground,08/02/2023,0176724,£369.00,Revenue,Keep Britain Tidy,22196,,
Chorley Borough Council,http://statistics.data.gov.uk/id/local-authority/30UE,Corporate Management,1008,EARL - Communities,Grants to Chorley T.C.Initiative,40128,Grants and Subscriptions,5031,Household Support Fund Phase 3,22/02/2023,0177286,"£10,300.00",Revenue,Key Unlocking Futures Limited,61252,,
Chorley Borough Council,http://statistics.data.gov.uk/id/local-authority/30UE,Capital,Capital,PLAN - Planning & Development,Main Contractor,03007,Capital Expenditure,Capital,Milestone Meadow Play Area refurbishment as outlined in tender submission.,08/02/2023,0175338,"£89,999.10",Capital,Kompan,61460,,
Chorley Borough Council,http://statistics.data.gov.uk/id/local-authority/30UE,Precepts and Collection Fund,Precepts,GOVN - Policy & Governance,LCC Precept,02009,Precepts & Collection Fund,Precept,LCC Council Tax Precept,03/02/2023,0173414,"£5,841,829.00",Revenue,Lancashire County Council,18386,,
Chorley Borough Council,http://statistics.data.gov.uk/id/local-authority/30UE,Collection Fund Revenue Accoun,,GOVN - Policy & Governance,NNDR County Share,02036,Precepts & Collection Fund,Precept,LCC Business Rates Precept,03/02/2023,0173414,"£154,328.00",Revenue,Lancashire County Council,18386,,
Chorley Borough Council,http://statistics.data.gov.uk/id/local-authority/30UE,Precepts and Collection Fund,Precepts,GOVN - Policy & Governance,LCC Precept,02009,Precepts & Collection Fund,Precept,LCC CTax precept,03/02/2023,0174357,"£5,841,829.00",Revenue,Lancashire County Council,18386,,
Chorley Borough Council,http://statistics.data.gov.uk/id/local-authority/30UE,Collection Fund Revenue Accoun,,GOVN - Policy & Governance,NNDR County Share,02036,Precepts & Collection Fund,Precept,LCC BRates precept,03/02/2023,0174357,"£154,328.00",Revenue,Lancashire County Council,18386,,
Chorley Borough Council,http://statistics.data.gov.uk/id/local-authority/30UE,Precepts and Collection Fund,Precepts,GOVN - Policy & Governance,LCC Precept,02009,Precepts & Collection Fund,Precept,LCC Council tax precept,03/02/2023,0175212,"£5,841,829.00",Revenue,Lancashire County Council,18386,,
Chorley Borough Council,http://statistics.data.gov.uk/id/local-authority/30UE,Collection Fund Revenue Accoun,,GOVN - Policy & Governance,NNDR County Share,02036,Precepts & Collection Fund,Precept,LCC Business Rtes precept,03/02/2023,0175212,"£154,328.00",Revenue,Lancashire County Council,18386,,
Chorley Borough Council,http://statistics.data.gov.uk/id/local-authority/30UE,Corporate Management,1008,EARL - Communities,Grants to Chorley T.C.Initiative,40128,Grants and Subscriptions,5031,LCC - Supermarket vouchers for partners / supermarket vouchers for food.,15/02/2023,0177028,"£29,000.00",Revenue,Lancashire County Council,17758,,
Chorley Borough Council,http://statistics.data.gov.uk/id/local-authority/30UE,Central Support Services,1009,CUST - Customer & Digital,Clinical Waste Collection,50007,Private Contractors,5042,Domestic clinical waste collections 2022,01/02/2023,0175527,"£2,648.72",Revenue,Lancashire Environmental Services,82309,,
Chorley Borough Council,http://statistics.data.gov.uk/id/local-authority/30UE,Central Support Services,1009,CUST - Customer & Digital,Clinical Waste Collection,50007,Private Contractors,5042,Domestic Clinical waste collection and disposal (Dec 2022 - March 2023),15/02/2023,0177043,"£1,942.27",Revenue,Lancashire Environmental Services,82309,,
Chorley Borough Council,http://statistics.data.gov.uk/id/local-authority/30UE,Capital,Capital,GROW - Commercial & Property,Main Contractor,03007,Capital Expenditure,Capital,All Seasons Work to install tap for In Bloom Group area at rear. Isolate cold water supply in first floor office old finance depa,08/02/2023,0174754,£403.85,Capital,Lancashire Gas Services Ltd,78192,,
Chorley Borough Council,http://statistics.data.gov.uk/id/local-authority/30UE,Capital,Capital,GROW - Commercial & Property,Main Contractor,03007,Capital Expenditure,Capital,Labour,08/02/2023,0174754,"£1,216.00",Capital,Lancashire Gas Services Ltd,78192,,
Chorley Borough Council,http://statistics.data.gov.uk/id/local-authority/30UE,Capital,Capital,GROW - Commercial & Property,Main Contractor,03007,Capital Expenditure,Capital,Astley Coach HouseQuotation No: QUO04235Safe isolation and removal of existing Vailant boilers.Powerflush system to remove sludge,15/02/2023,0175483,"£11,120.00",Capital,Lancashire Gas Services Ltd,78192,,
Chorley Borough Council,http://statistics.data.gov.uk/id/local-authority/30UE,Central Support Services,1009,GROW - Commercial & Property,General Repairs - Reactive,20004,Repairs Maintenance & Alts,5005,Astley hall and Buildings - Gas / Air Con / Plumbing Reactive Repairs,01/02/2023,0175495,£429.98,Revenue,Lancashire Gas Services Ltd,78192,,
Chorley Borough Council,http://statistics.data.gov.uk/id/local-authority/30UE,Central Support Services,1009,GROW - Commercial & Property,General Repairs - Reactive,20004,Repairs Maintenance & Alts,5005,Bengal St - Gas / Air Con / Plumbing Reactive Repairs,01/02/2023,0175498,£880.68,Revenue,Lancashire Gas Services Ltd,78192,,
Chorley Borough Council,http://statistics.data.gov.uk/id/local-authority/30UE,Central Support Services,1009,GROW - Commercial & Property,General Repairs - Reactive,20004,Repairs Maintenance & Alts,5005,Primrose - Gas / Air Con / Plumbing Reactive Repairs,01/02/2023,0175523,"£1,112.86",Revenue,Lancashire Gas Services Ltd,78192,,
Chorley Borough Council,http://statistics.data.gov.uk/id/local-authority/30UE,Business Support,1095,GROW - Commercial & Property,General Repairs - Reactive,20004,Repairs Maintenance & Alts,5005,Strawberry Fields - Gas / Air Con / Plumbing Reactive Repairs,01/02/2023,0175524,£361.00,Revenue,Lancashire Gas Services Ltd,78192,,
Chorley Borough Council,http://statistics.data.gov.uk/id/local-authority/30UE,Central Support Services,1009,GROW - Commercial & Property,General Repairs - Reactive,20004,Repairs Maintenance & Alts,5005,Cotswold - Gas / Air Con / Plumbing Reactive Repairs,01/02/2023,0176514,£965.36,Revenue,Lancashire Gas Services Ltd,78192,,
Chorley Borough Council,http://statistics.data.gov.uk/id/local-authority/30UE,Central Support Services,1009,GROW - Commercial & Property,General Repairs - Reactive,20004,Repairs Maintenance & Alts,5005,Market - Gas / Air Con / Plumbing Reactive Repairs,22/02/2023,0176515,"£1,021.32",Revenue,Lancashire Gas Services Ltd,78192,,
Chorley Borough Council,http://statistics.data.gov.uk/id/local-authority/30UE,Central Support Services,1009,GROW - Commercial & Property,General Repairs - Reactive,20004,Repairs Maintenance & Alts,5005,Community Centres - Gas / Air Con / Plumbing Reactive Repairs,22/02/2023,0176516,£433.46,Revenue,Lancashire Gas Services Ltd,78192,,
Chorley Borough Council,http://statistics.data.gov.uk/id/local-authority/30UE,Central Support Services,1009,GROW - Commercial & Property,General Repairs - Reactive,20004,Repairs Maintenance & Alts,5005,Market - Gas / Air Con / Plumbing Reactive Repairs,01/02/2023,0176517,£258.00,Revenue,Lancashire Gas Services Ltd,78192,,
Chorley Borough Council,http://statistics.data.gov.uk/id/local-authority/30UE,Central Support Services,1009,GROW - Commercial & Property,General Repairs - Reactive,20004,Repairs Maintenance & Alts,5005,Community Centres - Gas / Air Con / Plumbing Reactive Repairs,01/02/2023,0176518,"£1,330.75",Revenue,Lancashire Gas Services Ltd,78192,,
Chorley Borough Council,http://statistics.data.gov.uk/id/local-authority/30UE,Central Support Services,1009,GROW - Commercial & Property,General Repairs - Reactive,20004,Repairs Maintenance & Alts,5005,Cotswold - Gas / Air Con / Plumbing Reactive Repairs,08/02/2023,0176575,£477.35,Revenue,Lancashire Gas Services Ltd,78192,,
Chorley Borough Council,http://statistics.data.gov.uk/id/local-authority/30UE,Central Support Services,1009,GROW - Commercial & Property,General Repairs - Reactive,20004,Repairs Maintenance & Alts,5005,Housing - Gas / Air Con / Plumbing Reactive Repairs,08/02/2023,0176576,£473.14,Revenue,Lancashire Gas Services Ltd,78192,,
Chorley Borough Council,http://statistics.data.gov.uk/id/local-authority/30UE,Central Support Services,1009,GROW - Commercial & Property,General Repairs - Reactive,20004,Repairs Maintenance & Alts,5005,Astley hall and Buildings - Gas / Air Con / Plumbing Reactive Repairs,22/02/2023,0177325,£326.50,Revenue,Lancashire Gas Services Ltd,78192,,
Chorley Borough Council,http://statistics.data.gov.uk/id/local-authority/30UE,Business Support,1095,GROW - Commercial & Property,General Repairs - Reactive,20004,Repairs Maintenance & Alts,5005,Strawberry Fields - Gas / Air Con / Plumbing Reactive Repairs,22/02/2023,0177330,£657.59,Revenue,Lancashire Gas Services Ltd,78192,,
Chorley Borough Council,http://statistics.data.gov.uk/id/local-authority/30UE,Central Support Services,1009,GROW - Commercial & Property,General Repairs - Reactive,20004,Repairs Maintenance & Alts,5005,Primrose - Gas / Air Con / Plumbing Reactive Repairs,22/02/2023,0177331,"£1,078.99",Revenue,Lancashire Gas Services Ltd,78192,,
Chorley Borough Council,http://statistics.data.gov.uk/id/local-authority/30UE,Central Support Services,1009,GROW - Commercial & Property,General Repairs - Reactive,20004,Repairs Maintenance & Alts,5005,Cotswold - Gas / Air Con / Plumbing Reactive Repairs,22/02/2023,0177333,£420.00,Revenue,Lancashire Gas Services Ltd,78192,,
Chorley Borough Council,http://statistics.data.gov.uk/id/local-authority/30UE,Central Support Services,1009,GROW - Commercial & Property,General Repairs - Reactive,20004,Repairs Maintenance & Alts,5005,Community Centres - Gas / Air Con / Plumbing Reactive Repairs,22/02/2023,0177335,£823.84,Revenue,Lancashire Gas Services Ltd,78192,,
Chorley Borough Council,http://statistics.data.gov.uk/id/local-authority/30UE,Central Support Services,1009,PLAN - Planning & Development,Misc Expenses,40200,Miscellaneous Expenses,5034,"Astley Village Neighborhood Priority Project. Village Green Enhancement as detailed in the landscape plan, specification and Bill",08/02/2023,0176682,"£9,000.00",Revenue,Landscape Engineering Ltd,54727,,
Chorley Borough Council,http://statistics.data.gov.uk/id/local-authority/30UE,Open Spaces,1038,PLAN - Planning & Development,Grounds Maintenance Contractor,20043,Grounds Maintenance Costs,5013,"Astley Village Neighborhood Priority Project. Village Green Enhancement as detailed in the landscape plan, specification and Bill",08/02/2023,0176682,£407.00,Revenue,Landscape Engineering Ltd,54727,,
Chorley Borough Council,http://statistics.data.gov.uk/id/local-authority/30UE,Homelessness,1075,EARL - Communities,Consultants` Fees,40077,Services,5027,Review by NAME REDACTED LTD of Housing Solutions services in Chorley and South Ribble. Cost to be shared 50/50 with SRBC,15/02/2023,0175035,"£20,000.00",Revenue,Laura Paterson Ltd,85298,,
Chorley Borough Council,http://statistics.data.gov.uk/id/local-authority/30UE,Control Accounts,Control,GOVN - Policy & Governance,Manual Control Account,00001,Balance Sheet,Balance,- VAT,08/02/2023,0176905,-£247.77,Revenue,Lex Autolease Ltd,70682,,
Chorley Borough Council,http://statistics.data.gov.uk/id/local-authority/30UE,Central Support Services,1009,CUST - Customer & Digital,Publications,40054,"Printing, Stationery & General",5026,Online Renewal 2022/2023 - Chorley Borough Council,15/02/2023,0176743,"£2,290.00",Revenue,Lexis Nexis UK,16688,,
Chorley Borough Council,http://statistics.data.gov.uk/id/local-authority/30UE,Central Support Services,1009,CUST - Customer & Digital,Professional Fees,14011,Direct Employee Expenses,5001,Empty Homes Review 2022,15/02/2023,0175100,"£3,538.85",Revenue,Liberata (Capacity Grid),67989,,
Chorley Borough Council,http://statistics.data.gov.uk/id/local-authority/30UE,Culture & Heritage,1036,GOVN - Policy & Governance,Exhibitions & Special Events,40158,Miscellaneous Expenses,5034,Light design and installation for Astley Illuminated 2022,08/02/2023,0176582,"£3,162.75",Revenue,Lite Alternative,76993,,
Chorley Borough Council,http://statistics.data.gov.uk/id/local-authority/30UE,Central Support Services,1009,GOVN - Policy & Governance,HR Approved Occ Health Fees,15201,Indirect Employee Expenses,5002,Counselling for staff in December 2022,01/02/2023,0176429,£900.00,Revenue,Livewell Counselling Service,63084,,
Chorley Borough Council,http://statistics.data.gov.uk/id/local-authority/30UE,Corporate Management,1008,EARL - Communities,External Contractor,40198,Miscellaneous Expenses,5034,Support to fund £20 assessment and £280 of hoarding support to help with upstairs hoard at a ladies property.,08/02/2023,0176818,£290.00,Revenue,Marie Bateson,82940,,
Chorley Borough Council,http://statistics.data.gov.uk/id/local-authority/30UE,Central Support Services,1009,EARL - Communities,Misc Expenses,40200,Miscellaneous Expenses,5034,Hoarding support for customer IC Princess Street,22/02/2023,0177177,£300.00,Revenue,Marie Bateson,82940,,
Chorley Borough Council,http://statistics.data.gov.uk/id/local-authority/30UE,Tourism,1039,GOVN - Policy & Governance,Hospitality,40201,Miscellaneous Expenses,5034,7 tickets for the Tourism Awards,08/02/2023,0176721,£595.00,Revenue,Marketing Lancashire,65208,,
Chorley Borough Council,http://statistics.data.gov.uk/id/local-authority/30UE,Building Control,1090,PLAN - Planning & Development,Agency Staff,13000,Direct Employee Expenses,5001,Commenced 17.10.2022 agency fees for NAME REDACTED 37 hours p/w and NAME REDACTED 24 hours p/w until end of financial year 22/23,01/02/2023,0175576,£896.00,Revenue,Matchtech,77343,,
Chorley Borough Council,http://statistics.data.gov.uk/id/local-authority/30UE,Building Control,1090,PLAN - Planning & Development,Agency Staff,13000,Direct Employee Expenses,5001,Commenced 17.10.2022 agency fees for NAME REDACTED 37 hours p/w and NAME REDACTED 24 hours p/w until end of financial year 22/23,01/02/2023,0176433,"£1,680.00",Revenue,Matchtech,77343,,
Chorley Borough Council,http://statistics.data.gov.uk/id/local-authority/30UE,Building Control,1090,PLAN - Planning & Development,Agency Staff,13000,Direct Employee Expenses,5001,Commenced 17.10.2022 agency fees for NAME REDACTED 37 hours p/w and NAME REDACTED 24 hours p/w until end of financial year 22/23,01/02/2023,0176469,"£2,100.00",Revenue,Matchtech,77343,,
Chorley Borough Council,http://statistics.data.gov.uk/id/local-authority/30UE,Building Control,1090,PLAN - Planning & Development,Agency Staff,13000,Direct Employee Expenses,5001,Commenced 17.10.2022 agency fees for NAME REDACTED 37 hours p/w and NAME REDACTED 24 hours p/w until end of financial year 22/23,01/02/2023,0176470,"£1,344.00",Revenue,Matchtech,77343,,
Chorley Borough Council,http://statistics.data.gov.uk/id/local-authority/30UE,Building Control,1090,PLAN - Planning & Development,Agency Staff,13000,Direct Employee Expenses,5001,Commenced 17.10.2022 agency fees for NAME REDACTED 37 hours p/w and NAME REDACTED 24 hours p/w until end of financial year 22/23,08/02/2023,0176733,"£1,344.00",Revenue,Matchtech,77343,,
Chorley Borough Council,http://statistics.data.gov.uk/id/local-authority/30UE,Building Control,1090,PLAN - Planning & Development,Agency Staff,13000,Direct Employee Expenses,5001,Commenced 17.10.2022 agency fees for NAME REDACTED 37 hours p/w and NAME REDACTED 24 hours p/w until end of financial year 22/23,15/02/2023,0176947,"£2,100.00",Revenue,Matchtech,77343,,
Chorley Borough Council,http://statistics.data.gov.uk/id/local-authority/30UE,Building Control,1090,PLAN - Planning & Development,Agency Staff,13000,Direct Employee Expenses,5001,Commenced 17.10.2022 agency fees for NAME REDACTED 37 hours p/w and NAME REDACTED 24 hours p/w until end of financial year 22/23,22/02/2023,0177070,"£2,100.00",Revenue,Matchtech,77343,,
Chorley Borough Council,http://statistics.data.gov.uk/id/local-authority/30UE,Building Control,1090,PLAN - Planning & Development,Agency Staff,13000,Direct Employee Expenses,5001,Commenced 17.10.2022 agency fees for NAME REDACTED 37 hours p/w and NAME REDACTED 24 hours p/w until end of financial year 22/23,22/02/2023,0177283,"£1,344.00",Revenue,Matchtech,77343,,
Chorley Borough Council,http://statistics.data.gov.uk/id/local-authority/30UE,Building Control,1090,PLAN - Planning & Development,Agency Staff,13000,Direct Employee Expenses,5001,Commenced 17.10.2022 agency fees for NAME REDACTED 37 hours p/w and NAME REDACTED 24 hours p/w until end of financial year 22/23,22/02/2023,0177284,"£2,100.00",Revenue,Matchtech,77343,,
Chorley Borough Council,http://statistics.data.gov.uk/id/local-authority/30UE,Building Control,1090,PLAN - Planning & Development,Agency Staff,13000,Direct Employee Expenses,5001,Commenced 17.10.2022 agency fees for NAME REDACTED 37 hours p/w and NAME REDACTED 24 hours p/w until end of financial year 22/23,22/02/2023,0177346,"£1,344.00",Revenue,Matchtech,77343,,
Chorley Borough Council,http://statistics.data.gov.uk/id/local-authority/30UE,Building Control,1090,PLAN - Planning & Development,Agency Staff,13000,Direct Employee Expenses,5001,Commenced 17.10.2022 agency fees for NAME REDACTED 37 hours p/w and NAME REDACTED 24 hours p/w until end of financial year 22/23,22/02/2023,0177347,"£2,128.00",Revenue,Matchtech,77343,,
Chorley Borough Council,http://statistics.data.gov.uk/id/local-authority/30UE,Central Support Services,1009,GROW - Commercial & Property,Planned Maintenance,20006,Repairs Maintenance & Alts,5005,Astley Hall and Buildings - Monthly Water Monitoring 12 mths @ £75pcm,22/02/2023,0177315,£75.00,Revenue,Maxigiene Environmental Services Ltd,67160,,
Chorley Borough Council,http://statistics.data.gov.uk/id/local-authority/30UE,Central Support Services,1009,GROW - Commercial & Property,Planned Maintenance,20006,Repairs Maintenance & Alts,5005,Parks Buildings - Monthly Water Monitoring 12 mths @ £40pcm,22/02/2023,0177315,£40.00,Revenue,Maxigiene Environmental Services Ltd,67160,,
Chorley Borough Council,http://statistics.data.gov.uk/id/local-authority/30UE,Central Support Services,1009,GROW - Commercial & Property,Planned Maintenance,20006,Repairs Maintenance & Alts,5005,Community Centres - Monthly Water Monitoring 12 mths @ £169.16pcm,22/02/2023,0177315,£169.16,Revenue,Maxigiene Environmental Services Ltd,67160,,
Chorley Borough Council,http://statistics.data.gov.uk/id/local-authority/30UE,Central Support Services,1009,GROW - Commercial & Property,Planned Maintenance,20006,Repairs Maintenance & Alts,5005,wc`s - Monthly Water Monitoring 12 mths @ £65pcm,22/02/2023,0177315,£65.00,Revenue,Maxigiene Environmental Services Ltd,67160,,
Chorley Borough Council,http://statistics.data.gov.uk/id/local-authority/30UE,Central Support Services,1009,GROW - Commercial & Property,Planned Maintenance,20006,Repairs Maintenance & Alts,5005,sports pitches and pavilions - Monthly Water Monitoring 12 mths @ £72.08pcm,22/02/2023,0177315,£47.08,Revenue,Maxigiene Environmental Services Ltd,67160,,
Chorley Borough Council,http://statistics.data.gov.uk/id/local-authority/30UE,Central Support Services,1009,GROW - Commercial & Property,Planned Maintenance,20006,Repairs Maintenance & Alts,5005,Bengal St - Monthly Water Monitoring 12 mths @ £25pcm,22/02/2023,0177315,£25.00,Revenue,Maxigiene Environmental Services Ltd,67160,,
Chorley Borough Council,http://statistics.data.gov.uk/id/local-authority/30UE,Central Support Services,1009,GROW - Commercial & Property,Planned Maintenance,20006,Repairs Maintenance & Alts,5005,chorley cemetery - Monthly Water Monitoring 12 mths @ £20pcm,22/02/2023,0177315,£20.00,Revenue,Maxigiene Environmental Services Ltd,67160,,
Chorley Borough Council,http://statistics.data.gov.uk/id/local-authority/30UE,Community Development,1097,GROW - Commercial & Property,Planned Maintenance,20006,Repairs Maintenance & Alts,5005,CAB 35-39 Market St - Monthly Water Monitoring 12 mths @ £20pcm,22/02/2023,0177315,£20.00,Revenue,Maxigiene Environmental Services Ltd,67160,,
Chorley Borough Council,http://statistics.data.gov.uk/id/local-authority/30UE,Business Support,1095,GROW - Commercial & Property,Planned Maintenance,20006,Repairs Maintenance & Alts,5005,MW Market Walk - Monthly Water Monitoring 12 mths @ £20pcm,22/02/2023,0177315,£20.00,Revenue,Maxigiene Environmental Services Ltd,67160,,
Chorley Borough Council,http://statistics.data.gov.uk/id/local-authority/30UE,Central Support Services,1009,GROW - Commercial & Property,Planned Maintenance,20006,Repairs Maintenance & Alts,5005,Cotswold - Monthly Water Monitoring 12 mths @ £20pcm,22/02/2023,0177315,£20.00,Revenue,Maxigiene Environmental Services Ltd,67160,,
Chorley Borough Council,http://statistics.data.gov.uk/id/local-authority/30UE,Central Support Services,1009,GROW - Commercial & Property,Planned Maintenance,20006,Repairs Maintenance & Alts,5005,Market - Monthly Water Monitoring 12 mths @ £20pcm,22/02/2023,0177315,£20.00,Revenue,Maxigiene Environmental Services Ltd,67160,,
Chorley Borough Council,http://statistics.data.gov.uk/id/local-authority/30UE,Central Support Services,1009,GROW - Commercial & Property,Planned Maintenance,20006,Repairs Maintenance & Alts,5005,Primrose - Monthly Water Monitoring 12 mths @ £30pcm,22/02/2023,0177315,£30.00,Revenue,Maxigiene Environmental Services Ltd,67160,,
Chorley Borough Council,http://statistics.data.gov.uk/id/local-authority/30UE,Business Support,1095,GROW - Commercial & Property,Planned Maintenance,20006,Repairs Maintenance & Alts,5005,Strawberry Fields - Monthly Water Monitoring 12 mths @ £30pcm,22/02/2023,0177315,£30.00,Revenue,Maxigiene Environmental Services Ltd,67160,,
Chorley Borough Council,http://statistics.data.gov.uk/id/local-authority/30UE,Central Support Services,1009,GROW - Commercial & Property,Planned Maintenance,20006,Repairs Maintenance & Alts,5005,Town Hall - Monthly Water Monitoring 12 mths @ £25pcm,22/02/2023,0177315,£25.00,Revenue,Maxigiene Environmental Services Ltd,67160,,
Chorley Borough Council,http://statistics.data.gov.uk/id/local-authority/30UE,Central Support Services,1009,GROW - Commercial & Property,Planned Maintenance,20006,Repairs Maintenance & Alts,5005,Union St - Monthly Water Monitoring 12 mths @ £25pcm,22/02/2023,0177315,£25.00,Revenue,Maxigiene Environmental Services Ltd,67160,,
Chorley Borough Council,http://statistics.data.gov.uk/id/local-authority/30UE,Central Support Services,1009,GROW - Commercial & Property,Planned Maintenance,20006,Repairs Maintenance & Alts,5005,Westway - Monthly Water Monitoring 12 mths @ £30pcm,22/02/2023,0177315,£30.00,Revenue,Maxigiene Environmental Services Ltd,67160,,
Chorley Borough Council,http://statistics.data.gov.uk/id/local-authority/30UE,Central Support Services,1009,CUST - Customer & Digital,Items For Resale,40027,"Equipment, Furniture & Materia",5023,Brown lids for 240L wheeled bins. Quantity = 100,08/02/2023,0176420,£800.00,Revenue,MGB Plastics Ltd,18624,,
Chorley Borough Council,http://statistics.data.gov.uk/id/local-authority/30UE,Central Support Services,1009,CUST - Customer & Digital,Items For Resale,40027,"Equipment, Furniture & Materia",5023,Green lids for 240L wheeled bin. Quantity 200,08/02/2023,0176421,"£1,600.00",Revenue,MGB Plastics Ltd,18624,,
Chorley Borough Council,http://statistics.data.gov.uk/id/local-authority/30UE,Central Support Services,1009,CUST - Customer & Digital,Items For Resale,40027,"Equipment, Furniture & Materia",5023,Blue lids for 240L wheeled bins. Quantity = 100,08/02/2023,0176422,£800.00,Revenue,MGB Plastics Ltd,18624,,
Chorley Borough Council,http://statistics.data.gov.uk/id/local-authority/30UE,Central Support Services,1009,GROW - Commercial & Property,General Repairs - Reactive,20004,Repairs Maintenance & Alts,5005,Cemeteries - Drainage Reactive Repairs,08/02/2023,0176755,£450.00,Revenue,Michael Roe,78294,,
Chorley Borough Council,http://statistics.data.gov.uk/id/local-authority/30UE,Central Support Services,1009,GROW - Commercial & Property,General Repairs - Reactive,20004,Repairs Maintenance & Alts,5005,Parks - Drainage Reactive Repairs,08/02/2023,0176756,£280.00,Revenue,Michael Roe,78294,,
Chorley Borough Council,http://statistics.data.gov.uk/id/local-authority/30UE,Central Support Services,1009,GROW - Commercial & Property,General Repairs - Reactive,20004,Repairs Maintenance & Alts,5005,Astley Hall and Buildings - Drainage Reactive Repairs,08/02/2023,0176828,£280.00,Revenue,Michael Roe,78294,,
Chorley Borough Council,http://statistics.data.gov.uk/id/local-authority/30UE,Central Support Services,1009,GROW - Commercial & Property,General Repairs - Reactive,20004,Repairs Maintenance & Alts,5005,Astley Hall and Buildings - Drainage Reactive Repairs,08/02/2023,0176831,£280.00,Revenue,Michael Roe,78294,,
Chorley Borough Council,http://statistics.data.gov.uk/id/local-authority/30UE,Central Support Services,1009,GOVN - Policy & Governance,Other Clothing,40041,"Clothing, Uniforms and Laundry",5025,Mayor`s Tricorn. Size 58.5cm.Delivery before 28th January 2023.,08/02/2023,0176432,£478.50,Revenue,Michaels Civic Robes,76606,,
Chorley Borough Council,http://statistics.data.gov.uk/id/local-authority/30UE,Collection Fund Revenue Accoun,,GOVN - Policy & Governance,Transitional Protection,02033,Precepts & Collection Fund,Precept,trans protn contributions,03/02/2023,0175302,"£3,412.00",Revenue,Ministry of Housing Communities & Local Government,16280,,
Chorley Borough Council,http://statistics.data.gov.uk/id/local-authority/30UE,Collection Fund Revenue Accoun,,GOVN - Policy & Governance,NNDR Central Share,02034,Precepts & Collection Fund,Precept,central share BR,03/02/2023,0175302,"£1,029,011.00",Revenue,Ministry of Housing Communities & Local Government,16280,,
Chorley Borough Council,http://statistics.data.gov.uk/id/local-authority/30UE,Collection Fund Revenue Accoun,,GOVN - Policy & Governance,NNDR Central Share,02034,Precepts & Collection Fund,Precept,deficit collection fund,03/02/2023,0175302,"-£468,512.00",Revenue,Ministry of Housing Communities & Local Government,16280,,
Chorley Borough Council,http://statistics.data.gov.uk/id/local-authority/30UE,Collection Fund Revenue Accoun,,GOVN - Policy & Governance,Transitional Protection,02033,Precepts & Collection Fund,Precept,transitional relief,03/02/2023,0175302,£0.00,Revenue,Ministry of Housing Communities & Local Government,16280,,
Chorley Borough Council,http://statistics.data.gov.uk/id/local-authority/30UE,General Government Grants,,GOVN - Policy & Governance,Revenue Support Grant,69000,Income not in NCOS,,revenue support grant,03/02/2023,0175414,-£37.00,Revenue,Ministry of Housing Communities & Local Government,16280,,
Chorley Borough Council,http://statistics.data.gov.uk/id/local-authority/30UE,Collection Fund Revenue Accoun,,GOVN - Policy & Governance,NNDR Central Share,02034,Precepts & Collection Fund,Precept,central share BR,03/02/2023,0175414,"£920,618.00",Revenue,Ministry of Housing Communities & Local Government,16280,,
Chorley Borough Council,http://statistics.data.gov.uk/id/local-authority/30UE,Collection Fund Revenue Accoun,,GOVN - Policy & Governance,NNDR Central Share,02034,Precepts & Collection Fund,Precept,deficit collection fund,03/02/2023,0175414,"-£234,715.00",Revenue,Ministry of Housing Communities & Local Government,16280,,
Chorley Borough Council,http://statistics.data.gov.uk/id/local-authority/30UE,Private Sector HSG Renewal,1073,EARL - Communities,External Contractor,40198,Miscellaneous Expenses,5034,Ref 6770,01/02/2023,0176442,£85.00,Revenue,Mobility Care Services,70841,,
Chorley Borough Council,http://statistics.data.gov.uk/id/local-authority/30UE,Private Sector HSG Renewal,1073,EARL - Communities,External Contractor,40198,Miscellaneous Expenses,5034,Ref 6815,01/02/2023,0176442,£280.00,Revenue,Mobility Care Services,70841,,
Chorley Borough Council,http://statistics.data.gov.uk/id/local-authority/30UE,Private Sector HSG Renewal,1073,EARL - Communities,External Contractor,40198,Miscellaneous Expenses,5034,Ref 6812,01/02/2023,0176442,£132.00,Revenue,Mobility Care Services,70841,,
Chorley Borough Council,http://statistics.data.gov.uk/id/local-authority/30UE,Private Sector HSG Renewal,1073,EARL - Communities,External Contractor,40198,Miscellaneous Expenses,5034,Ref 6813,01/02/2023,0176442,£132.00,Revenue,Mobility Care Services,70841,,
Chorley Borough Council,http://statistics.data.gov.uk/id/local-authority/30UE,Private Sector HSG Renewal,1073,EARL - Communities,External Contractor,40198,Miscellaneous Expenses,5034,Ref 6831,01/02/2023,0176442,£132.00,Revenue,Mobility Care Services,70841,,
Chorley Borough Council,http://statistics.data.gov.uk/id/local-authority/30UE,Private Sector HSG Renewal,1073,EARL - Communities,External Contractor,40198,Miscellaneous Expenses,5034,Ref 6829,01/02/2023,0176442,£114.50,Revenue,Mobility Care Services,70841,,
Chorley Borough Council,http://statistics.data.gov.uk/id/local-authority/30UE,Private Sector HSG Renewal,1073,EARL - Communities,External Contractor,40198,Miscellaneous Expenses,5034,Ref 6830,01/02/2023,0176442,£132.00,Revenue,Mobility Care Services,70841,,
Chorley Borough Council,http://statistics.data.gov.uk/id/local-authority/30UE,Private Sector HSG Renewal,1073,EARL - Communities,External Contractor,40198,Miscellaneous Expenses,5034,Ref 6814,01/02/2023,0176442,£995.00,Revenue,Mobility Care Services,70841,,
Chorley Borough Council,http://statistics.data.gov.uk/id/local-authority/30UE,Private Sector HSG Renewal,1073,EARL - Communities,External Contractor,40198,Miscellaneous Expenses,5034,Ref 6862,01/02/2023,0176442,£17.00,Revenue,Mobility Care Services,70841,,
Chorley Borough Council,http://statistics.data.gov.uk/id/local-authority/30UE,Private Sector HSG Renewal,1073,EARL - Communities,External Contractor,40198,Miscellaneous Expenses,5034,Ref 6895,01/02/2023,0176442,£132.00,Revenue,Mobility Care Services,70841,,
Chorley Borough Council,http://statistics.data.gov.uk/id/local-authority/30UE,Private Sector HSG Renewal,1073,EARL - Communities,External Contractor,40198,Miscellaneous Expenses,5034,Ref 6894,01/02/2023,0176442,£114.50,Revenue,Mobility Care Services,70841,,
Chorley Borough Council,http://statistics.data.gov.uk/id/local-authority/30UE,Private Sector HSG Renewal,1073,EARL - Communities,External Contractor,40198,Miscellaneous Expenses,5034,Ref 6893,01/02/2023,0176442,£990.00,Revenue,Mobility Care Services,70841,,
Chorley Borough Council,http://statistics.data.gov.uk/id/local-authority/30UE,Private Sector HSG Renewal,1073,EARL - Communities,External Contractor,40198,Miscellaneous Expenses,5034,Ref 6891,01/02/2023,0176442,£132.00,Revenue,Mobility Care Services,70841,,
Chorley Borough Council,http://statistics.data.gov.uk/id/local-authority/30UE,Private Sector HSG Renewal,1073,EARL - Communities,External Contractor,40198,Miscellaneous Expenses,5034,Ref 6890,01/02/2023,0176442,£132.00,Revenue,Mobility Care Services,70841,,
Chorley Borough Council,http://statistics.data.gov.uk/id/local-authority/30UE,Private Sector HSG Renewal,1073,EARL - Communities,External Contractor,40198,Miscellaneous Expenses,5034,Ref 6889,01/02/2023,0176442,£264.00,Revenue,Mobility Care Services,70841,,
Chorley Borough Council,http://statistics.data.gov.uk/id/local-authority/30UE,Private Sector HSG Renewal,1073,EARL - Communities,External Contractor,40198,Miscellaneous Expenses,5034,Ref 6887,01/02/2023,0176442,£420.00,Revenue,Mobility Care Services,70841,,
Chorley Borough Council,http://statistics.data.gov.uk/id/local-authority/30UE,Private Sector HSG Renewal,1073,EARL - Communities,External Contractor,40198,Miscellaneous Expenses,5034,Ref 6892,01/02/2023,0176442,£114.50,Revenue,Mobility Care Services,70841,,
Chorley Borough Council,http://statistics.data.gov.uk/id/local-authority/30UE,Private Sector HSG Renewal,1073,EARL - Communities,External Contractor,40198,Miscellaneous Expenses,5034,Ref 6914,01/02/2023,0176442,£204.00,Revenue,Mobility Care Services,70841,,
Chorley Borough Council,http://statistics.data.gov.uk/id/local-authority/30UE,Private Sector HSG Renewal,1073,EARL - Communities,External Contractor,40198,Miscellaneous Expenses,5034,Ref 6913,01/02/2023,0176442,£34.00,Revenue,Mobility Care Services,70841,,
Chorley Borough Council,http://statistics.data.gov.uk/id/local-authority/30UE,Private Sector HSG Renewal,1073,EARL - Communities,External Contractor,40198,Miscellaneous Expenses,5034,Ref 6912,01/02/2023,0176442,£80.00,Revenue,Mobility Care Services,70841,,
Chorley Borough Council,http://statistics.data.gov.uk/id/local-authority/30UE,Private Sector HSG Renewal,1073,EARL - Communities,External Contractor,40198,Miscellaneous Expenses,5034,Ref 200184,01/02/2023,0176443,£85.00,Revenue,Mobility Care Services,70841,,
Chorley Borough Council,http://statistics.data.gov.uk/id/local-authority/30UE,Private Sector HSG Renewal,1073,EARL - Communities,External Contractor,40198,Miscellaneous Expenses,5034,Ref 200185,01/02/2023,0176443,£68.00,Revenue,Mobility Care Services,70841,,
Chorley Borough Council,http://statistics.data.gov.uk/id/local-authority/30UE,Private Sector HSG Renewal,1073,EARL - Communities,External Contractor,40198,Miscellaneous Expenses,5034,Ref 200186,01/02/2023,0176443,£34.00,Revenue,Mobility Care Services,70841,,
Chorley Borough Council,http://statistics.data.gov.uk/id/local-authority/30UE,Private Sector HSG Renewal,1073,EARL - Communities,External Contractor,40198,Miscellaneous Expenses,5034,Ref 200187,01/02/2023,0176443,£85.00,Revenue,Mobility Care Services,70841,,
Chorley Borough Council,http://statistics.data.gov.uk/id/local-authority/30UE,Private Sector HSG Renewal,1073,EARL - Communities,External Contractor,40198,Miscellaneous Expenses,5034,Ref 200176,01/02/2023,0176443,£68.00,Revenue,Mobility Care Services,70841,,
Chorley Borough Council,http://statistics.data.gov.uk/id/local-authority/30UE,Private Sector HSG Renewal,1073,EARL - Communities,External Contractor,40198,Miscellaneous Expenses,5034,Ref 200173,01/02/2023,0176443,£85.00,Revenue,Mobility Care Services,70841,,
Chorley Borough Council,http://statistics.data.gov.uk/id/local-authority/30UE,Private Sector HSG Renewal,1073,EARL - Communities,External Contractor,40198,Miscellaneous Expenses,5034,Ref 200172,01/02/2023,0176443,£68.00,Revenue,Mobility Care Services,70841,,
Chorley Borough Council,http://statistics.data.gov.uk/id/local-authority/30UE,Private Sector HSG Renewal,1073,EARL - Communities,External Contractor,40198,Miscellaneous Expenses,5034,Ref 200171,01/02/2023,0176443,£85.00,Revenue,Mobility Care Services,70841,,
Chorley Borough Council,http://statistics.data.gov.uk/id/local-authority/30UE,Private Sector HSG Renewal,1073,EARL - Communities,External Contractor,40198,Miscellaneous Expenses,5034,Ref 20153,01/02/2023,0176443,£34.00,Revenue,Mobility Care Services,70841,,
Chorley Borough Council,http://statistics.data.gov.uk/id/local-authority/30UE,Private Sector HSG Renewal,1073,EARL - Communities,External Contractor,40198,Miscellaneous Expenses,5034,Ref 20142,01/02/2023,0176443,£119.00,Revenue,Mobility Care Services,70841,,
Chorley Borough Council,http://statistics.data.gov.uk/id/local-authority/30UE,Private Sector HSG Renewal,1073,EARL - Communities,External Contractor,40198,Miscellaneous Expenses,5034,Ref 20141,01/02/2023,0176443,£85.00,Revenue,Mobility Care Services,70841,,
Chorley Borough Council,http://statistics.data.gov.uk/id/local-authority/30UE,Private Sector HSG Renewal,1073,EARL - Communities,External Contractor,40198,Miscellaneous Expenses,5034,Ref 20140,01/02/2023,0176443,£68.00,Revenue,Mobility Care Services,70841,,
Chorley Borough Council,http://statistics.data.gov.uk/id/local-authority/30UE,Private Sector HSG Renewal,1073,EARL - Communities,External Contractor,40198,Miscellaneous Expenses,5034,Ref 20139,01/02/2023,0176443,£264.00,Revenue,Mobility Care Services,70841,,
Chorley Borough Council,http://statistics.data.gov.uk/id/local-authority/30UE,Private Sector HSG Renewal,1073,EARL - Communities,External Contractor,40198,Miscellaneous Expenses,5034,Ref 20138,01/02/2023,0176443,£220.00,Revenue,Mobility Care Services,70841,,
Chorley Borough Council,http://statistics.data.gov.uk/id/local-authority/30UE,Private Sector HSG Renewal,1073,EARL - Communities,External Contractor,40198,Miscellaneous Expenses,5034,Ref 20137,01/02/2023,0176443,£680.00,Revenue,Mobility Care Services,70841,,
Chorley Borough Council,http://statistics.data.gov.uk/id/local-authority/30UE,Private Sector HSG Renewal,1073,EARL - Communities,External Contractor,40198,Miscellaneous Expenses,5034,Ref 20136,01/02/2023,0176443,£420.00,Revenue,Mobility Care Services,70841,,
Chorley Borough Council,http://statistics.data.gov.uk/id/local-authority/30UE,Private Sector HSG Renewal,1073,EARL - Communities,External Contractor,40198,Miscellaneous Expenses,5034,Ref 20135,01/02/2023,0176443,£280.00,Revenue,Mobility Care Services,70841,,
Chorley Borough Council,http://statistics.data.gov.uk/id/local-authority/30UE,Private Sector HSG Renewal,1073,EARL - Communities,External Contractor,40198,Miscellaneous Expenses,5034,Ref 20119,01/02/2023,0176443,£750.00,Revenue,Mobility Care Services,70841,,
Chorley Borough Council,http://statistics.data.gov.uk/id/local-authority/30UE,Private Sector HSG Renewal,1073,EARL - Communities,External Contractor,40198,Miscellaneous Expenses,5034,Ref 20117,01/02/2023,0176443,£132.00,Revenue,Mobility Care Services,70841,,
Chorley Borough Council,http://statistics.data.gov.uk/id/local-authority/30UE,Private Sector HSG Renewal,1073,EARL - Communities,External Contractor,40198,Miscellaneous Expenses,5034,Ref 20115,01/02/2023,0176443,£264.00,Revenue,Mobility Care Services,70841,,
Chorley Borough Council,http://statistics.data.gov.uk/id/local-authority/30UE,Private Sector HSG Renewal,1073,EARL - Communities,External Contractor,40198,Miscellaneous Expenses,5034,Ref 20114,01/02/2023,0176443,£132.00,Revenue,Mobility Care Services,70841,,
Chorley Borough Council,http://statistics.data.gov.uk/id/local-authority/30UE,Private Sector HSG Renewal,1073,EARL - Communities,External Contractor,40198,Miscellaneous Expenses,5034,Ref 20113,01/02/2023,0176443,£264.00,Revenue,Mobility Care Services,70841,,
Chorley Borough Council,http://statistics.data.gov.uk/id/local-authority/30UE,Private Sector HSG Renewal,1073,EARL - Communities,External Contractor,40198,Miscellaneous Expenses,5034,Ref 200188,01/02/2023,0176443,£85.00,Revenue,Mobility Care Services,70841,,
Chorley Borough Council,http://statistics.data.gov.uk/id/local-authority/30UE,Private Sector HSG Renewal,1073,EARL - Communities,External Contractor,40198,Miscellaneous Expenses,5034,Ref 200189,01/02/2023,0176443,£68.00,Revenue,Mobility Care Services,70841,,
Chorley Borough Council,http://statistics.data.gov.uk/id/local-authority/30UE,Private Sector HSG Renewal,1073,EARL - Communities,External Contractor,40198,Miscellaneous Expenses,5034,Ref 200190,01/02/2023,0176443,£85.00,Revenue,Mobility Care Services,70841,,
Chorley Borough Council,http://statistics.data.gov.uk/id/local-authority/30UE,Capital,Capital,EARL - Communities,Grants,03002,Capital Expenditure,Capital,22/00133/CAG NAME REDACTED,08/02/2023,0176850,"£5,080.00",Capital,Mobility Care Services,70841,,
Chorley Borough Council,http://statistics.data.gov.uk/id/local-authority/30UE,Elections,1012,GOVN - Policy & Governance,Computer Software-Maintenance,40107,Communication and Computing,5028,Software rental and licence fee for the supply of Modern Polling in 71 Polling stations (hiring 81 iPads) for two weeks for main ,01/02/2023,0175258,"£39,400.00",Revenue,Modern Democracy Limited,87072,,
Chorley Borough Council,http://statistics.data.gov.uk/id/local-authority/30UE,Open Spaces,1038,PLAN - Planning & Development,External Contractor,40198,Miscellaneous Expenses,5034,"Moor Road Allotments, removal and replacement of fencing and making good ground at Brancker St.",08/02/2023,0176802,"£3,115.00",Revenue,Mr Andy Hart,72236,,
Chorley Borough Council,http://statistics.data.gov.uk/id/local-authority/30UE,Tourism,1039,GOVN - Policy & Governance,Publicity - Advertising,40157,Miscellaneous Expenses,5034,"Vinyl WristbandsOptions: Type: Printed - Product Colour: 7Colours(Orangex5000, Redx5000, NavyBluex5000, Yellowx3000, Goldx500,Gol",08/02/2023,0176602,"£3,900.00",Revenue,Munco International T/A Adband,60837,,
Chorley Borough Council,http://statistics.data.gov.uk/id/local-authority/30UE,Development Control,1091,PLAN - Planning & Development,Statutory Notices,40160,Miscellaneous Expenses,5034,Planning Public Notices to appear in the Chorley Guardian April 2022 to March 2023,01/02/2023,0175275,£304.20,Revenue,National World Publishing Limited,20072,,
Chorley Borough Council,http://statistics.data.gov.uk/id/local-authority/30UE,Parking Services,1066,GROW - Commercial & Property,Fixtures & Fittings - Repair/Mtnce,20028,Fixtures and Fittings,5010,To supply the advertising package for the Chorley Guardian re traffic notices for the Chorley Town Centre Car Park Variations,01/02/2023,0175575,£689.52,Revenue,National World Publishing Limited,20072,,
Chorley Borough Council,http://statistics.data.gov.uk/id/local-authority/30UE,Central Support Services,1009,EARL - Communities,Misc Expenses,40200,Miscellaneous Expenses,5034,Delivery of Warm Spaces across all NAME REDACTED in Chorley,22/02/2023,0177418,"£1,500.00",Revenue,New Friends for You,82903,,
Chorley Borough Council,http://statistics.data.gov.uk/id/local-authority/30UE,Central Support Services,1009,GOVN - Policy & Governance,Publicity - Advertising,40157,Miscellaneous Expenses,5034,Invoice No: CC009 Events Edits Packages: Chorley Flower Show Main Reel + Edits Astley Hall Main Reel + Edits,08/02/2023,0176512,"£1,000.00",Revenue,North Film Studios Limited,85582,,
Chorley Borough Council,http://statistics.data.gov.uk/id/local-authority/30UE,Central Support Services,1009,GOVN - Policy & Governance,Publicity - Advertising,40157,Miscellaneous Expenses,5034,Chorley main tourism reel editInvoice: CC010,08/02/2023,0176747,£350.00,Revenue,North Film Studios Limited,85582,,
Chorley Borough Council,http://statistics.data.gov.uk/id/local-authority/30UE,Business Support,1095,GROW - Commercial & Property,Contract Catering,40038,Catering,5024,3 x NWT2163 Clipper coffee sticks @ 21.49,15/02/2023,0176956,£64.47,Revenue,North West Tea FM Solutions,78255,,
Chorley Borough Council,http://statistics.data.gov.uk/id/local-authority/30UE,Business Support,1095,GROW - Commercial & Property,Contract Catering,40038,Catering,5024,3 x NWT2164 clipper decaff coffee sticks @ £23.99,15/02/2023,0176956,£71.97,Revenue,North West Tea FM Solutions,78255,,
Chorley Borough Council,http://statistics.data.gov.uk/id/local-authority/30UE,Business Support,1095,GROW - Commercial & Property,Contract Catering,40038,Catering,5024,6 x NWT3814 Hill mini pack biscuits @ £13.99,15/02/2023,0176956,£83.94,Revenue,North West Tea FM Solutions,78255,,
Chorley Borough Council,http://statistics.data.gov.uk/id/local-authority/30UE,Business Support,1095,GROW - Commercial & Property,Refreshments,40036,Catering,5024,2 x NWT235 Clipper every day tea bags (1120) @ £25.99,15/02/2023,0176956,£51.98,Revenue,North West Tea FM Solutions,78255,,
Chorley Borough Council,http://statistics.data.gov.uk/id/local-authority/30UE,Business Support,1095,GROW - Commercial & Property,Refreshments,40036,Catering,5024,4 x NWT084 Clipper coffe (4 x 500g) @ £73.96,15/02/2023,0176956,£295.84,Revenue,North West Tea FM Solutions,78255,,
Chorley Borough Council,http://statistics.data.gov.uk/id/local-authority/30UE,Business Support,1095,GROW - Commercial & Property,Refreshments,40036,Catering,5024,2 x NWT119 2kg granulated sugar (pack of 6) @ £17.94,15/02/2023,0176956,£35.88,Revenue,North West Tea FM Solutions,78255,,
Chorley Borough Council,http://statistics.data.gov.uk/id/local-authority/30UE,Central Support Services,1009,CUST - Customer & Digital,Hire Of Vehicles and Plant,30028,Contrct Hire & Operating Lease,5018,"vehicle hire, 3.5 ton Luton Van with tail lift (April 2021 - 31 March 2022)",08/02/2023,0174868,"£3,456.83",Revenue,Northgate Vehicle Hire (NW) Ltd,17360,,
Chorley Borough Council,http://statistics.data.gov.uk/id/local-authority/30UE,Central Support Services,1009,CUST - Customer & Digital,Hire Of Vehicles and Plant,30028,Contrct Hire & Operating Lease,5018,Vehicle hire 3.5ton Luton Van with tail-lift,15/02/2023,0176647,£683.20,Revenue,Northgate Vehicle Hire (NW) Ltd,17360,,
Chorley Borough Council,http://statistics.data.gov.uk/id/local-authority/30UE,Tourism,1039,GOVN - Policy & Governance,Tools & Equipment - Hire,40004,"Equipment, Furniture & Materia",5023,Portaloo Hire for Winter Wonderland7 regular portaloos and 2 disabled with baby change portaloos. To hire for the duration of the,08/02/2023,0176595,"£4,025.00",Revenue,Northwest Portables,74432,,
Chorley Borough Council,http://statistics.data.gov.uk/id/local-authority/30UE,Recreation & Sport,1037,GROW - Commercial & Property,Electricity,20013,Energy Costs,5006,1st dec to 31 dec 22,15/02/2023,0176981,"£13,896.30",Revenue,Npower Commercial Gas,16814,,
Chorley Borough Council,http://statistics.data.gov.uk/id/local-authority/30UE,Homelessness,1075,GROW - Commercial & Property,Electricity,20013,Energy Costs,5006,Cotswold communal rooms,15/02/2023,0177073,"£1,403.22",Revenue,Npower Commercial Gas,16814,,
Chorley Borough Council,http://statistics.data.gov.uk/id/local-authority/30UE,Homelessness,1075,GROW - Commercial & Property,Electricity,20013,Energy Costs,5006,Cotswold single storey,15/02/2023,0177074,£268.34,Revenue,Npower Commercial Gas,16814,,
Chorley Borough Council,http://statistics.data.gov.uk/id/local-authority/30UE,Homelessness,1075,GROW - Commercial & Property,Electricity,20013,Energy Costs,5006,cotswold two storey wing,15/02/2023,0177075,£774.24,Revenue,Npower Commercial Gas,16814,,
Chorley Borough Council,http://statistics.data.gov.uk/id/local-authority/30UE,Recreation & Sport,1037,GROW - Commercial & Property,Electricity,20013,Energy Costs,5006,Eaves green com ctr,15/02/2023,0177076,£272.59,Revenue,Npower Commercial Gas,16814,,
Chorley Borough Council,http://statistics.data.gov.uk/id/local-authority/30UE,Central Support Services,1009,GROW - Commercial & Property,Electricity,20013,Energy Costs,5006,civic office,15/02/2023,0177078,"£7,109.51",Revenue,Npower Commercial Gas,16814,,
Chorley Borough Council,http://statistics.data.gov.uk/id/local-authority/30UE,Recreation & Sport,1037,GROW - Commercial & Property,Electricity,20013,Energy Costs,5006,Clayton green sports ctr,15/02/2023,0177080,"£2,930.24",Revenue,Npower Commercial Gas,16814,,
Chorley Borough Council,http://statistics.data.gov.uk/id/local-authority/30UE,Open Spaces,1038,GROW - Commercial & Property,Electricity,20013,Energy Costs,5006,Tatton gardens,15/02/2023,0177082,£273.58,Revenue,Npower Commercial Gas,16814,,
Chorley Borough Council,http://statistics.data.gov.uk/id/local-authority/30UE,Community Development,1097,GROW - Commercial & Property,Electricity,20013,Energy Costs,5006,info and advice centre,15/02/2023,0177084,£354.52,Revenue,Npower Commercial Gas,16814,,
Chorley Borough Council,http://statistics.data.gov.uk/id/local-authority/30UE,Parking Services,1066,GROW - Commercial & Property,Electricity,20013,Energy Costs,5006,Friday street,15/02/2023,0177086,£771.78,Revenue,Npower Commercial Gas,16814,,
Chorley Borough Council,http://statistics.data.gov.uk/id/local-authority/30UE,Parking Services,1066,GROW - Commercial & Property,Electricity,20013,Energy Costs,5006,union street car park,15/02/2023,0177087,"£3,573.93",Revenue,Npower Commercial Gas,16814,,
Chorley Borough Council,http://statistics.data.gov.uk/id/local-authority/30UE,Recreation & Sport,1037,GROW - Commercial & Property,Electricity,20013,Energy Costs,5006,,15/02/2023,0177091,£610.02,Revenue,Npower Commercial Gas,16814,,
Chorley Borough Council,http://statistics.data.gov.uk/id/local-authority/30UE,Recreation & Sport,1037,GROW - Commercial & Property,Electricity,20013,Energy Costs,5006,,15/02/2023,0177095,"£2,311.79",Revenue,Npower Commercial Gas,16814,,
Chorley Borough Council,http://statistics.data.gov.uk/id/local-authority/30UE,Central Support Services,1009,GROW - Commercial & Property,Electricity,20013,Energy Costs,5006,,15/02/2023,0177097,"£2,999.02",Revenue,Npower Commercial Gas,16814,,
Chorley Borough Council,http://statistics.data.gov.uk/id/local-authority/30UE,Parking Services,1066,GROW - Commercial & Property,Electricity,20013,Energy Costs,5006,,15/02/2023,0177098,"£1,173.18",Revenue,Npower Commercial Gas,16814,,
Chorley Borough Council,http://statistics.data.gov.uk/id/local-authority/30UE,Business Support,1095,GROW - Commercial & Property,Electricity,20013,Energy Costs,5006,,15/02/2023,0177099,"£3,731.24",Revenue,Npower Commercial Gas,16814,,
Chorley Borough Council,http://statistics.data.gov.uk/id/local-authority/30UE,Business Support,1095,GROW - Commercial & Property,Electricity,20013,Energy Costs,5006,,15/02/2023,0177101,"£9,892.09",Revenue,Npower Commercial Gas,16814,,
Chorley Borough Council,http://statistics.data.gov.uk/id/local-authority/30UE,Central Support Services,1009,GROW - Commercial & Property,Electricity,20013,Energy Costs,5006,,15/02/2023,0177105,"£6,259.81",Revenue,Npower Commercial Gas,16814,,
Chorley Borough Council,http://statistics.data.gov.uk/id/local-authority/30UE,Parking Services,1066,GROW - Commercial & Property,Electricity,20013,Energy Costs,5006,,15/02/2023,0177106,£840.64,Revenue,Npower Commercial Gas,16814,,
Chorley Borough Council,http://statistics.data.gov.uk/id/local-authority/30UE,Central Support Services,1009,GROW - Commercial & Property,Electricity,20013,Energy Costs,5006,,15/02/2023,0177108,"£1,239.83",Revenue,Npower Commercial Gas,16814,,
Chorley Borough Council,http://statistics.data.gov.uk/id/local-authority/30UE,Service Management Support,1009,GROW - Commercial & Property,Electricity,20013,Energy Costs,5006,,15/02/2023,0177109,£397.52,Revenue,Npower Commercial Gas,16814,,
Chorley Borough Council,http://statistics.data.gov.uk/id/local-authority/30UE,Open Spaces,1038,GROW - Commercial & Property,Electricity,20013,Energy Costs,5006,,15/02/2023,0177110,"£1,081.82",Revenue,Npower Commercial Gas,16814,,
Chorley Borough Council,http://statistics.data.gov.uk/id/local-authority/30UE,Recreation & Sport,1037,GROW - Commercial & Property,Electricity,20013,Energy Costs,5006,Bowling hut tatton gardens,22/02/2023,0177353,£342.11,Revenue,Npower Commercial Gas,16814,,
Chorley Borough Council,http://statistics.data.gov.uk/id/local-authority/30UE,Open Spaces,1038,GROW - Commercial & Property,Electricity,20013,Energy Costs,5006,Feeder Pillar tatton gardens,22/02/2023,0177355,£324.03,Revenue,Npower Commercial Gas,16814,,
Chorley Borough Council,http://statistics.data.gov.uk/id/local-authority/30UE,Parking Services,1066,GROW - Commercial & Property,Electricity,20013,Energy Costs,5006,,22/02/2023,0177358,£764.15,Revenue,Npower Commercial Gas,16814,,
Chorley Borough Council,http://statistics.data.gov.uk/id/local-authority/30UE,Parking Services,1066,GROW - Commercial & Property,Electricity,20013,Energy Costs,5006,Oak house car park,22/02/2023,0177359,"£1,344.30",Revenue,Npower Commercial Gas,16814,,
Chorley Borough Council,http://statistics.data.gov.uk/id/local-authority/30UE,Recreation & Sport,1037,GROW - Commercial & Property,Electricity,20013,Energy Costs,5006,Eaves Lane GP Surgery,22/02/2023,0177361,£594.52,Revenue,Npower Commercial Gas,16814,,
Chorley Borough Council,http://statistics.data.gov.uk/id/local-authority/30UE,Community Development,1097,GROW - Commercial & Property,Electricity,20013,Energy Costs,5006,1st floor info and advice centre,22/02/2023,0177363,£392.29,Revenue,Npower Commercial Gas,16814,,
Chorley Borough Council,http://statistics.data.gov.uk/id/local-authority/30UE,Recreation & Sport,1037,GROW - Commercial & Property,Electricity,20013,Energy Costs,5006,Astley village comm ctr,22/02/2023,0177366,£270.79,Revenue,Npower Commercial Gas,16814,,
Chorley Borough Council,http://statistics.data.gov.uk/id/local-authority/30UE,Open Spaces,1038,GROW - Commercial & Property,Electricity,20013,Energy Costs,5006,Astley hall,22/02/2023,0177367,"£2,738.14",Revenue,Npower Commercial Gas,16814,,
Chorley Borough Council,http://statistics.data.gov.uk/id/local-authority/30UE,Cemetery Cremation & Mortuary,1041,GROW - Commercial & Property,Electricity,20013,Energy Costs,5006,Cemeteries office,22/02/2023,0177369,£454.23,Revenue,Npower Commercial Gas,16814,,
Chorley Borough Council,http://statistics.data.gov.uk/id/local-authority/30UE,Open Spaces,1038,GROW - Commercial & Property,Electricity,20013,Energy Costs,5006,Astley park changing rooms,22/02/2023,0177370,£905.74,Revenue,Npower Commercial Gas,16814,,
Chorley Borough Council,http://statistics.data.gov.uk/id/local-authority/30UE,Homelessness,1075,GROW - Commercial & Property,Electricity,20013,Energy Costs,5006,Cotswold house communal rooms,22/02/2023,0177372,"£1,368.17",Revenue,Npower Commercial Gas,16814,,
Chorley Borough Council,http://statistics.data.gov.uk/id/local-authority/30UE,Homelessness,1075,GROW - Commercial & Property,Electricity,20013,Energy Costs,5006,Cotswold house single storey wing,22/02/2023,0177373,£287.32,Revenue,Npower Commercial Gas,16814,,
Chorley Borough Council,http://statistics.data.gov.uk/id/local-authority/30UE,Homelessness,1075,GROW - Commercial & Property,Electricity,20013,Energy Costs,5006,Cotswold house two storey wing,22/02/2023,0177375,£754.74,Revenue,Npower Commercial Gas,16814,,
Chorley Borough Council,http://statistics.data.gov.uk/id/local-authority/30UE,Business Support,1095,GROW - Commercial & Property,Electricity,20013,Energy Costs,5006,Landlords communal area market walk,22/02/2023,0177376,"£1,883.99",Revenue,Npower Commercial Gas,16814,,
Chorley Borough Council,http://statistics.data.gov.uk/id/local-authority/30UE,Parking Services,1066,GROW - Commercial & Property,Electricity,20013,Energy Costs,5006,Bengal street,22/02/2023,0177377,"£3,198.89",Revenue,Npower Commercial Gas,16814,,
Chorley Borough Council,http://statistics.data.gov.uk/id/local-authority/30UE,Recreation & Sport,1037,GROW - Commercial & Property,Electricity,20013,Energy Costs,5006,Eaves green road,22/02/2023,0177382,£356.90,Revenue,Npower Commercial Gas,16814,,
Chorley Borough Council,http://statistics.data.gov.uk/id/local-authority/30UE,Central Support Services,1009,GROW - Commercial & Property,Electricity,20013,Energy Costs,5006,Civic union street,22/02/2023,0177384,"£6,877.81",Revenue,Npower Commercial Gas,16814,,
Chorley Borough Council,http://statistics.data.gov.uk/id/local-authority/30UE,Central Support Services,1009,GROW - Commercial & Property,Electricity,20013,Energy Costs,5006,Bengal street,22/02/2023,0177385,"£2,900.53",Revenue,Npower Commercial Gas,16814,,
Chorley Borough Council,http://statistics.data.gov.uk/id/local-authority/30UE,Central Support Services,1009,GROW - Commercial & Property,Electricity,20013,Energy Costs,5006,Town hall,22/02/2023,0177386,"£6,003.53",Revenue,Npower Commercial Gas,16814,,
Chorley Borough Council,http://statistics.data.gov.uk/id/local-authority/30UE,Recreation & Sport,1037,GROW - Commercial & Property,Electricity,20013,Energy Costs,5006,Clayton brook village hall,22/02/2023,0177387,£319.95,Revenue,Npower Commercial Gas,16814,,
Chorley Borough Council,http://statistics.data.gov.uk/id/local-authority/30UE,Recreation & Sport,1037,GROW - Commercial & Property,Electricity,20013,Energy Costs,5006,,22/02/2023,0177387,£1.02,Revenue,Npower Commercial Gas,16814,,
Chorley Borough Council,http://statistics.data.gov.uk/id/local-authority/30UE,Business Support,1095,GROW - Commercial & Property,Electricity,20013,Energy Costs,5006,Landlord primrose,22/02/2023,0177388,"£3,415.20",Revenue,Npower Commercial Gas,16814,,
Chorley Borough Council,http://statistics.data.gov.uk/id/local-authority/30UE,Business Support,1095,GROW - Commercial & Property,Electricity,20013,Energy Costs,5006,Strawberry fields digital hub,22/02/2023,0177389,"£8,943.58",Revenue,Npower Commercial Gas,16814,,
Chorley Borough Council,http://statistics.data.gov.uk/id/local-authority/30UE,Recreation & Sport,1037,GROW - Commercial & Property,Electricity,20013,Energy Costs,5006,All seasons,22/02/2023,0177390,"£13,437.24",Revenue,Npower Commercial Gas,16814,,
Chorley Borough Council,http://statistics.data.gov.uk/id/local-authority/30UE,Recreation & Sport,1037,GROW - Commercial & Property,Electricity,20013,Energy Costs,5006,Clayton green sprts ctr,22/02/2023,0177391,"£2,911.20",Revenue,Npower Commercial Gas,16814,,
Chorley Borough Council,http://statistics.data.gov.uk/id/local-authority/30UE,Recreation & Sport,1037,GROW - Commercial & Property,Electricity,20013,Energy Costs,5006,Brinscall baths,22/02/2023,0177392,"£2,221.98",Revenue,Npower Commercial Gas,16814,,
Chorley Borough Council,http://statistics.data.gov.uk/id/local-authority/30UE,Central Support Services,1009,GROW - Commercial & Property,Electricity,20013,Energy Costs,5006,West way sports hub,22/02/2023,0177393,"£1,803.03",Revenue,Npower Commercial Gas,16814,,
Chorley Borough Council,http://statistics.data.gov.uk/id/local-authority/30UE,Service Management Support,1009,GROW - Commercial & Property,Electricity,20013,Energy Costs,5006,Astley farm,22/02/2023,0177395,£389.80,Revenue,Npower Commercial Gas,16814,,
Chorley Borough Council,http://statistics.data.gov.uk/id/local-authority/30UE,Central Support Services,1009,GOVN - Policy & Governance,Legal Fees,40171,Miscellaneous Expenses,5034,Investigation prep - Invoice 1007,08/02/2023,0176418,£475.00,Revenue,NWLAEO North West Employers,17571,,
Chorley Borough Council,http://statistics.data.gov.uk/id/local-authority/30UE,Capital,Capital,GROW - Commercial & Property,Other Capital Related Fees,03024,Capital Expenditure,Capital,Please supply furniture as per pro forma 0000009959 supplied by NAME REDACTED,01/02/2023,0175468,"£4,823.76",Capital,Office Reality LTD,21771,,
Chorley Borough Council,http://statistics.data.gov.uk/id/local-authority/30UE,Capital,Capital,GROW - Commercial & Property,Other Capital Related Fees,03024,Capital Expenditure,Capital,Please supply furniture as per pro forma 0000009959 supplied by NAME REDACTED,01/02/2023,0175513,"£2,604.40",Capital,Office Reality LTD,21771,,
Chorley Borough Council,http://statistics.data.gov.uk/id/local-authority/30UE,Culture & Heritage,1036,GOVN - Policy & Governance,Exhibitions & Special Events,40158,Miscellaneous Expenses,5034,Performance Fees - Astley Illuminated 22nd October 2022,08/02/2023,0176500,£500.00,Revenue,Outreach Opera,83895,,
Chorley Borough Council,http://statistics.data.gov.uk/id/local-authority/30UE,Tourism,1039,CUST - Customer & Digital,Tools & Equipment - Hire,40004,"Equipment, Furniture & Materia",5023,As per invoice 21413 20x Cable ties,08/02/2023,0175512,£344.00,Revenue,P D M Components,19204,,
Chorley Borough Council,http://statistics.data.gov.uk/id/local-authority/30UE,Tourism,1039,GOVN - Policy & Governance,Tools & Equipment - Hire,40004,"Equipment, Furniture & Materia",5023,"Land Train for Chorley`s Santa Express 26 & 27 November 20223, 4, 10, 11, 17 & 18 December 2022",22/02/2023,0176661,"£14,800.00",Revenue,P White t/a Premier Novelty Wheels,73020,,
Chorley Borough Council,http://statistics.data.gov.uk/id/local-authority/30UE,Parking Services,1066,GROW - Commercial & Property,Printing,40043,"Printing, Stationery & General",5026,As per quotation: 124378 Please supply 200k ~Stelio Adhesive Check Out Chorley tickets - £8.66 per 1000. Please deliver to: NAME REDACTED,01/02/2023,0175511,"£1,740.66",Revenue,Paperwork (UK) Limited,18296,,
Chorley Borough Council,http://statistics.data.gov.uk/id/local-authority/30UE,Planning Policy,1092,PLAN - Planning & Development,Agency Staff,13000,Direct Employee Expenses,5001,Agency labour for work on the Central Lancashire Local plan (NAME REDACTED),22/02/2023,0177151,"£1,472.00",Revenue,Park Avenue Recruitment Ltd,82305,,
Chorley Borough Council,http://statistics.data.gov.uk/id/local-authority/30UE,Planning Policy,1092,PLAN - Planning & Development,Agency Staff,13000,Direct Employee Expenses,5001,Agency labour for work on the Central Lancashire Local plan (NAME REDACTED),22/02/2023,0177281,"£2,541.50",Revenue,Park Avenue Recruitment Ltd,82305,,
Chorley Borough Council,http://statistics.data.gov.uk/id/local-authority/30UE,Planning Policy,1092,PLAN - Planning & Development,Agency Staff,13000,Direct Employee Expenses,5001,Agency labour for work on the Central Lancashire Local plan (NAME REDACTED),22/02/2023,0177282,"£1,564.00",Revenue,Park Avenue Recruitment Ltd,82305,,
Chorley Borough Council,http://statistics.data.gov.uk/id/local-authority/30UE,Economic Development,1096,GROW - Commercial & Property,Cleaning Materials,40019,"Equipment, Furniture & Materia",5023,Cleaning supplies : Please supply to Chorley markets as per email,01/02/2023,0175510,£667.99,Revenue,Pattersons Holdings (Bristol),77537,,
Chorley Borough Council,http://statistics.data.gov.uk/id/local-authority/30UE,Central Support Services,1009,GOVN - Policy & Governance,Cleaning Materials,40019,"Equipment, Furniture & Materia",5023,"•	AD104 Mini Jumbo 12 pack QTY 10 packs @ £16.80 pack",08/02/2023,0176434,£168.00,Revenue,Pattersons Holdings (Bristol),77537,,
Chorley Borough Council,http://statistics.data.gov.uk/id/local-authority/30UE,Central Support Services,1009,GOVN - Policy & Governance,Cleaning Materials,40019,"Equipment, Furniture & Materia",5023,"•	AC003 Small toilet rolls 36 pack @ £11.17/pack QTY 10 packs",08/02/2023,0176434,£111.70,Revenue,Pattersons Holdings (Bristol),77537,,
Chorley Borough Council,http://statistics.data.gov.uk/id/local-authority/30UE,Central Support Services,1009,GOVN - Policy & Governance,Cleaning Materials,40019,"Equipment, Furniture & Materia",5023,"•	BC040-5 Fragranced toilet cleaner 5Ltr @ £3.85 per container qty 10 x 5L",08/02/2023,0176434,£34.65,Revenue,Pattersons Holdings (Bristol),77537,,
Chorley Borough Council,http://statistics.data.gov.uk/id/local-authority/30UE,Central Support Services,1009,GOVN - Policy & Governance,Cleaning Materials,40019,"Equipment, Furniture & Materia",5023,"•	BG040FL Spray Air fresh 400ml @ £13.10 per per pack of 12 QTY 1 pack",08/02/2023,0176434,£13.08,Revenue,Pattersons Holdings (Bristol),77537,,
Chorley Borough Council,http://statistics.data.gov.uk/id/local-authority/30UE,Central Support Services,1009,GOVN - Policy & Governance,Cleaning Materials,40019,"Equipment, Furniture & Materia",5023,"•	BC015-5 Bleach 5ltr QTY 8 x 5L @ £2.87 per container",08/02/2023,0176434,£22.96,Revenue,Pattersons Holdings (Bristol),77537,,
Chorley Borough Council,http://statistics.data.gov.uk/id/local-authority/30UE,Central Support Services,1009,GOVN - Policy & Governance,Cleaning Materials,40019,"Equipment, Furniture & Materia",5023,"•	BC045-1 Wash room cleaner descaler £0.94 for 1 litre Qty 8 x 1L containers",08/02/2023,0176434,£7.52,Revenue,Pattersons Holdings (Bristol),77537,,
Chorley Borough Council,http://statistics.data.gov.uk/id/local-authority/30UE,Central Support Services,1009,GOVN - Policy & Governance,Cleaning Materials,40019,"Equipment, Furniture & Materia",5023,"•	FA-173 Henry Vac Bag qty 4 boxes packs £3.63 per pack",08/02/2023,0176434,£14.52,Revenue,Pattersons Holdings (Bristol),77537,,
Chorley Borough Council,http://statistics.data.gov.uk/id/local-authority/30UE,Central Support Services,1009,GOVN - Policy & Governance,Cleaning Materials,40019,"Equipment, Furniture & Materia",5023,"•	AE233 Paper Hand towels qty 30 £11.43 per box each",08/02/2023,0176434,£342.90,Revenue,Pattersons Holdings (Bristol),77537,,
Chorley Borough Council,http://statistics.data.gov.uk/id/local-authority/30UE,Central Support Services,1009,GOVN - Policy & Governance,Cleaning Materials,40019,"Equipment, Furniture & Materia",5023,"•	DG150-M Disposable gloves QTY 10 @£5.72 each",08/02/2023,0176434,£57.20,Revenue,Pattersons Holdings (Bristol),77537,,
Chorley Borough Council,http://statistics.data.gov.uk/id/local-authority/30UE,Central Support Services,1009,GOVN - Policy & Governance,Cleaning Materials,40019,"Equipment, Furniture & Materia",5023,"•	AF113 Blue centre feed rolls - 6 pack @£13.57 per pack",08/02/2023,0176434,£81.42,Revenue,Pattersons Holdings (Bristol),77537,,
Chorley Borough Council,http://statistics.data.gov.uk/id/local-authority/30UE,Central Support Services,1009,GOVN - Policy & Governance,Cleaning Materials,40019,"Equipment, Furniture & Materia",5023,"•	CM180 Black Bin Liners £12.97 Qty 10 boxes",08/02/2023,0176434,£129.70,Revenue,Pattersons Holdings (Bristol),77537,,
Chorley Borough Council,http://statistics.data.gov.uk/id/local-authority/30UE,Central Support Services,1009,GOVN - Policy & Governance,Cleaning Materials,40019,"Equipment, Furniture & Materia",5023,"•	VA012-75 Spray bleach 750ml QTY 10 £1.25 each",08/02/2023,0176434,£12.50,Revenue,Pattersons Holdings (Bristol),77537,,
Chorley Borough Council,http://statistics.data.gov.uk/id/local-authority/30UE,Central Support Services,1009,GOVN - Policy & Governance,Cleaning Materials,40019,"Equipment, Furniture & Materia",5023,"•	CG121G Green dish cloths £1.13 per pack of 10 QTY 10 packs",08/02/2023,0176434,£11.30,Revenue,Pattersons Holdings (Bristol),77537,,
Chorley Borough Council,http://statistics.data.gov.uk/id/local-authority/30UE,Business Support,1095,GROW - Commercial & Property,Cleaning Materials,40019,"Equipment, Furniture & Materia",5023,Initial cleaning order for Tatton Gardens,01/02/2023,0176435,"£1,403.15",Revenue,Pattersons Holdings (Bristol),77537,,
Chorley Borough Council,http://statistics.data.gov.uk/id/local-authority/30UE,Business Support,1095,GROW - Commercial & Property,Cleaning Materials,40019,"Equipment, Furniture & Materia",5023,Initial cleaning order for Tatton Gardens,01/02/2023,0176471,£898.96,Revenue,Pattersons Holdings (Bristol),77537,,
Chorley Borough Council,http://statistics.data.gov.uk/id/local-authority/30UE,Business Support,1095,GROW - Commercial & Property,Cleaning Materials,40019,"Equipment, Furniture & Materia",5023,AF113- BLUE ROLL,08/02/2023,0176639,£13.57,Revenue,Pattersons Holdings (Bristol),77537,,
Chorley Borough Council,http://statistics.data.gov.uk/id/local-authority/30UE,Business Support,1095,GROW - Commercial & Property,Cleaning Materials,40019,"Equipment, Furniture & Materia",5023,PX-00012- DISHWASHER CLEANER X 4,08/02/2023,0176639,£13.72,Revenue,Pattersons Holdings (Bristol),77537,,
Chorley Borough Council,http://statistics.data.gov.uk/id/local-authority/30UE,Business Support,1095,GROW - Commercial & Property,Cleaning Materials,40019,"Equipment, Furniture & Materia",5023,BB103- DISHWASHER CAPSUALS,08/02/2023,0176639,£11.84,Revenue,Pattersons Holdings (Bristol),77537,,
Chorley Borough Council,http://statistics.data.gov.uk/id/local-authority/30UE,Business Support,1095,GROW - Commercial & Property,Cleaning Materials,40019,"Equipment, Furniture & Materia",5023,BA028-75- GLASS AND MIRROR CLEANER X3,08/02/2023,0176639,£3.63,Revenue,Pattersons Holdings (Bristol),77537,,
Chorley Borough Council,http://statistics.data.gov.uk/id/local-authority/30UE,Business Support,1095,GROW - Commercial & Property,Cleaning Materials,40019,"Equipment, Furniture & Materia",5023,BA010-5- MULTI PURPOSE CLEANER -X3,08/02/2023,0176639,£21.48,Revenue,Pattersons Holdings (Bristol),77537,,
Chorley Borough Council,http://statistics.data.gov.uk/id/local-authority/30UE,Business Support,1095,GROW - Commercial & Property,Cleaning Materials,40019,"Equipment, Furniture & Materia",5023,BC041-1- PERFUMES CLEANER X24,08/02/2023,0176639,£23.52,Revenue,Pattersons Holdings (Bristol),77537,,
Chorley Borough Council,http://statistics.data.gov.uk/id/local-authority/30UE,Business Support,1095,GROW - Commercial & Property,Cleaning Materials,40019,"Equipment, Furniture & Materia",5023,AE214- HAND TOWELS- X6,08/02/2023,0176639,£97.74,Revenue,Pattersons Holdings (Bristol),77537,,
Chorley Borough Council,http://statistics.data.gov.uk/id/local-authority/30UE,Business Support,1095,GROW - Commercial & Property,Cleaning Materials,40019,"Equipment, Furniture & Materia",5023,BB031-1 WASHING UP LIQUID X3,08/02/2023,0176639,£4.05,Revenue,Pattersons Holdings (Bristol),77537,,
Chorley Borough Council,http://statistics.data.gov.uk/id/local-authority/30UE,Business Support,1095,GROW - Commercial & Property,Cleaning Materials,40019,"Equipment, Furniture & Materia",5023,BA036-75- MEDICAL SANITISER X6,08/02/2023,0176639,£6.54,Revenue,Pattersons Holdings (Bristol),77537,,
Chorley Borough Council,http://statistics.data.gov.uk/id/local-authority/30UE,Business Support,1095,GROW - Commercial & Property,Cleaning Materials,40019,"Equipment, Furniture & Materia",5023,CG106-Y1-TELLOW CLOTHS,08/02/2023,0176639,£3.10,Revenue,Pattersons Holdings (Bristol),77537,,
Chorley Borough Council,http://statistics.data.gov.uk/id/local-authority/30UE,Business Support,1095,GROW - Commercial & Property,Cleaning Materials,40019,"Equipment, Furniture & Materia",5023,AA301- JUMBO ROLL X4,08/02/2023,0176639,£181.48,Revenue,Pattersons Holdings (Bristol),77537,,
Chorley Borough Council,http://statistics.data.gov.uk/id/local-authority/30UE,Business Support,1095,GROW - Commercial & Property,Cleaning Materials,40019,"Equipment, Furniture & Materia",5023,CM120- BLACK BIN BAGSX 2,08/02/2023,0176639,£25.94,Revenue,Pattersons Holdings (Bristol),77537,,
Chorley Borough Council,http://statistics.data.gov.uk/id/local-authority/30UE,Business Support,1095,GROW - Commercial & Property,Cleaning Materials,40019,"Equipment, Furniture & Materia",5023,C163-C- CLEAR BAGS X4,08/02/2023,0176639,£45.24,Revenue,Pattersons Holdings (Bristol),77537,,
Chorley Borough Council,http://statistics.data.gov.uk/id/local-authority/30UE,Business Support,1095,GROW - Commercial & Property,Cleaning Materials,40019,"Equipment, Furniture & Materia",5023,HL005-B- BLUE AND WHITESPONDGES X2,08/02/2023,0176639,£2.76,Revenue,Pattersons Holdings (Bristol),77537,,
Chorley Borough Council,http://statistics.data.gov.uk/id/local-authority/30UE,Business Support,1095,GROW - Commercial & Property,Cleaning Materials,40019,"Equipment, Furniture & Materia",5023,TEMP037- SANITISING WIPES X4,08/02/2023,0176639,£5.00,Revenue,Pattersons Holdings (Bristol),77537,,
Chorley Borough Council,http://statistics.data.gov.uk/id/local-authority/30UE,Tourism,1039,GOVN - Policy & Governance,Misc Expenses,40200,Miscellaneous Expenses,5034,"Performance of Aladdin Venue - Lancastrian Suite, Chorley Town Hall, PR7 1DPDate- Saturday 10th December 2022 Start Time - 1:30pm",15/02/2023,0177044,£900.00,Revenue,PENDLE PRODUCTIONS,19917,,
Chorley Borough Council,http://statistics.data.gov.uk/id/local-authority/30UE,Central Support Services,1009,GOVN - Policy & Governance,HR Recruitment - Advertising,15300,Indirect Employee Expenses,5002,Head of service recruitment,01/02/2023,0175463,"£13,248.00",Revenue,Penna Plc,77833,,
Chorley Borough Council,http://statistics.data.gov.uk/id/local-authority/30UE,Central Support Services,1009,GROW - Commercial & Property,Planned Maintenance,20006,Repairs Maintenance & Alts,5005,Fire safety equipment annual checkscommunity centres,08/02/2023,0176685,£183.55,Revenue,Pennine Fire & Safety Limited,69643,,
Chorley Borough Council,http://statistics.data.gov.uk/id/local-authority/30UE,Central Support Services,1009,GROW - Commercial & Property,Planned Maintenance,20006,Repairs Maintenance & Alts,5005,Fire safety equipment annual checksAstley Hall and Buildings,08/02/2023,0176685,£368.60,Revenue,Pennine Fire & Safety Limited,69643,,
Chorley Borough Council,http://statistics.data.gov.uk/id/local-authority/30UE,Central Support Services,1009,GROW - Commercial & Property,Planned Maintenance,20006,Repairs Maintenance & Alts,5005,Fire safety equipment annual checksParks Buildings,08/02/2023,0176685,£103.40,Revenue,Pennine Fire & Safety Limited,69643,,
Chorley Borough Council,http://statistics.data.gov.uk/id/local-authority/30UE,Central Support Services,1009,GROW - Commercial & Property,Planned Maintenance,20006,Repairs Maintenance & Alts,5005,Fire safety equipment annual checksBengal St,08/02/2023,0176685,£306.00,Revenue,Pennine Fire & Safety Limited,69643,,
Chorley Borough Council,http://statistics.data.gov.uk/id/local-authority/30UE,Central Support Services,1009,GROW - Commercial & Property,Planned Maintenance,20006,Repairs Maintenance & Alts,5005,Fire safety equipment annual checksCemeteries,08/02/2023,0176685,£51.70,Revenue,Pennine Fire & Safety Limited,69643,,
Chorley Borough Council,http://statistics.data.gov.uk/id/local-authority/30UE,Community Development,1097,GROW - Commercial & Property,Planned Maintenance,20006,Repairs Maintenance & Alts,5005,Fire safety equipment annual checksCAB/MP,08/02/2023,0176685,£57.70,Revenue,Pennine Fire & Safety Limited,69643,,
Chorley Borough Council,http://statistics.data.gov.uk/id/local-authority/30UE,Central Support Services,1009,GROW - Commercial & Property,Planned Maintenance,20006,Repairs Maintenance & Alts,5005,Fire safety equipment annual checksUnion St,08/02/2023,0176685,£161.05,Revenue,Pennine Fire & Safety Limited,69643,,
Chorley Borough Council,http://statistics.data.gov.uk/id/local-authority/30UE,Central Support Services,1009,GROW - Commercial & Property,Planned Maintenance,20006,Repairs Maintenance & Alts,5005,Fire safety equipment annual checksCotswold,08/02/2023,0176685,£80.75,Revenue,Pennine Fire & Safety Limited,69643,,
Chorley Borough Council,http://statistics.data.gov.uk/id/local-authority/30UE,Central Support Services,1009,GROW - Commercial & Property,Planned Maintenance,20006,Repairs Maintenance & Alts,5005,Fire safety equipment annual checkscommercial (ADDRESS REDACTED),08/02/2023,0176685,£26.70,Revenue,Pennine Fire & Safety Limited,69643,,
Chorley Borough Council,http://statistics.data.gov.uk/id/local-authority/30UE,Central Support Services,1009,GROW - Commercial & Property,Planned Maintenance,20006,Repairs Maintenance & Alts,5005,Fire safety equipment annual checksmarket,08/02/2023,0176685,£40.00,Revenue,Pennine Fire & Safety Limited,69643,,
Chorley Borough Council,http://statistics.data.gov.uk/id/local-authority/30UE,Business Support,1095,GROW - Commercial & Property,Planned Maintenance,20006,Repairs Maintenance & Alts,5005,Fire safety equipment annual checksMarket Walk Extension,08/02/2023,0176685,£25.00,Revenue,Pennine Fire & Safety Limited,69643,,
Chorley Borough Council,http://statistics.data.gov.uk/id/local-authority/30UE,Business Support,1095,GROW - Commercial & Property,Planned Maintenance,20006,Repairs Maintenance & Alts,5005,Fire safety equipment annual checksMarket Walk,08/02/2023,0176685,£28.40,Revenue,Pennine Fire & Safety Limited,69643,,
Chorley Borough Council,http://statistics.data.gov.uk/id/local-authority/30UE,Central Support Services,1009,GROW - Commercial & Property,Planned Maintenance,20006,Repairs Maintenance & Alts,5005,Fire safety equipment annual checksTown Hall,08/02/2023,0176685,£391.47,Revenue,Pennine Fire & Safety Limited,69643,,
Chorley Borough Council,http://statistics.data.gov.uk/id/local-authority/30UE,Central Support Services,1009,GROW - Commercial & Property,Planned Maintenance,20006,Repairs Maintenance & Alts,5005,Tatton Gardens NurseryFire Risk AssessmentThe entire site and all processes would be fully evaluated by our assessor and a report,22/02/2023,0177195,£250.00,Revenue,Pennine Fire & Safety Limited,69643,,
Chorley Borough Council,http://statistics.data.gov.uk/id/local-authority/30UE,Central Support Services,1009,GOVN - Policy & Governance,HR Approved Occ Health Fees,15201,Indirect Employee Expenses,5002,Occupational Health charges for January 2023 - Invoice No 124587,22/02/2023,0177326,£420.53,Revenue,People Asset Management Limited,76487,,
Chorley Borough Council,http://statistics.data.gov.uk/id/local-authority/30UE,Planning Policy,1092,GROW - Commercial & Property,Legal Fees,40171,Miscellaneous Expenses,5034,Professional Fees for appearing at Lands Tribunal Hearing in the case of CBC v Interlec 19/5/22,01/02/2023,0176450,"£2,981.25",Revenue,Peter E Gilkes & Co,17634,,
Chorley Borough Council,http://statistics.data.gov.uk/id/local-authority/30UE,Tourism,1039,GOVN - Policy & Governance,Tools & Equipment - Hire,40004,"Equipment, Furniture & Materia",5023,A supply of up to 3000 litre`s of red diesel for Chorley`s Winter Wonderland for the ice rink and tipi heaters. Delivery is at Cl,01/02/2023,0175190,"£3,220.23",Revenue,Pilkington Oils,18075,,
Chorley Borough Council,http://statistics.data.gov.uk/id/local-authority/30UE,Service Management & Support,1009,CUST - Customer & Digital,Supplies-Grounds Maintenance,40025,"Equipment, Furniture & Materia",5023,2 x Ad blue barrel 200 litres,08/02/2023,0176680,£640.00,Revenue,Pilkington Oils,18075,,
Chorley Borough Council,http://statistics.data.gov.uk/id/local-authority/30UE,Development Control,1091,PLAN - Planning & Development,Professional Fees,40063,Services,5027,Planning Enforcement Services April 2022 to March 2023,15/02/2023,0176642,"£1,140.00",Revenue,Planning and PACE Solutions Ltd,82083,,
Chorley Borough Council,http://statistics.data.gov.uk/id/local-authority/30UE,Development Control,1091,PLAN - Planning & Development,Professional Fees,40063,Services,5027,Planning Enforcement Services April 2022 to March 2023,15/02/2023,0176644,"£2,036.65",Revenue,Planning and PACE Solutions Ltd,82083,,
Chorley Borough Council,http://statistics.data.gov.uk/id/local-authority/30UE,Development Control,1091,PLAN - Planning & Development,Professional Fees,40063,Services,5027,delivery,15/02/2023,0176644,£53.55,Revenue,Planning and PACE Solutions Ltd,82083,,
Chorley Borough Council,http://statistics.data.gov.uk/id/local-authority/30UE,Development Control,1091,PLAN - Planning & Development,Professional Fees,40063,Services,5027,Planning Enforcement Services April 2022 to March 2023,15/02/2023,0176753,"£1,862.00",Revenue,Planning and PACE Solutions Ltd,82083,,
Chorley Borough Council,http://statistics.data.gov.uk/id/local-authority/30UE,Parking Services,1066,GROW - Commercial & Property,Fixtures & Fittings - Repair/Mtnce,20028,Fixtures and Fittings,5010,As per quote ref: 18177/1 Re: Correx revised tariff notification.Manufacture and SupplyA3 Correx Signs - Qty x 33PortraitTARIFF C,08/02/2023,0176631,£289.55,Revenue,Poppy Signs Ltd,21898,,
Chorley Borough Council,http://statistics.data.gov.uk/id/local-authority/30UE,Parking Services,1066,GROW - Commercial & Property,Fixtures & Fittings - Repair/Mtnce,20028,Fixtures and Fittings,5010,As per quote reference 18040/1. Re: car park tariff changes Feb 2023Apply new parking tariff onto 19no. Existing signs.Replacemen,15/02/2023,0176901,"£12,906.29",Revenue,Poppy Signs Ltd,21898,,
Chorley Borough Council,http://statistics.data.gov.uk/id/local-authority/30UE,Corporate Management,1008,GOVN - Policy & Governance,Corp Training Organisational Development,17006,Indirect Employee Expenses,5002,Purchase - People Strategy - Graduate Development Programme 22/23,15/02/2023,0176426,"£1,000.00",Revenue,Potential Unearthed,22243,,
Chorley Borough Council,http://statistics.data.gov.uk/id/local-authority/30UE,Corporate Management,1008,GOVN - Policy & Governance,Corp Training Organisational Development,17006,Indirect Employee Expenses,5002,Purchase - People Strategy - Graduate Development Programme 22/23,15/02/2023,0176786,£600.00,Revenue,Potential Unearthed,22243,,
Chorley Borough Council,http://statistics.data.gov.uk/id/local-authority/30UE,Central Support Services,1009,GROW - Commercial & Property,General Repairs - Reactive,20004,Repairs Maintenance & Alts,5005,Primrose GardensEmergency call out following head release,08/02/2023,0176705,£399.00,Revenue,Prima Fire and Security,81153,,
Chorley Borough Council,http://statistics.data.gov.uk/id/local-authority/30UE,Elections,1012,GOVN - Policy & Governance,Postages,40082,Communication and Computing,5028,PI Refresh Mailings - Reminders,22/02/2023,0177275,£702.67,Revenue,Print Image Facilities LLP,57870,,
Chorley Borough Council,http://statistics.data.gov.uk/id/local-authority/30UE,Central Support Services,1009,CUST - Customer & Digital,IT Consultancy Fees,40223,Services,5027,Professional services to support the implementation and roll out of shared virtual desktop across South Ribble and Chorley Counci,22/02/2023,0172796,"£13,326.67",Revenue,Proact IT UK Limited,85559,,
Chorley Borough Council,http://statistics.data.gov.uk/id/local-authority/30UE,Interest Payable on Debt,1020,GOVN - Policy & Governance,Interest Payable,09009,Interest Payments,5067,Interest LN506764,03/02/2023,0175376,"£28,875.00",Revenue,Public Works Loans Board,21480,,
Chorley Borough Council,http://statistics.data.gov.uk/id/local-authority/30UE,Interest Payable on Debt,1020,GOVN - Policy & Governance,Interest Payable,09009,Interest Payments,5067,Interest LN506766,03/02/2023,0175376,"£14,928.57",Revenue,Public Works Loans Board,21480,,
Chorley Borough Council,http://statistics.data.gov.uk/id/local-authority/30UE,Interest Payable on Debt,1020,GOVN - Policy & Governance,Interest Payable,09009,Interest Payments,5067,interest LN508381,03/02/2023,0175402,"£33,885.00",Revenue,Public Works Loans Board,21480,,
Chorley Borough Council,http://statistics.data.gov.uk/id/local-authority/30UE,Interest Payable on Debt,1020,GOVN - Policy & Governance,Interest Payable,09009,Interest Payments,5067,interest LN508382,03/02/2023,0175402,"£35,313.75",Revenue,Public Works Loans Board,21480,,
Chorley Borough Council,http://statistics.data.gov.uk/id/local-authority/30UE,Capital,Capital,PLAN - Planning & Development,Main Contractor,03007,Capital Expenditure,Capital,"Construction of Pavilion at King George V PLaying Fields - £150,000 as approved under signed letter of intent.",01/02/2023,0175684,"£13,974.01",Capital,Pulse Design and Build Ltd,85602,,
Chorley Borough Council,http://statistics.data.gov.uk/id/local-authority/30UE,Homelessness,1075,EARL - Communities,Service Fees,40056,Services,5027,NAME REDACTED TA - 02/12-20/12,01/02/2023,0176481,"£1,061.61",Revenue,Purple Roomz,84223,,
Chorley Borough Council,http://statistics.data.gov.uk/id/local-authority/30UE,Regulatory Services,1048,PLAN - Planning & Development,Taxi Testing & Vehicle Safety Report,40234,Services,5027,taxi tests,01/02/2023,0176430,£518.80,Revenue,R.C.J Motors,63625,,
Chorley Borough Council,http://statistics.data.gov.uk/id/local-authority/30UE,Regulatory Services,1048,PLAN - Planning & Development,Taxi Testing & Vehicle Safety Report,40234,Services,5027,taxi test items,22/02/2023,0177272,£324.25,Revenue,R.C.J Motors,63625,,
Chorley Borough Council,http://statistics.data.gov.uk/id/local-authority/30UE,Culture & Heritage,1036,GOVN - Policy & Governance,Arts Development Initiatives,40187,Miscellaneous Expenses,5034,"final artist fee payment - £1,500",08/02/2023,0176744,"£1,500.00",Revenue,Rebecca Chesney,78286,,
Chorley Borough Council,http://statistics.data.gov.uk/id/local-authority/30UE,Non Domestic Rates Redistribut,,GOVN - Policy & Governance,Levy to Business Rates Pool,49003,Expenditure not in NCOS,,10% LCC share under Business Rates pooling arrangements for 2021-22,08/02/2023,0176666,"£95,838.00",Revenue,Ribble Valley Borough Council,77109,,
Chorley Borough Council,http://statistics.data.gov.uk/id/local-authority/30UE,Corporate Management,1008,GOVN - Policy & Governance,Other Fees,40212,Miscellaneous Expenses,5034,Admin charge for being in the Business Rates Pool for 2022-23,08/02/2023,0176666,"£1,818.18",Revenue,Ribble Valley Borough Council,77109,,
Chorley Borough Council,http://statistics.data.gov.uk/id/local-authority/30UE,Non Domestic Rates Redistribut,,GOVN - Policy & Governance,Tariff to Business Rates Pool,49002,Expenditure not in NCOS,,lancs bus rates pool,03/02/2023,0175415,"£520,258.00",Revenue,Ribble Valley Borough Council DIRECT DEBIT ONLY,21100,,
Chorley Borough Council,http://statistics.data.gov.uk/id/local-authority/30UE,Capital,Capital,GROW - Commercial & Property,Consultants Fees,03025,Capital Expenditure,Capital,"PM/QS + Building Surveyor professional services extension - Tatton Gardens Development, Chorley",01/02/2023,0175311,"£76,320.00",Capital,Rider Levett Bucknall,67527,,
Chorley Borough Council,http://statistics.data.gov.uk/id/local-authority/30UE,Central Support Services,1009,GROW - Commercial & Property,Professional Fees,40063,Services,5027,Marketing fees for council commercial property from May 2022 to April 2023,08/02/2023,0176654,"£1,020.00",Revenue,Rightmove Group Ltd,77717,,
Chorley Borough Council,http://statistics.data.gov.uk/id/local-authority/30UE,Capital,Capital,GROW - Commercial & Property,Main Contractor,03007,Capital Expenditure,Capital,Delivery of the Tatton Gardens Development,01/02/2023,0175362,"£115,796.54",Capital,Robertson CE Limited,81176,,
Chorley Borough Council,http://statistics.data.gov.uk/id/local-authority/30UE,Capital,Capital,GROW - Commercial & Property,Main Contractor,03007,Capital Expenditure,Capital,Delivery of the Tatton Gardens Development,15/02/2023,0176931,"£335,523.32",Capital,Robertson CE Limited,81176,,
Chorley Borough Council,http://statistics.data.gov.uk/id/local-authority/30UE,Planning Policy,1092,PLAN - Planning & Development,Consultants` Fees,40077,Services,5027,GIS work for Local Plan,01/02/2023,0175096,"£1,500.00",Revenue,Salford GIS Ltd,16684,,
Chorley Borough Council,http://statistics.data.gov.uk/id/local-authority/30UE,Business Support,1095,GROW - Commercial & Property,Security Service,40062,Services,5027,"To provide site concierge services at Tatton Gardens Extra Care facility, hours as outlined by the premises manager. 7 days a wee",08/02/2023,0176577,"£4,418.78",Revenue,Secure FM Ltd,86928,,
Chorley Borough Council,http://statistics.data.gov.uk/id/local-authority/30UE,Homelessness,1075,GROW - Commercial & Property,Service Fees,40056,Services,5027,"To provide additional Winter Watch Security at Cotswold House as discussedFrom 21:30 to 08:45 - 7 days a week, from Mon 24th Octo",15/02/2023,0176936,"£4,289.63",Revenue,Secure FM Ltd,86928,,
Chorley Borough Council,http://statistics.data.gov.uk/id/local-authority/30UE,Business Support,1095,GROW - Commercial & Property,Security Service,40062,Services,5027,"To provide site concierge services at Tatton Gardens Extra Care facility, hours as outlined by the premises manager. 7 days a wee",15/02/2023,0176937,"£7,213.95",Revenue,Secure FM Ltd,86928,,
Chorley Borough Council,http://statistics.data.gov.uk/id/local-authority/30UE,Homelessness,1075,GROW - Commercial & Property,Security Service,40062,Services,5027,"To provide site concierge services at Cotswold House temporary accommodation facility, hours as outlined by the premises manager.",15/02/2023,0176938,"£7,186.28",Revenue,Secure FM Ltd,86928,,
Chorley Borough Council,http://statistics.data.gov.uk/id/local-authority/30UE,Business Support,1095,GROW - Commercial & Property,Security Service,40062,Services,5027,"To provide evening Site Security Services at Market Walk Shopping Centre from 5pm until midnight, 7 days a week. Hourly rate £12.",15/02/2023,0176939,"£2,669.10",Revenue,Secure FM Ltd,86928,,
Chorley Borough Council,http://statistics.data.gov.uk/id/local-authority/30UE,Business Support,1095,GROW - Commercial & Property,Cleaning Materials,40019,"Equipment, Furniture & Materia",5023,Please supply the following for Market Walk/Extension:Oil Only Absorbent Sheet 50cm x 40cm - Pack Of 200. Qty 1 - ESCOP200 £50.90,08/02/2023,0176729,£257.75,Revenue,Seddons (Plant and Engineers) ltd,47834,,
Chorley Borough Council,http://statistics.data.gov.uk/id/local-authority/30UE,Culture & Heritage,1036,GROW - Commercial & Property,Tools & Equipment - Purchase,40003,"Equipment, Furniture & Materia",5023,4-Wheeled Rough Terrain Platform Steel Trucks - Single- Style No.TRU10£287.10Incl. VAT: £344.52,15/02/2023,0176632,£294.05,Revenue,Seton Ltd,16674,,
Chorley Borough Council,http://statistics.data.gov.uk/id/local-authority/30UE,Tourism,1039,GOVN - Policy & Governance,External Contractor,40198,Miscellaneous Expenses,5034,Hiring of the Ice Rink for our Winter WonderlandIce rink to be used from Friday 9 December 2022 till Monday 2 January 2023 inclus,08/02/2023,0176604,"£47,000.00",Revenue,Showtime Ice Rinks Ltd,76490,,
Chorley Borough Council,http://statistics.data.gov.uk/id/local-authority/30UE,Central Support Services,1009,GROW - Commercial & Property,Professional Fees,40063,Services,5027,Signage - Strawberry Meadows Business Park,01/02/2023,0175547,"£8,196.50",Revenue,Signs Preston LTD,76902,,
Chorley Borough Council,http://statistics.data.gov.uk/id/local-authority/30UE,Central Support Services,1009,EARL - Communities,Misc Expenses,40200,Miscellaneous Expenses,5034,"COM 3509: Furness Close, Chorley, PR7 3HD",15/02/2023,0176738,£650.00,Revenue,Smile Mediation Ltd,62536,,
Chorley Borough Council,http://statistics.data.gov.uk/id/local-authority/30UE,Central Support Services,1009,GOVN - Policy & Governance,Lone Working System,40097,Communication and Computing,5028,Invoice 155084 for Solo Protect service charge,15/02/2023,0177047,£500.80,Revenue,SoloProtect Ltd,76206,,
Chorley Borough Council,http://statistics.data.gov.uk/id/local-authority/30UE,Central Support Services,1009,CUST - Customer & Digital,Misc Expenses,40200,Miscellaneous Expenses,5034,2022/23 Payment transfer for Garden waste subscriptions for South Ribble properties. (379 props.),01/02/2023,0176447,"£9,475.00",Revenue,South Ribble Borough Council,17889,,
Chorley Borough Council,http://statistics.data.gov.uk/id/local-authority/30UE,Central Support Services,1009,GOVN - Policy & Governance,Service Fees to other Local Authorities,40076,Services,5027,Quarter 3 Recharges 22/23,15/02/2023,0176897,"£625,019.92",Revenue,South Ribble Borough Council,17889,,
Chorley Borough Council,http://statistics.data.gov.uk/id/local-authority/30UE,Business Support,1095,GROW - Commercial & Property,Window Cleaning,20034,Cleaning and Domestic Supplies,5012,For the window cleaning services and quarterly internal cleans at Primrose gardens,08/02/2023,0176637,£680.00,Revenue,Sparkle Window Cleaning (Michael Jennings),77989,,
Chorley Borough Council,http://statistics.data.gov.uk/id/local-authority/30UE,Tourism,1039,GOVN - Policy & Governance,Professional Fees,40063,Services,5027,Overnight Security Provided for Chorley Council`s Winter Wonderland Attraction.Hourly rate of £14.50Dates for security provided:0,08/02/2023,0176653,"£6,670.00",Revenue,Spencer Sutcliffe Security & Training Ltd,83547,,
Chorley Borough Council,http://statistics.data.gov.uk/id/local-authority/30UE,Tourism,1039,GOVN - Policy & Governance,Misc Expenses,40200,Miscellaneous Expenses,5034,"Chorley Flower Show 2022 Friday 29, Saturday 30 & Sunday 31 July 20222 vehicles operating a 10 minute service from both Runshaw, ",08/02/2023,0176636,"£4,200.00",Revenue,Stagecoach Services Limited,18598,,
Chorley Borough Council,http://statistics.data.gov.uk/id/local-authority/30UE,Business Support,1095,GROW - Commercial & Property,Planned Maintenance,20006,Repairs Maintenance & Alts,5005,Pest control works at Strawberry Fields Digital Hub for 2023. Per your emailed quote 15/12/22,01/02/2023,0176571,£380.00,Revenue,Standish Property Maintenance & Pest Control,78452,,
Chorley Borough Council,http://statistics.data.gov.uk/id/local-authority/30UE,Capital,Capital,EARL - Communities,Grants,03002,Capital Expenditure,Capital,22/00092/CAG NAME AND ADDRESS REDACTED,01/02/2023,0176467,"£5,301.00",Capital,Stannah Lift Services Ltd,80943,,
Chorley Borough Council,http://statistics.data.gov.uk/id/local-authority/30UE,Capital,Capital,EARL - Communities,Grants,03002,Capital Expenditure,Capital,22/00137/CAG,01/02/2023,0176498,"£5,474.00",Capital,Stannah Lift Services Ltd,80943,,
Chorley Borough Council,http://statistics.data.gov.uk/id/local-authority/30UE,Capital,Capital,EARL - Communities,Grants,03002,Capital Expenditure,Capital,22/00155/CAG ADDRESS REDACTED,08/02/2023,0176848,"£6,070.00",Capital,Stannah Lift Services Ltd,80943,,
Chorley Borough Council,http://statistics.data.gov.uk/id/local-authority/30UE,Service Management & Support,1009,GROW - Commercial & Property,External Contractors,50008,Private Contractors,5042,Birkacre ReservoirSupervising Engineer Services 2022,22/02/2023,0177145,£850.00,Revenue,Stillwater Associates Limited,84045,,
Chorley Borough Council,http://statistics.data.gov.uk/id/local-authority/30UE,Central Support Services,1009,GROW - Commercial & Property,General Repairs - Reactive,20004,Repairs Maintenance & Alts,5005,"Engineering Services Quote 02 - 2022Queens Road Car Park, ChorleyDetailed design, liaison with stakeholders, preparation ofdrawin",08/02/2023,0176893,£596.41,Revenue,Street Civil Engineering Limited,76750,,
Chorley Borough Council,http://statistics.data.gov.uk/id/local-authority/30UE,Central Support Services,1009,GROW - Commercial & Property,General Repairs - Reactive,20004,Repairs Maintenance & Alts,5005,"Engineering Services Quote 08 - 2022Chorley Cemetery ImprovementsUndertake site survey, provide utilities details, consideroption",22/02/2023,0177140,£798.83,Revenue,Street Civil Engineering Limited,76750,,
Chorley Borough Council,http://statistics.data.gov.uk/id/local-authority/30UE,Central Support Services,1009,GROW - Commercial & Property,General Repairs - Reactive,20004,Repairs Maintenance & Alts,5005,"Engineering Services Quote 02 - 2023Walled Garden flooding issues, Astley ParkArrange manhole survey, undertake site level survey",22/02/2023,0177142,£719.83,Revenue,Street Civil Engineering Limited,76750,,
Chorley Borough Council,http://statistics.data.gov.uk/id/local-authority/30UE,Central Support Services,1009,GROW - Commercial & Property,General Repairs - Reactive,20004,Repairs Maintenance & Alts,5005,Engineering Services Quote 01 - 2022Provision of agreed general engineering services1st September 2022 to 31st March 2023,22/02/2023,0177149,£823.68,Revenue,Street Civil Engineering Limited,76750,,
Chorley Borough Council,http://statistics.data.gov.uk/id/local-authority/30UE,Capital,Capital,GROW - Commercial & Property,Other Contractor,03012,Capital Expenditure,Capital,"Digital Office Park, Additional Parking, ChorleyEngineering Services Quote 05 - 2022Undertake detailed site survey, provide utili",22/02/2023,0177150,£263.35,Capital,Street Civil Engineering Limited,76750,,
Chorley Borough Council,http://statistics.data.gov.uk/id/local-authority/30UE,Community Development,1097,EARL - Communities,Core Funding Grants,40133,Grants and Subscriptions,5031,2rd Payment for delivery of commissioned service,01/02/2023,0176425,"£4,000.00",Revenue,Street Pastors,21946,,
Chorley Borough Council,http://statistics.data.gov.uk/id/local-authority/30UE,Culture & Heritage,1036,GOVN - Policy & Governance,Furniture - Purchase,40012,"Equipment, Furniture & Materia",5023,"Delivery to Astley Hall, Hallgate, Chorley, PR7 1XA10 x Chiavari Chair - WSA24600 - Vinyl EZ clean faux leather WHITETotal ex VAT",08/02/2023,0176699,£419.50,Revenue,Strictly Tables and Chairs Ltd,87105,,
Chorley Borough Council,http://statistics.data.gov.uk/id/local-authority/30UE,Culture & Heritage,1036,GOVN - Policy & Governance,Furniture - Purchase,40012,"Equipment, Furniture & Materia",5023,Carriage,08/02/2023,0176699,£55.00,Revenue,Strictly Tables and Chairs Ltd,87105,,
Chorley Borough Council,http://statistics.data.gov.uk/id/local-authority/30UE,Capital,Capital,EARL - Communities,Grants,03002,Capital Expenditure,Capital,135 daisy meadow,01/02/2023,0175507,"£2,740.00",Capital,Stringfellow Bldg Cntrctrs Ltd,17893,,
Chorley Borough Council,http://statistics.data.gov.uk/id/local-authority/30UE,Central Support Services,1009,GOVN - Policy & Governance,Refreshments,40036,Catering,5024,Catering for the Freedom of the Borough event on 28 January 2023 (206 guests @ £8.75 per head),08/02/2023,0176737,"£1,802.50",Revenue,Style Catering,66901,,
Chorley Borough Council,http://statistics.data.gov.uk/id/local-authority/30UE,Central Support Services,1009,CUST - Customer & Digital,Refuse Collection,20037,Cleaning and Domestic Supplies,5012,"Trade waste collections TOWN HALL, General waste 2022.2023",01/02/2023,0175529,£113.01,Revenue,SUEZ R&R UK LTD,17615,,
Chorley Borough Council,http://statistics.data.gov.uk/id/local-authority/30UE,Central Support Services,1009,CUST - Customer & Digital,Refuse Collection,20037,Cleaning and Domestic Supplies,5012,Trade waste collections TOWN HALL MIXED REC 2022.2023,01/02/2023,0175529,£22.01,Revenue,SUEZ R&R UK LTD,17615,,
Chorley Borough Council,http://statistics.data.gov.uk/id/local-authority/30UE,Central Support Services,1009,CUST - Customer & Digital,Refuse Collection,20037,Cleaning and Domestic Supplies,5012,"Trade waste Collections, Civic Offices, General Waste 2022.2023",01/02/2023,0175529,£226.03,Revenue,SUEZ R&R UK LTD,17615,,
Chorley Borough Council,http://statistics.data.gov.uk/id/local-authority/30UE,Central Support Services,1009,CUST - Customer & Digital,Refuse Collection,20037,Cleaning and Domestic Supplies,5012,"Trade waste Collections, Civic Offices, Mixed Recycling 2022.2023",01/02/2023,0175529,£22.01,Revenue,SUEZ R&R UK LTD,17615,,
Chorley Borough Council,http://statistics.data.gov.uk/id/local-authority/30UE,Culture & Heritage,1036,CUST - Customer & Digital,Refuse Collection,20037,Cleaning and Domestic Supplies,5012,"Trade waste Collections, Astley Hall, General Waste 2022.2023",01/02/2023,0175529,£37.67,Revenue,SUEZ R&R UK LTD,17615,,
Chorley Borough Council,http://statistics.data.gov.uk/id/local-authority/30UE,Community Development,1097,CUST - Customer & Digital,Refuse Collection,20037,Cleaning and Domestic Supplies,5012,"Trade waste Collections, MPs Constituency Offices, General Waste 2022.2023",01/02/2023,0175529,£37.67,Revenue,SUEZ R&R UK LTD,17615,,
Chorley Borough Council,http://statistics.data.gov.uk/id/local-authority/30UE,Recreation & Sport,1037,CUST - Customer & Digital,Refuse Collection,20037,Cleaning and Domestic Supplies,5012,"Trade waste Collections, Eaves Green Community Centre, General Waste 2022.2023",01/02/2023,0175529,£20.49,Revenue,SUEZ R&R UK LTD,17615,,
Chorley Borough Council,http://statistics.data.gov.uk/id/local-authority/30UE,Recreation & Sport,1037,CUST - Customer & Digital,Refuse Collection,20037,Cleaning and Domestic Supplies,5012,"Trade waste Collections, Astley Village Community Centre, General Waste 2022.2023",01/02/2023,0175529,£20.49,Revenue,SUEZ R&R UK LTD,17615,,
Chorley Borough Council,http://statistics.data.gov.uk/id/local-authority/30UE,Recreation & Sport,1037,CUST - Customer & Digital,Misc Expenses,40200,Miscellaneous Expenses,5034,"Trade waste Collections, Buttermere Green Community Centre, General Waste 2022.2023",01/02/2023,0175529,£20.49,Revenue,SUEZ R&R UK LTD,17615,,
Chorley Borough Council,http://statistics.data.gov.uk/id/local-authority/30UE,Recreation & Sport,1037,CUST - Customer & Digital,Misc Expenses,40200,Miscellaneous Expenses,5034,"Trade waste Collections, Lancaster Way Community Centre, General Waste 2022.2023",01/02/2023,0175529,£20.49,Revenue,SUEZ R&R UK LTD,17615,,
Chorley Borough Council,http://statistics.data.gov.uk/id/local-authority/30UE,Recreation & Sport,1037,CUST - Customer & Digital,Refuse Collection,20037,Cleaning and Domestic Supplies,5012,"Trade waste Collections, Tatton Community Centre, General Waste 2022.2023",01/02/2023,0175529,£20.49,Revenue,SUEZ R&R UK LTD,17615,,
Chorley Borough Council,http://statistics.data.gov.uk/id/local-authority/30UE,Recreation & Sport,1037,CUST - Customer & Digital,Refuse Collection,20037,Cleaning and Domestic Supplies,5012,"Trade waste Collections, Clayton Brook Village Hall, General Waste 2022.2023",01/02/2023,0175529,£24.80,Revenue,SUEZ R&R UK LTD,17615,,
Chorley Borough Council,http://statistics.data.gov.uk/id/local-authority/30UE,Business Support,1095,CUST - Customer & Digital,Refuse Collection,20037,Cleaning and Domestic Supplies,5012,"Trade waste collections, Strawberry Fields Digital Hub General waste 2022.2023",01/02/2023,0175529,£113.01,Revenue,SUEZ R&R UK LTD,17615,,
Chorley Borough Council,http://statistics.data.gov.uk/id/local-authority/30UE,Business Support,1095,CUST - Customer & Digital,Refuse Collection,20037,Cleaning and Domestic Supplies,5012,"Trade waste collections, Strawberry Fields Digital Hub, Mixed Recycling 2022.2023",01/02/2023,0175529,£66.03,Revenue,SUEZ R&R UK LTD,17615,,
Chorley Borough Council,http://statistics.data.gov.uk/id/local-authority/30UE,Economic Development,1096,GROW - Commercial & Property,Refuse Collection,20037,Cleaning and Domestic Supplies,5012,Market Walk/Market Walk Extension/Markets/Calico Lounge/Reel Cinema Waste Removal 01.04.2022 - 31.03.2023:Market Walk YARD 1 - GE,01/02/2023,0175577,"£2,260.26",Revenue,SUEZ R&R UK LTD,17615,,
Chorley Borough Council,http://statistics.data.gov.uk/id/local-authority/30UE,Economic Development,1096,GROW - Commercial & Property,Refuse Collection,20037,Cleaning and Domestic Supplies,5012,Market Walk YARD 1 - GENERAL WASTE (Market Walk) - 8 cubic yard FEL skip x 1 £55.78 per week,01/02/2023,0175577,£241.77,Revenue,SUEZ R&R UK LTD,17615,,
Chorley Borough Council,http://statistics.data.gov.uk/id/local-authority/30UE,Economic Development,1096,GROW - Commercial & Property,Refuse Collection,20037,Cleaning and Domestic Supplies,5012,Market Walk YARD 1 - CARDBOARD ONLY - 35 cubic yard RoRo skip x 1 £25 per month,01/02/2023,0175577,£25.00,Revenue,SUEZ R&R UK LTD,17615,,
Chorley Borough Council,http://statistics.data.gov.uk/id/local-authority/30UE,Business Support,1095,GROW - Commercial & Property,Refuse Collection,20037,Cleaning and Domestic Supplies,5012,Market Walk YARD 2 - CARDBOARD ONLY - 35 cubic yard RoRo skip x 1 £25 per month,01/02/2023,0175577,£25.00,Revenue,SUEZ R&R UK LTD,17615,,
Chorley Borough Council,http://statistics.data.gov.uk/id/local-authority/30UE,Business Support,1095,GROW - Commercial & Property,Refuse Collection,20037,Cleaning and Domestic Supplies,5012,Market Walk YARD 2 - GENERAL WASTE - 8 cubic yard FEL skip x 1 £55.78 per week,01/02/2023,0175577,£242.64,Revenue,SUEZ R&R UK LTD,17615,,
Chorley Borough Council,http://statistics.data.gov.uk/id/local-authority/30UE,Business Support,1095,GROW - Commercial & Property,Refuse Collection,20037,Cleaning and Domestic Supplies,5012,Market Walk YARD 3 - GENERAL WASTE - 8 cubic yard FEL skip x 2 £55.78 per skip per week. ( £111.56 pw for 2 skips),01/02/2023,0175577,£485.29,Revenue,SUEZ R&R UK LTD,17615,,
Chorley Borough Council,http://statistics.data.gov.uk/id/local-authority/30UE,Business Support,1095,GROW - Commercial & Property,Refuse Collection,20037,Cleaning and Domestic Supplies,5012,Market Walk YARD 3 - CARDBOARD ONLY - 35 cubic yard RoRo skip x 1 £25 per month,01/02/2023,0175577,£25.00,Revenue,SUEZ R&R UK LTD,17615,,
Chorley Borough Council,http://statistics.data.gov.uk/id/local-authority/30UE,Business Support,1095,GROW - Commercial & Property,Refuse Collection,20037,Cleaning and Domestic Supplies,5012,Market Walk YARD 3 - PLASTIC FILM - 35 cubic yard RoRo skip x 1 £25 per month,01/02/2023,0175577,£25.00,Revenue,SUEZ R&R UK LTD,17615,,
Chorley Borough Council,http://statistics.data.gov.uk/id/local-authority/30UE,Business Support,1095,GROW - Commercial & Property,Refuse Collection,20037,Cleaning and Domestic Supplies,5012,Market Walk YARD 3 - CARDBOARD ONLY - 12 cubic yard Bakkie cage x 1. £54.17 per month,01/02/2023,0175577,£54.17,Revenue,SUEZ R&R UK LTD,17615,,
Chorley Borough Council,http://statistics.data.gov.uk/id/local-authority/30UE,Business Support,1095,GROW - Commercial & Property,Refuse Collection,20037,Cleaning and Domestic Supplies,5012,"Market Walk Ext, Chorley PR7 1FD - GENERAL WASTE - Euro 1100 Litre x 10. £8.66 per bin per week",01/02/2023,0175577,£376.71,Revenue,SUEZ R&R UK LTD,17615,,
Chorley Borough Council,http://statistics.data.gov.uk/id/local-authority/30UE,Business Support,1095,GROW - Commercial & Property,Refuse Collection,20037,Cleaning and Domestic Supplies,5012,"Market Walk Ext, Chorley PR7 1FD - MIXED RECYCLING - Euro 1100 Litre x 10.£5.06 per bin per week",01/02/2023,0175577,£220.11,Revenue,SUEZ R&R UK LTD,17615,,
Chorley Borough Council,http://statistics.data.gov.uk/id/local-authority/30UE,Business Support,1095,GROW - Commercial & Property,Refuse Collection,20037,Cleaning and Domestic Supplies,5012,"Market Walk Ext, Chorley PR7 1FD - GLASS ONLY - 240 Litre bins x 6.£3.75 per bin per week",01/02/2023,0175577,£97.88,Revenue,SUEZ R&R UK LTD,17615,,
Chorley Borough Council,http://statistics.data.gov.uk/id/local-authority/30UE,Business Support,1095,GROW - Commercial & Property,Refuse Collection,20037,Cleaning and Domestic Supplies,5012,"Calico Lounge, Market Walk, Chorley, PR7 1FD - GENERAL WASTE - Euro 1100 Litre bins x 3.£8.66 per bin - emptied twice a week",01/02/2023,0175577,£226.03,Revenue,SUEZ R&R UK LTD,17615,,
Chorley Borough Council,http://statistics.data.gov.uk/id/local-authority/30UE,Business Support,1095,GROW - Commercial & Property,Refuse Collection,20037,Cleaning and Domestic Supplies,5012,"Calico Lounge, Market Walk, Chorley, PR7 1FD - MIXED RECYCLING - Euro 1100 Litre bins x 3.£5.06 per bin per week",01/02/2023,0175577,£66.03,Revenue,SUEZ R&R UK LTD,17615,,
Chorley Borough Council,http://statistics.data.gov.uk/id/local-authority/30UE,Business Support,1095,GROW - Commercial & Property,Refuse Collection,20037,Cleaning and Domestic Supplies,5012,"Calico Lounge, Market Walk, Chorley, PR7 1FD - GLASS ONLY - 240 Litre bins x 4.£3.75 per bin per week",01/02/2023,0175577,£65.25,Revenue,SUEZ R&R UK LTD,17615,,
Chorley Borough Council,http://statistics.data.gov.uk/id/local-authority/30UE,Business Support,1095,GROW - Commercial & Property,Refuse Collection,20037,Cleaning and Domestic Supplies,5012,REEL Cinema - GENERAL WASTE - Euro 1100 Litre bins x 4.£8.66 per bin - emptied twice a week,01/02/2023,0175577,£301.37,Revenue,SUEZ R&R UK LTD,17615,,
Chorley Borough Council,http://statistics.data.gov.uk/id/local-authority/30UE,Business Support,1095,GROW - Commercial & Property,Refuse Collection,20037,Cleaning and Domestic Supplies,5012,REEL Cinema - MIXED RECYCLING - Euro 1100 Litre bins x 4.£5.06 per bin per week,01/02/2023,0175577,£88.04,Revenue,SUEZ R&R UK LTD,17615,,
Chorley Borough Council,http://statistics.data.gov.uk/id/local-authority/30UE,Economic Development,1096,GROW - Commercial & Property,Refuse Collection,20037,Cleaning and Domestic Supplies,5012,Market Walk/Market Walk Extension/Markets/Calico Lounge/Reel Cinema Waste Removal 01.04.2022 - 31.03.2023:Market Walk YARD 1 - GE,01/02/2023,0176457,"£2,260.26",Revenue,SUEZ R&R UK LTD,17615,,
Chorley Borough Council,http://statistics.data.gov.uk/id/local-authority/30UE,Economic Development,1096,GROW - Commercial & Property,Refuse Collection,20037,Cleaning and Domestic Supplies,5012,Market Walk YARD 1 - GENERAL WASTE (Market Walk) - 8 cubic yard FEL skip x 1 £55.78 per week,01/02/2023,0176457,£241.77,Revenue,SUEZ R&R UK LTD,17615,,
Chorley Borough Council,http://statistics.data.gov.uk/id/local-authority/30UE,Economic Development,1096,GROW - Commercial & Property,Refuse Collection,20037,Cleaning and Domestic Supplies,5012,Market Walk YARD 1 - CARDBOARD ONLY - 35 cubic yard RoRo skip x 1 £25 per month,01/02/2023,0176457,£25.00,Revenue,SUEZ R&R UK LTD,17615,,
Chorley Borough Council,http://statistics.data.gov.uk/id/local-authority/30UE,Business Support,1095,GROW - Commercial & Property,Refuse Collection,20037,Cleaning and Domestic Supplies,5012,Market Walk YARD 2 - CARDBOARD ONLY - 35 cubic yard RoRo skip x 1 £25 per month,01/02/2023,0176457,£25.00,Revenue,SUEZ R&R UK LTD,17615,,
Chorley Borough Council,http://statistics.data.gov.uk/id/local-authority/30UE,Business Support,1095,GROW - Commercial & Property,Refuse Collection,20037,Cleaning and Domestic Supplies,5012,Market Walk YARD 2 - GENERAL WASTE - 8 cubic yard FEL skip x 1 £55.78 per week,01/02/2023,0176457,£242.64,Revenue,SUEZ R&R UK LTD,17615,,
Chorley Borough Council,http://statistics.data.gov.uk/id/local-authority/30UE,Business Support,1095,GROW - Commercial & Property,Refuse Collection,20037,Cleaning and Domestic Supplies,5012,Market Walk YARD 3 - GENERAL WASTE - 8 cubic yard FEL skip x 2 £55.78 per skip per week. ( £111.56 pw for 2 skips),01/02/2023,0176457,£485.29,Revenue,SUEZ R&R UK LTD,17615,,
Chorley Borough Council,http://statistics.data.gov.uk/id/local-authority/30UE,Business Support,1095,GROW - Commercial & Property,Refuse Collection,20037,Cleaning and Domestic Supplies,5012,Market Walk YARD 3 - CARDBOARD ONLY - 35 cubic yard RoRo skip x 1 £25 per month,01/02/2023,0176457,£25.00,Revenue,SUEZ R&R UK LTD,17615,,
Chorley Borough Council,http://statistics.data.gov.uk/id/local-authority/30UE,Business Support,1095,GROW - Commercial & Property,Refuse Collection,20037,Cleaning and Domestic Supplies,5012,Market Walk YARD 3 - PLASTIC FILM - 35 cubic yard RoRo skip x 1 £25 per month,01/02/2023,0176457,£25.00,Revenue,SUEZ R&R UK LTD,17615,,
Chorley Borough Council,http://statistics.data.gov.uk/id/local-authority/30UE,Business Support,1095,GROW - Commercial & Property,Refuse Collection,20037,Cleaning and Domestic Supplies,5012,Market Walk YARD 3 - CARDBOARD ONLY - 12 cubic yard Bakkie cage x 1. £54.17 per month,01/02/2023,0176457,£54.17,Revenue,SUEZ R&R UK LTD,17615,,
Chorley Borough Council,http://statistics.data.gov.uk/id/local-authority/30UE,Business Support,1095,GROW - Commercial & Property,Refuse Collection,20037,Cleaning and Domestic Supplies,5012,"Market Walk Ext, Chorley PR7 1FD - GENERAL WASTE - Euro 1100 Litre x 10. £8.66 per bin per week",01/02/2023,0176457,£376.71,Revenue,SUEZ R&R UK LTD,17615,,
Chorley Borough Council,http://statistics.data.gov.uk/id/local-authority/30UE,Business Support,1095,GROW - Commercial & Property,Refuse Collection,20037,Cleaning and Domestic Supplies,5012,"Market Walk Ext, Chorley PR7 1FD - MIXED RECYCLING - Euro 1100 Litre x 10.£5.06 per bin per week",01/02/2023,0176457,£220.11,Revenue,SUEZ R&R UK LTD,17615,,
Chorley Borough Council,http://statistics.data.gov.uk/id/local-authority/30UE,Business Support,1095,GROW - Commercial & Property,Refuse Collection,20037,Cleaning and Domestic Supplies,5012,"Market Walk Ext, Chorley PR7 1FD - GLASS ONLY - 240 Litre bins x 6.£3.75 per bin per week",01/02/2023,0176457,£97.88,Revenue,SUEZ R&R UK LTD,17615,,
Chorley Borough Council,http://statistics.data.gov.uk/id/local-authority/30UE,Business Support,1095,GROW - Commercial & Property,Refuse Collection,20037,Cleaning and Domestic Supplies,5012,"Calico Lounge, Market Walk, Chorley, PR7 1FD - GENERAL WASTE - Euro 1100 Litre bins x 3.£8.66 per bin - emptied twice a week",01/02/2023,0176457,£226.03,Revenue,SUEZ R&R UK LTD,17615,,
Chorley Borough Council,http://statistics.data.gov.uk/id/local-authority/30UE,Business Support,1095,GROW - Commercial & Property,Refuse Collection,20037,Cleaning and Domestic Supplies,5012,"Calico Lounge, Market Walk, Chorley, PR7 1FD - MIXED RECYCLING - Euro 1100 Litre bins x 3.£5.06 per bin per week",01/02/2023,0176457,£66.03,Revenue,SUEZ R&R UK LTD,17615,,
Chorley Borough Council,http://statistics.data.gov.uk/id/local-authority/30UE,Business Support,1095,GROW - Commercial & Property,Refuse Collection,20037,Cleaning and Domestic Supplies,5012,"Calico Lounge, Market Walk, Chorley, PR7 1FD - GLASS ONLY - 240 Litre bins x 4.£3.75 per bin per week",01/02/2023,0176457,£65.25,Revenue,SUEZ R&R UK LTD,17615,,
Chorley Borough Council,http://statistics.data.gov.uk/id/local-authority/30UE,Business Support,1095,GROW - Commercial & Property,Refuse Collection,20037,Cleaning and Domestic Supplies,5012,REEL Cinema - GENERAL WASTE - Euro 1100 Litre bins x 4.£8.66 per bin - emptied twice a week,01/02/2023,0176457,£301.37,Revenue,SUEZ R&R UK LTD,17615,,
Chorley Borough Council,http://statistics.data.gov.uk/id/local-authority/30UE,Business Support,1095,GROW - Commercial & Property,Refuse Collection,20037,Cleaning and Domestic Supplies,5012,REEL Cinema - MIXED RECYCLING - Euro 1100 Litre bins x 4.£5.06 per bin per week,01/02/2023,0176457,£88.04,Revenue,SUEZ R&R UK LTD,17615,,
Chorley Borough Council,http://statistics.data.gov.uk/id/local-authority/30UE,Central Support Services,1009,CUST - Customer & Digital,Refuse Collection,20037,Cleaning and Domestic Supplies,5012,"Trade waste collections TOWN HALL, General waste 2022.2023",08/02/2023,0176458,£113.01,Revenue,SUEZ R&R UK LTD,17615,,
Chorley Borough Council,http://statistics.data.gov.uk/id/local-authority/30UE,Central Support Services,1009,CUST - Customer & Digital,Refuse Collection,20037,Cleaning and Domestic Supplies,5012,Trade waste collections TOWN HALL MIXED REC 2022.2023,08/02/2023,0176458,£22.01,Revenue,SUEZ R&R UK LTD,17615,,
Chorley Borough Council,http://statistics.data.gov.uk/id/local-authority/30UE,Central Support Services,1009,CUST - Customer & Digital,Refuse Collection,20037,Cleaning and Domestic Supplies,5012,"Trade waste Collections, Civic Offices, General Waste 2022.2023",08/02/2023,0176458,£226.03,Revenue,SUEZ R&R UK LTD,17615,,
Chorley Borough Council,http://statistics.data.gov.uk/id/local-authority/30UE,Central Support Services,1009,CUST - Customer & Digital,Refuse Collection,20037,Cleaning and Domestic Supplies,5012,"Trade waste Collections, Civic Offices, Mixed Recycling 2022.2023",08/02/2023,0176458,£22.01,Revenue,SUEZ R&R UK LTD,17615,,
Chorley Borough Council,http://statistics.data.gov.uk/id/local-authority/30UE,Culture & Heritage,1036,CUST - Customer & Digital,Refuse Collection,20037,Cleaning and Domestic Supplies,5012,"Trade waste Collections, Astley Hall, General Waste 2022.2023",08/02/2023,0176458,£37.67,Revenue,SUEZ R&R UK LTD,17615,,
Chorley Borough Council,http://statistics.data.gov.uk/id/local-authority/30UE,Community Development,1097,CUST - Customer & Digital,Refuse Collection,20037,Cleaning and Domestic Supplies,5012,"Trade waste Collections, MPs Constituency Offices, General Waste 2022.2023",08/02/2023,0176458,£37.67,Revenue,SUEZ R&R UK LTD,17615,,
Chorley Borough Council,http://statistics.data.gov.uk/id/local-authority/30UE,Recreation & Sport,1037,CUST - Customer & Digital,Refuse Collection,20037,Cleaning and Domestic Supplies,5012,"Trade waste Collections, Eaves Green Community Centre, General Waste 2022.2023",08/02/2023,0176458,£20.49,Revenue,SUEZ R&R UK LTD,17615,,
Chorley Borough Council,http://statistics.data.gov.uk/id/local-authority/30UE,Recreation & Sport,1037,CUST - Customer & Digital,Refuse Collection,20037,Cleaning and Domestic Supplies,5012,"Trade waste Collections, Astley Village Community Centre, General Waste 2022.2023",08/02/2023,0176458,£20.49,Revenue,SUEZ R&R UK LTD,17615,,
Chorley Borough Council,http://statistics.data.gov.uk/id/local-authority/30UE,Recreation & Sport,1037,CUST - Customer & Digital,Misc Expenses,40200,Miscellaneous Expenses,5034,"Trade waste Collections, Buttermere Green Community Centre, General Waste 2022.2023",08/02/2023,0176458,£20.49,Revenue,SUEZ R&R UK LTD,17615,,
Chorley Borough Council,http://statistics.data.gov.uk/id/local-authority/30UE,Recreation & Sport,1037,CUST - Customer & Digital,Misc Expenses,40200,Miscellaneous Expenses,5034,"Trade waste Collections, Lancaster Way Community Centre, General Waste 2022.2023",08/02/2023,0176458,£20.49,Revenue,SUEZ R&R UK LTD,17615,,
Chorley Borough Council,http://statistics.data.gov.uk/id/local-authority/30UE,Recreation & Sport,1037,CUST - Customer & Digital,Refuse Collection,20037,Cleaning and Domestic Supplies,5012,"Trade waste Collections, Clayton Brook Village Hall, General Waste 2022.2023",08/02/2023,0176458,£24.80,Revenue,SUEZ R&R UK LTD,17615,,
Chorley Borough Council,http://statistics.data.gov.uk/id/local-authority/30UE,Business Support,1095,CUST - Customer & Digital,Refuse Collection,20037,Cleaning and Domestic Supplies,5012,"Trade waste collections, Strawberry Fields Digital Hub General waste 2022.2023",08/02/2023,0176458,£113.01,Revenue,SUEZ R&R UK LTD,17615,,
Chorley Borough Council,http://statistics.data.gov.uk/id/local-authority/30UE,Business Support,1095,CUST - Customer & Digital,Refuse Collection,20037,Cleaning and Domestic Supplies,5012,"Trade waste collections, Strawberry Fields Digital Hub, Mixed Recycling 2022.2023",08/02/2023,0176458,£66.03,Revenue,SUEZ R&R UK LTD,17615,,
Chorley Borough Council,http://statistics.data.gov.uk/id/local-authority/30UE,Recreation & Sport,1037,CUST - Customer & Digital,Refuse Collection,20037,Cleaning and Domestic Supplies,5012,"Trade waste Collections, Tatton Community Centre, General Waste 2022.2023",08/02/2023,0176458,£20.49,Revenue,SUEZ R&R UK LTD,17615,,
Chorley Borough Council,http://statistics.data.gov.uk/id/local-authority/30UE,Economic Development,1096,GROW - Commercial & Property,Refuse Collection,20037,Cleaning and Domestic Supplies,5012,Market Walk/Market Walk Extension/Markets/Calico Lounge/Reel Cinema Waste Removal 01.04.2022 - 31.03.2023:Market Walk YARD 1 - GE,01/02/2023,0176462,"£2,260.26",Revenue,SUEZ R&R UK LTD,17615,,
Chorley Borough Council,http://statistics.data.gov.uk/id/local-authority/30UE,Economic Development,1096,GROW - Commercial & Property,Refuse Collection,20037,Cleaning and Domestic Supplies,5012,Market Walk YARD 1 - GENERAL WASTE (Market Walk) - 8 cubic yard FEL skip x 1 £55.78 per week,01/02/2023,0176462,£241.77,Revenue,SUEZ R&R UK LTD,17615,,
Chorley Borough Council,http://statistics.data.gov.uk/id/local-authority/30UE,Economic Development,1096,GROW - Commercial & Property,Refuse Collection,20037,Cleaning and Domestic Supplies,5012,Market Walk YARD 1 - CARDBOARD ONLY - 35 cubic yard RoRo skip x 1 £25 per month,01/02/2023,0176462,£25.00,Revenue,SUEZ R&R UK LTD,17615,,
Chorley Borough Council,http://statistics.data.gov.uk/id/local-authority/30UE,Business Support,1095,GROW - Commercial & Property,Refuse Collection,20037,Cleaning and Domestic Supplies,5012,Market Walk YARD 2 - CARDBOARD ONLY - 35 cubic yard RoRo skip x 1 £25 per month,01/02/2023,0176462,£25.00,Revenue,SUEZ R&R UK LTD,17615,,
Chorley Borough Council,http://statistics.data.gov.uk/id/local-authority/30UE,Business Support,1095,GROW - Commercial & Property,Refuse Collection,20037,Cleaning and Domestic Supplies,5012,Market Walk YARD 2 - GENERAL WASTE - 8 cubic yard FEL skip x 1 £55.78 per week,01/02/2023,0176462,£242.64,Revenue,SUEZ R&R UK LTD,17615,,
Chorley Borough Council,http://statistics.data.gov.uk/id/local-authority/30UE,Business Support,1095,GROW - Commercial & Property,Refuse Collection,20037,Cleaning and Domestic Supplies,5012,Market Walk YARD 3 - GENERAL WASTE - 8 cubic yard FEL skip x 2 £55.78 per skip per week. ( £111.56 pw for 2 skips),01/02/2023,0176462,£485.29,Revenue,SUEZ R&R UK LTD,17615,,
